Organisation Name,Effective Date,Purch Date,Service Area,Expenses Area,Beneficiary,Net amount,    Tax,     Gross,Long Text,MCC Description
Buckinghamshire Council ,29.02.2024,29.02.2024,Children's Services,Education & Childrens Services - CS Dir,AMAZON.CO.UK,16.64,3.34,19.98,Stationery & Office Supplies,Direct sales companies
Buckinghamshire Council ,29.02.2024,29.02.2024,Children's Services,Partnerships - Children's Services,AMZNMKTPLACE,31.3,0,31.3,"Courses, Conference and Seminar Fees",Miscellaneous retail
Buckinghamshire Council ,29.02.2024,29.02.2024,Children's Services,Education & Childrens Services - CS Dir,BKG*HOTEL AT BOOKING.C,180,0,180,Other Employees Expenses,Travel agencies
Buckinghamshire Council ,29.02.2024,29.02.2024,Children's Services,Education & Childrens Services - CS Dir,COSTCO WHOLESALE #117,198.28,0,198.28,General Provisions (Food),Buying & shopping services/clubs
Buckinghamshire Council ,29.02.2024,29.02.2024,Deputy Chief Executive,Communities - DCE,AO RETAIL LIMITED,633,0,633,Awaiting Coding,Household appliance stores
Buckinghamshire Council ,29.02.2024,29.02.2024,Deputy Chief Executive,Communities - DCE,AO RETAIL LIMITED,847,0,847,Awaiting Coding,Household appliance stores
Buckinghamshire Council ,29.02.2024,29.02.2024,Deputy Chief Executive,Communities - DCE,AO RETAIL LIMITED,234,0,234,Awaiting Coding,Household appliance stores
Buckinghamshire Council ,29.02.2024,29.02.2024,Deputy Chief Executive,Communities - DCE,AO RETAIL LIMITED,234,0,234,Awaiting Coding,Household appliance stores
Buckinghamshire Council ,29.02.2024,29.02.2024,Deputy Chief Executive,Communities - DCE,AO RETAIL LIMITED,369,0,369,Awaiting Coding,Household appliance stores
Buckinghamshire Council ,29.02.2024,29.02.2024,Deputy Chief Executive,Communities - DCE,AO RETAIL LIMITED,862,0,862,Awaiting Coding,Household appliance stores
Buckinghamshire Council ,29.02.2024,29.02.2024,Deputy Chief Executive,Communities - DCE,WWW.ARGOS.CO.UK,27.95,0,27.95,Awaiting Coding,Department stores
Buckinghamshire Council ,29.02.2024,29.02.2024,Communities,Culture & Leisure - Communities Dir,EBAY O*16-11243-02713,6.88,0,6.88,"Books, Records, Films & Oth Publications",Department stores
Buckinghamshire Council ,29.02.2024,29.02.2024,Children's Services,Education & Childrens Services - CS Dir,CURRYS BUSINESS,757.8,151.56,909.36,Computer Consumables,Computer software stores
Buckinghamshire Council ,29.02.2024,29.02.2024,Communities,Climate Change & Environment - Community,DVLA VEHICLE TAX,320,0,320,Awaiting Coding,Tax payments
Buckinghamshire Council ,29.02.2024,29.02.2024,Communities,Climate Change & Environment - Community,DVLA VEHICLE TAX,165,0,165,Awaiting Coding,Tax payments
Buckinghamshire Council ,29.02.2024,29.02.2024,Communities,Climate Change & Environment - Community,DVLA VEHICLE TAX,165,0,165,Awaiting Coding,Tax payments
Buckinghamshire Council ,29.02.2024,29.02.2024,Communities,Climate Change & Environment - Community,DVLA VEHICLE TAX,320,0,320,Awaiting Coding,Tax payments
Buckinghamshire Council ,29.02.2024,29.02.2024,Communities,Climate Change & Environment - Community,DVLA VEHICLE TAX,137.5,0,137.5,Awaiting Coding,Tax payments
Buckinghamshire Council ,29.02.2024,29.02.2024,Communities,Climate Change & Environment - Community,DVLA VEHICLE TAX,320,0,320,Awaiting Coding,Tax payments
Buckinghamshire Council ,29.02.2024,29.02.2024,Communities,Climate Change & Environment - Community,DVLA VEHICLE TAX,90.75,0,90.75,Awaiting Coding,Tax payments
Buckinghamshire Council ,29.02.2024,29.02.2024,"Planning, Growth & Sustainability",AH&R - PGS Dir,Prime Video Channels,4.99,0,4.99,Stationery & Office Supplies,Continuous subscriptions
Buckinghamshire Council ,29.02.2024,29.02.2024,"Planning, Growth & Sustainability",AH&R - PGS Dir,ICELAND,8.1,0,8.1,General Provisions (Food),Grocery stores
Buckinghamshire Council ,29.02.2024,29.02.2024,Children's Services,Education & Childrens Services - CS Dir,TRAINLINE,44.89,0,44.89,Sec 20/31: Financial Assistance,Passenger railways
Buckinghamshire Council ,29.02.2024,29.02.2024,Communities,Partnerships - Communities,YOUR CAF  IN THE PARK,18.4,0,18.4,Miscellaneous (Other)  Expenses,Fast food restaurants
Buckinghamshire Council ,29.02.2024,29.02.2024,"Planning, Growth & Sustainability",AH&R - PGS Dir,AMZNMKTPLACE,33.95,0,33.95,Protective Clothing & Uniforms,Miscellaneous retail
Buckinghamshire Council ,29.02.2024,29.02.2024,"Planning, Growth & Sustainability",AH&R - PGS Dir,EDMUNDSON ELECTRICAL,43.2,0,43.2,General Repairs & Maintenance,Electrical parts & equipment
Buckinghamshire Council ,29.02.2024,29.02.2024,Children's Services,Education & Childrens Services - CS Dir,AMZNMKTPLACE,399.99,0,399.99,Equipment (including storage),Miscellaneous retail
Buckinghamshire Council ,29.02.2024,29.02.2024,Children's Services,Education & Childrens Services - CS Dir,AMZNMKTPLACE,274,0,274,Miscellaneous (Other)  Expenses,Miscellaneous retail
Buckinghamshire Council ,29.02.2024,29.02.2024,Adults and Health,Health & Wellbeing - Adults & Health Dir,BKG*HOTEL AT BOOKING.C,80.61,0,80.61,Miscellaneous (Other)  Expenses,Travel agencies
Buckinghamshire Council ,29.02.2024,29.02.2024,Deputy Chief Executive,AH&R- DCE Dir,SUMUP  *CABS4U,16,0,16,Other Personal Needs,Taxicabs & limousines
Buckinghamshire Council ,29.02.2024,29.02.2024,Communities,Culture & Leisure - Communities Dir,DKC DIGI-KEY CORP,160.95,32.19,193.14,"Workshop - Materials,Tools & Equipment",Electrical parts & equipment
Buckinghamshire Council ,29.02.2024,29.02.2024,Communities,Culture & Leisure - Communities Dir,DKC DIGI-KEY CORP,0.01,0,0.01,"Workshop - Materials,Tools & Equipment",Electrical parts & equipment
Buckinghamshire Council ,29.02.2024,29.02.2024,Deputy Chief Executive,Leader - DCE,FACEBK VRPWMYTXS2,44.35,0,44.35,Advertising,Advertising services
Buckinghamshire Council ,29.02.2024,29.02.2024,Children's Services,Education & Childrens Services - CS Dir,AO RETAIL LIMITED,698,0,698,Leaving Care - Grants for Care Leavers,Household appliance stores
Buckinghamshire Council ,29.02.2024,29.02.2024,Children's Services,Education & Childrens Services - CS Dir,IKEA LTD SHOP ONLINE,248,0,248,Leaving Care - Grants for Care Leavers,Furniture & home furnishing
Buckinghamshire Council ,29.02.2024,29.02.2024,Children's Services,Education & Childrens Services - CS Dir,IKEA LTD SHOP ONLINE,318,0,318,Leaving Care - Grants for Care Leavers,Furniture & home furnishing
Buckinghamshire Council ,29.02.2024,29.02.2024,Children's Services,Education & Childrens Services - CS Dir,IKEA LTD SHOP ONLINE,-248,0,-248,Leaving Care - Grants for Care Leavers,Furniture & home furnishing
Buckinghamshire Council ,29.02.2024,29.02.2024,Children's Services,Education & Childrens Services - CS Dir,RIGHT CHOICE CARPETS AND,967.52,0,967.52,Leaving Care - Grants for Care Leavers,Floor covering stores
Buckinghamshire Council ,29.02.2024,29.02.2024,Children's Services,Education & Childrens Services - CS Dir,BENSONSFORBEDSRETAIL,538.99,0,538.99,Leaving Care - Grants for Care Leavers,Furniture & home furnishing
Buckinghamshire Council ,29.02.2024,29.02.2024,Children's Services,Education & Childrens Services - CS Dir,WWW.ARGOS.CO.UK,675,0,675,Leaving Care - Grants for Care Leavers,Department stores
Buckinghamshire Council ,29.02.2024,29.02.2024,Children's Services,Education & Childrens Services - CS Dir,WWW.ARGOS.CO.UK,360,0,360,Leaving Care - Grants for Care Leavers,Department stores
Buckinghamshire Council ,29.02.2024,29.02.2024,Resources,AH&R - Res Dir,BENSONS FOR BEDS,-538.99,0,-538.99,Awaiting Coding,Furniture & home furnishing
Buckinghamshire Council ,29.02.2024,29.02.2024,Communities,Communities - Trust Accounts,HIGH SPEED TRAINING,96,0,96,Awaiting Coding,Schools
Buckinghamshire Council ,29.02.2024,29.02.2024,Deputy Chief Executive,AH&R- DCE Dir,NEALES TAXIS LTD,-9,0,-9,Staff Travelling Expenses,Taxicabs & limousines
Buckinghamshire Council ,29.02.2024,29.02.2024,Children's Services,Education & Childrens Services - CS Dir,WWW.BUCKINGHAMSHIRE.GOV,501,0,501,Awaiting Coding,Government services
Buckinghamshire Council ,29.02.2024,29.02.2024,Resources,AH&R - Res Dir,FACEBK *GZKMLWF742,109.46,0,109.46,Advertising,Advertising services
Buckinghamshire Council ,29.02.2024,29.02.2024,Children's Services,Education & Childrens Services - CS Dir,PASS  PORTABLE APPLIAN,30.85,6.17,37.02,Health & Safety Supplies & Services,Testing labs (non-medical)
Buckinghamshire Council ,29.02.2024,29.02.2024,Adults and Health,Health & Wellbeing - Adults & Health Dir,ASDA GROCERIES ONLINE,149.6,0,149.6,General Provisions (Food),Grocery stores
Buckinghamshire Council ,29.02.2024,29.02.2024,Children's Services,Education & Childrens Services - CS Dir,SUMUP  *CABS4U,50,0,50,Sec 20/31: Transport,Taxicabs & limousines
Buckinghamshire Council ,29.02.2024,29.02.2024,Deputy Chief Executive,Communities - DCE,PAYPAL,436.95,0,436.95,Awaiting Coding,Variety stores
Buckinghamshire Council ,29.02.2024,29.02.2024,Deputy Chief Executive,Communities - DCE,PAYPAL,160,0,160,Awaiting Coding,Variety stores
Buckinghamshire Council ,29.02.2024,29.02.2024,Deputy Chief Executive,Communities - DCE,PAYPAL,111.95,0,111.95,Awaiting Coding,Variety stores
Buckinghamshire Council ,29.02.2024,29.02.2024,Deputy Chief Executive,Communities - DCE,PAYPAL,90,0,90,Awaiting Coding,Variety stores
Buckinghamshire Council ,29.02.2024,29.02.2024,Resources,AH&R - Res Dir,FASTHOSTS,8.4,0,8.4,IT - Computer Network Charges,Computer network information services
Buckinghamshire Council ,29.02.2024,29.02.2024,Children's Services,Education & Childrens Services - CS Dir,TVLICENSING.CO.UK,159,0,159,Professional Services (non curriculum) - External,Consultants & public relation services
Buckinghamshire Council ,29.02.2024,29.02.2024,Children's Services,Education & Childrens Services - CS Dir,PAYPAL,-260,0,-260,Leaving Care - Grants for Care Leavers,Variety stores
Buckinghamshire Council ,29.02.2024,28.02.2024,Children's Services,Education & Childrens Services - CS Dir,HM PASSPORT OFFICE,82.5,0,82.5,Sec 20/31: Transport,Government services
Buckinghamshire Council ,29.02.2024,28.02.2024,Children's Services,Education & Childrens Services - CS Dir,LYNKPAY* 001 TAXIS,89.25,0,89.25,Sec 20/31: Transport,
Buckinghamshire Council ,29.02.2024,28.02.2024,Resources,AH&R - Res Dir,trainline,50.79,0,50.79,Staff Travelling Expenses,Passenger railways
Buckinghamshire Council ,29.02.2024,28.02.2024,Resources,AH&R - Res Dir,trainline,18.09,0,18.09,Staff Travelling Expenses,Passenger railways
Buckinghamshire Council ,29.02.2024,28.02.2024,Children's Services,Education & Childrens Services - CS Dir,AMAZON* 204-4687469-55,79.12,0,79.12,Miscellaneous (Other)  Expenses,Misc. general merchandise
Buckinghamshire Council ,29.02.2024,28.02.2024,Children's Services,Education & Childrens Services - CS Dir,AMAZON.CO.UK,24.93,0,24.93,Other Personal Needs,Direct sales companies
Buckinghamshire Council ,29.02.2024,28.02.2024,Deputy Chief Executive,Communities - DCE,WWW.ARGOS.CO.UK,176.95,0,176.95,Awaiting Coding,Department stores
Buckinghamshire Council ,29.02.2024,28.02.2024,Deputy Chief Executive,Communities - DCE,WWW.ARGOS.CO.UK,461.95,0,461.95,Awaiting Coding,Department stores
Buckinghamshire Council ,29.02.2024,28.02.2024,Deputy Chief Executive,Communities - DCE,AO RETAIL LIMITED,917,0,917,Awaiting Coding,Household appliance stores
Buckinghamshire Council ,29.02.2024,28.02.2024,Deputy Chief Executive,Communities - DCE,AO RETAIL LIMITED,209,0,209,Awaiting Coding,Household appliance stores
Buckinghamshire Council ,29.02.2024,28.02.2024,Deputy Chief Executive,Communities - DCE,AO RETAIL LIMITED,573,0,573,Awaiting Coding,Household appliance stores
Buckinghamshire Council ,29.02.2024,28.02.2024,Deputy Chief Executive,Communities - DCE,AO RETAIL LIMITED,842,0,842,Awaiting Coding,Household appliance stores
Buckinghamshire Council ,29.02.2024,28.02.2024,Deputy Chief Executive,Communities - DCE,AO RETAIL LIMITED,473,0,473,Awaiting Coding,Household appliance stores
Buckinghamshire Council ,29.02.2024,28.02.2024,Deputy Chief Executive,Communities - DCE,AO RETAIL LIMITED,842,0,842,Awaiting Coding,Household appliance stores
Buckinghamshire Council ,29.02.2024,28.02.2024,Deputy Chief Executive,Communities - DCE,AO RETAIL LIMITED,239,0,239,Awaiting Coding,Household appliance stores
Buckinghamshire Council ,29.02.2024,28.02.2024,Children's Services,Education & Childrens Services - CS Dir,POST OFFICE COUNTER,8.15,0,8.15,General Postage,Postal services
Buckinghamshire Council ,29.02.2024,28.02.2024,Adults and Health,Health & Wellbeing - Adults & Health Dir,AMAZON* 204-7405653-05,11.98,0,11.98,Awaiting Coding,Misc. general merchandise
Buckinghamshire Council ,29.02.2024,28.02.2024,Children's Services,Education & Childrens Services - CS Dir,TRAINLINE,91.89,0,91.89,Sec 20/31: Financial Assistance,Passenger railways
Buckinghamshire Council ,29.02.2024,28.02.2024,Communities,Partnerships - Communities,TESCO STORES 2038,20.2,0,20.2,Equipment,Grocery stores
Buckinghamshire Council ,29.02.2024,28.02.2024,"Planning, Growth & Sustainability",Leader - PGS,HIGH WYCOMBE STATION T,65.6,0,65.6,Staff Travelling Expenses,Passenger railways
Buckinghamshire Council ,29.02.2024,28.02.2024,Children's Services,Education & Childrens Services - CS Dir,AMAZON* 204-2745231-95,21.99,0,21.99,Equipment (including storage),Misc. general merchandise
Buckinghamshire Council ,29.02.2024,28.02.2024,Children's Services,Education & Childrens Services - CS Dir,ROBERT DYAS ECOM,55.94,0,55.94,Equipment (including storage),Hardware stores
Buckinghamshire Council ,29.02.2024,28.02.2024,Communities,Climate Change & Environment - Community,KAPPAD RESTAURANT,85.21,0,85.21,Recoverable Expenditure,Restaurants
Buckinghamshire Council ,29.02.2024,28.02.2024,Adults and Health,Health & Wellbeing - Adults & Health Dir,WWW.MARKALLENGROUP.COM,295,59,354,"Courses, Conference and Seminar Fees",Schools
Buckinghamshire Council ,29.02.2024,28.02.2024,Deputy Chief Executive,AH&R- DCE Dir,SUMUP  *CABS4U,16,0,16,Other Personal Needs,Taxicabs & limousines
Buckinghamshire Council ,29.02.2024,28.02.2024,Communities,Transport - Communities Dir,STOKE MANDEVILLE T/O,22.6,0,22.6,Staff Travelling Expenses,Passenger railways
Buckinghamshire Council ,29.02.2024,28.02.2024,Children's Services,Education & Childrens Services - CS Dir,REPAIR EXPERT,120,0,120,Awaiting Coding,Electronics shops
Buckinghamshire Council ,29.02.2024,28.02.2024,Children's Services,Education & Childrens Services - CS Dir,Dunelm Soft Furnishings,77.5,0,77.5,Awaiting Coding,Furniture & home furnishing
Buckinghamshire Council ,29.02.2024,28.02.2024,Children's Services,Education & Childrens Services - CS Dir,TESCO STORES 2038,126.15,0,126.15,Awaiting Coding,Grocery stores
Buckinghamshire Council ,29.02.2024,28.02.2024,Deputy Chief Executive,AH&R- DCE Dir,NEW YORK DELI GATEHOUSE,286,57.2,343.2,General Provisions (Food),Restaurants
Buckinghamshire Council ,29.02.2024,28.02.2024,Children's Services,Education & Childrens Services - CS Dir,STUDENT ROOST,845.86,0,845.86,Leaving Care - Higher Education Supp,Estate Agents & Property Management
Buckinghamshire Council ,29.02.2024,28.02.2024,Children's Services,Education & Childrens Services - CS Dir,WWW.MDX.AC.UK,"4,625.00",0,"4,625.00",Leaving Care - Higher Education Supp,Colleges & universities
Buckinghamshire Council ,29.02.2024,28.02.2024,Children's Services,Education & Childrens Services - CS Dir,AMAZON.CO.UK,275,0,275,Leaving Care - Grants for Care Leavers,Direct sales companies
Buckinghamshire Council ,29.02.2024,28.02.2024,Children's Services,Education & Childrens Services - CS Dir,CURRYS ONLINE,299,0,299,Leaving Care - Grants for Care Leavers,Electronics shops
Buckinghamshire Council ,29.02.2024,28.02.2024,Children's Services,Education & Childrens Services - CS Dir,DREAMS LTD,810,0,810,Leaving Care - Grants for Care Leavers,Furniture & home furnishing
Buckinghamshire Council ,29.02.2024,28.02.2024,"Planning, Growth & Sustainability",Housing & Homelessness & Regulatory PGS,AO RETAIL LIMITED,30,0,30,Furniture,Household appliance stores
Buckinghamshire Council ,29.02.2024,28.02.2024,Communities,Climate Change & Environment - Community,POST OFFICE COUNTER,7.35,0,7.35,General Postage,Postal services
Buckinghamshire Council ,29.02.2024,28.02.2024,Children's Services,Education & Childrens Services - CS Dir,WWW.RBKC.GOV.UK,51,0,51,Sec 20/31: Financial Assistance,"Civic, social & fraternal associations"
Buckinghamshire Council ,29.02.2024,28.02.2024,Adults and Health,Health & Wellbeing - Adults & Health Dir,TESCO STORES 2162,38.7,0,38.7,Activities & General Recreation,Grocery stores
Buckinghamshire Council ,29.02.2024,28.02.2024,Adults and Health,Health & Wellbeing - Adults & Health Dir,WM MORRISONS STORE,16.45,0,16.45,Activities & General Recreation,Grocery stores
Buckinghamshire Council ,29.02.2024,28.02.2024,"Planning, Growth & Sustainability",AH&R - PGS Dir,AMAZON* 204-8876971-06,159.99,0,159.99,Protective Clothing & Uniforms,Misc. general merchandise
Buckinghamshire Council ,29.02.2024,28.02.2024,Children's Services,Education & Childrens Services - CS Dir,AMAZON* 204-5493454-03,894.43,0,894.43,Miscellaneous (Other)  Expenses,Misc. general merchandise
Buckinghamshire Council ,29.02.2024,28.02.2024,Children's Services,Education & Childrens Services - CS Dir,AMAZON* 204-9208012-41,86.99,0,86.99,Leaving Care - Grants for Care Leavers,Misc. general merchandise
Buckinghamshire Council ,29.02.2024,27.02.2024,Children's Services,Education & Childrens Services - CS Dir,AMAZON* 204-7014918-87,35.74,0,35.74,General Provisions (Food),Misc. general merchandise
Buckinghamshire Council ,29.02.2024,27.02.2024,Children's Services,Education & Childrens Services - CS Dir,AMAZON* 204-0272214-70,67.78,0,67.78,Miscellaneous (Other)  Expenses,Misc. general merchandise
Buckinghamshire Council ,29.02.2024,27.02.2024,Children's Services,Education & Childrens Services - CS Dir,AMAZON* 204-8231250-78,12,0,12,"Books, Records, Films & Oth Publications",Misc. general merchandise
Buckinghamshire Council ,29.02.2024,27.02.2024,Adults and Health,Health & Wellbeing - Adults & Health Dir,PREMIER INN,113,0,113,Other Short Term Support,Premier Inn
Buckinghamshire Council ,29.02.2024,27.02.2024,Deputy Chief Executive,AH&R- DCE Dir,PAYPAL,85.95,0,85.95,Awaiting Coding,Variety stores
Buckinghamshire Council ,29.02.2024,27.02.2024,Resources,AH&R - Res Dir,trainline,-24.2,0,-24.2,Staff Travelling Expenses,Passenger railways
Buckinghamshire Council ,29.02.2024,27.02.2024,Deputy Chief Executive,Leader - DCE,FACEBK CPQ3KYTXS2,840,0,840,Advertising,Advertising services
Buckinghamshire Council ,29.02.2024,27.02.2024,"Planning, Growth & Sustainability",Housing & Homelessness & Regulatory PGS,HPI INSTANT INK UK,11.99,0,11.99,Stationery & Office Supplies,Electronics shops
Buckinghamshire Council ,29.02.2024,27.02.2024,"Planning, Growth & Sustainability",Planning & Regeneration - PGS,HSE - BSR,336,0,336,Reg & Exam Fees for External Courses,Government services
Buckinghamshire Council ,29.02.2024,27.02.2024,Resources,AH&R - Res Dir,trainline,45.59,0,45.59,Staff Travelling Expenses,Passenger railways
Buckinghamshire Council ,29.02.2024,27.02.2024,"Planning, Growth & Sustainability",Climate Change & Environment - PGS,HOLIDAY INN,115.53,0,115.53,"Courses, Conference and Seminar Fees","Hotels, motels & resorts"
Buckinghamshire Council ,29.02.2024,27.02.2024,"Planning, Growth & Sustainability",Climate Change & Environment - PGS,TRAVELODGE GB0000,65.64,13.12,78.76,"Courses, Conference and Seminar Fees",Travelodge
Buckinghamshire Council ,29.02.2024,27.02.2024,"Planning, Growth & Sustainability",Climate Change & Environment - PGS,TRAINLINE,73.99,0,73.99,Staff Travelling Expenses,Passenger railways
Buckinghamshire Council ,29.02.2024,27.02.2024,"Planning, Growth & Sustainability",Climate Change & Environment - PGS,TRAINLINE,73.99,0,73.99,Staff Travelling Expenses,Passenger railways
Buckinghamshire Council ,29.02.2024,27.02.2024,"Planning, Growth & Sustainability",Climate Change & Environment - PGS,LINKEDIN ADS 9941468494,12.68,0,12.68,Advertising,Advertising services
Buckinghamshire Council ,29.02.2024,27.02.2024,Adults and Health,Health & Wellbeing - Adults & Health Dir,LYRECO UK LTD,30.5,6.1,36.6,Stationery & Office Supplies,Stationery & office supplies
Buckinghamshire Council ,29.02.2024,27.02.2024,Adults and Health,Health & Wellbeing - Adults & Health Dir,LYRECO UK LTD,0.02,0,0.02,Stationery & Office Supplies,Stationery & office supplies
Buckinghamshire Council ,29.02.2024,27.02.2024,Children's Services,Education & Childrens Services - CS Dir,AMAZON.CO.UK,28,0,28,Cleaning Materials,Direct sales companies
Buckinghamshire Council ,29.02.2024,27.02.2024,Children's Services,Education & Childrens Services - CS Dir,TESCO STORES 2038,139.21,0,139.21,General Provisions (Food),Grocery stores
Buckinghamshire Council ,29.02.2024,27.02.2024,Resources,AH&R - Res Dir,AMAZON* 204-8236590-71,24.85,0,24.85,Professional Subscriptions re Employees,Misc. general merchandise
Buckinghamshire Council ,29.02.2024,27.02.2024,Resources,AH&R - Res Dir,AMAZON* 204-1529356-75,104.4,0,104.4,Computer Consumables,Misc. general merchandise
Buckinghamshire Council ,29.02.2024,27.02.2024,CC Obsolete Cost Centres,Obsolete Cost Centres,BUCKINGHAMSHIRE CNCL,44,0,44,Awaiting Coding,Government services
Buckinghamshire Council ,29.02.2024,27.02.2024,"Planning, Growth & Sustainability",Planning & Regeneration - PGS,WWW.BLOOMANDWILD.COM,55,0,55,Miscellaneous (Other)  Expenses,Florists
Buckinghamshire Council ,29.02.2024,27.02.2024,"Planning, Growth & Sustainability",Housing & Homelessness & Regulatory PGS,LAND REGISTRY ECOM CCC,3,0,3,Homelessness,Government services
Buckinghamshire Council ,29.02.2024,27.02.2024,Communities,Culture & Leisure - Communities Dir,HIGH SPEED TRAINING,37.2,0,37.2,Administrative Equipment & Tools,Schools
Buckinghamshire Council ,29.02.2024,27.02.2024,Adults and Health,Health & Wellbeing - Adults & Health Dir,HIGH STREET VOUCHERS,264.25,0,264.25,Payments To Contractors,Department stores
Buckinghamshire Council ,29.02.2024,27.02.2024,"Planning, Growth & Sustainability",AH&R - PGS Dir,AMZNMKTPLACE,16.42,0,16.42,Administrative Equipment & Tools,Miscellaneous retail
Buckinghamshire Council ,29.02.2024,27.02.2024,"Planning, Growth & Sustainability",AH&R - PGS Dir,SCREWFIX HIGH WYCOMBE CRE,84.27,0,84.27,General Repairs & Maintenance,Timber & building supplies
Buckinghamshire Council ,29.02.2024,27.02.2024,Communities,Culture & Leisure - Communities Dir,HIGH SPEED TRAINING,37.2,0,37.2,Stationery & Office Supplies,Schools
Buckinghamshire Council ,29.02.2024,27.02.2024,Children's Services,Education & Childrens Services - CS Dir,AMAZON* 204-6537658-39,8.99,0,8.99,"Books, Records, Films & Oth Publications",Misc. general merchandise
Buckinghamshire Council ,29.02.2024,27.02.2024,Children's Services,Education & Childrens Services - CS Dir,AO RETAIL LIMITED,434,0,434,Other Equipment and Materials,Household appliance stores
Buckinghamshire Council ,29.02.2024,27.02.2024,Adults and Health,Health & Wellbeing - Adults & Health Dir,BKG*HOTEL AT BOOKING.C,573.75,0,573.75,Other Short Term Support,Travel agencies
Buckinghamshire Council ,29.02.2024,27.02.2024,Children's Services,Education & Childrens Services - CS Dir,AMAZON* 204-5253985-48,304.06,0,304.06,Miscellaneous (Other)  Expenses,Misc. general merchandise
Buckinghamshire Council ,29.02.2024,27.02.2024,"Planning, Growth & Sustainability",AH&R - PGS Dir,ICELAND,12.9,0,12.9,Awaiting Coding,Grocery stores
Buckinghamshire Council ,29.02.2024,27.02.2024,Children's Services,Education & Childrens Services - CS Dir,HM PASSPORT OFFICE,82.5,0,82.5,Sec 20/31: Financial Assistance,Government services
Buckinghamshire Council ,29.02.2024,27.02.2024,Children's Services,Education & Childrens Services - CS Dir,OXFORDSHIRE CC WEB1,13.95,0,13.95,Sec 20/31: Financial Assistance,Government services
Buckinghamshire Council ,29.02.2024,27.02.2024,Children's Services,Education & Childrens Services - CS Dir,BUCKINGHAMSHIRE CNCL,11,0,11,Sec 20/31: Financial Assistance,Government services
Buckinghamshire Council ,29.02.2024,27.02.2024,Children's Services,Education & Childrens Services - CS Dir,BUCKINGHAMSHIRE CNCL,11,0,11,Sec 20/31: Financial Assistance,Government services
Buckinghamshire Council ,29.02.2024,27.02.2024,Children's Services,Education & Childrens Services - CS Dir,TESCO STORES 2041,14.18,0,14.18,Awaiting Coding,Grocery stores
Buckinghamshire Council ,29.02.2024,27.02.2024,Deputy Chief Executive,Leader - DCE,AMZNMKTPLACE,13.49,0,13.49,Events Expenditure,Miscellaneous retail
Buckinghamshire Council ,29.02.2024,27.02.2024,Children's Services,Education & Childrens Services - CS Dir,CURRYS ONLINE,205.98,0,205.98,Leaving Care - Grants for Care Leavers,Electronics shops
Buckinghamshire Council ,29.02.2024,27.02.2024,Children's Services,Education & Childrens Services - CS Dir,WWW.BEDS.CO.UK,249,0,249,Leaving Care - Grants for Care Leavers,Furniture & home furnishing
Buckinghamshire Council ,29.02.2024,27.02.2024,Children's Services,Education & Childrens Services - CS Dir,AO RETAIL LIMITED,274,0,274,Leaving Care - Grants for Care Leavers,Household appliance stores
Buckinghamshire Council ,29.02.2024,27.02.2024,Children's Services,Education & Childrens Services - CS Dir,PAYPAL,-440,0,-440,Leaving Care - Grants for Care Leavers,Variety stores
Buckinghamshire Council ,29.02.2024,27.02.2024,Children's Services,Education & Childrens Services - CS Dir,ASDA SUPERSTORE,41.15,0,41.15,General Provisions (Food),Grocery stores
Buckinghamshire Council ,29.02.2024,27.02.2024,"Planning, Growth & Sustainability",Housing & Homelessness & Regulatory PGS,TRAVELODGE GB0000,366.95,0,366.95,Bed & Breakfast,Travelodge
Buckinghamshire Council ,29.02.2024,27.02.2024,"Planning, Growth & Sustainability",Planning & Regeneration - PGS,A.L.S PRESENTATION LTD,763.25,0,763.25,Printing & Stationery,Publishing & printing services
Buckinghamshire Council ,29.02.2024,27.02.2024,"Planning, Growth & Sustainability",Planning & Regeneration - PGS,A.L.S PRESENTATION LTD,763.25,0,763.25,Printing & Stationery,Publishing & printing services
Buckinghamshire Council ,29.02.2024,27.02.2024,Children's Services,Education & Childrens Services - CS Dir,WWW.ARGOS.CO.UK,95,0,95,IT Equipment Purchase,Department stores
Buckinghamshire Council ,29.02.2024,27.02.2024,Children's Services,Education & Childrens Services - CS Dir,AMAZON PRIME,8.99,0,8.99,Stationery & Office Supplies,Continuous subscriptions
Buckinghamshire Council ,29.02.2024,27.02.2024,Deputy Chief Executive,AH&R- DCE Dir,AMAZON* 204-2474388-11,12.37,0,12.37,Awaiting Coding,Misc. general merchandise
Buckinghamshire Council ,29.02.2024,27.02.2024,Communities,Climate Change & Environment - Community,CH MORGAN,3,0,3,Professional Services (non curriculum) - External,"Architectural, engineering & surveying"
Buckinghamshire Council ,29.02.2024,27.02.2024,Children's Services,Education & Childrens Services - CS Dir,BUCKINGHAMSHIRE CNCL,70,0,70,Sec 20/31: Supp for Contact,Government services
Buckinghamshire Council ,29.02.2024,26.02.2024,"Planning, Growth & Sustainability",AH&R - PGS Dir,INSTIT OF OCCPTNL SAFE,201.6,0,201.6,"Workshop - Materials,Tools & Equipment",Membership organisations
Buckinghamshire Council ,29.02.2024,26.02.2024,Resources,AH&R - Res Dir,trainline,23.59,0,23.59,Staff Travelling Expenses,Passenger railways
Buckinghamshire Council ,29.02.2024,26.02.2024,"Planning, Growth & Sustainability",Climate Change & Environment - PGS,GRAMMARLY CO7KXRKGK,120,0,120,Computer Consumables,Computer software stores
Buckinghamshire Council ,29.02.2024,26.02.2024,Children's Services,Education & Childrens Services - CS Dir,AMZNMKTPLACE,13.99,0,13.99,Miscellaneous (Other)  Expenses,Miscellaneous retail
Buckinghamshire Council ,29.02.2024,26.02.2024,Deputy Chief Executive,Communities - DCE,AO RETAIL LIMITED,40,0,40,Other Personal Needs,Household appliance stores
Buckinghamshire Council ,29.02.2024,26.02.2024,Deputy Chief Executive,Communities - DCE,AO RETAIL LIMITED,203.33,40.67,244,Other Personal Needs,Household appliance stores
Buckinghamshire Council ,29.02.2024,26.02.2024,Communities,Culture & Leisure - Communities Dir,WOB.COM,29.9,0,29.9,"Books, Records, Films & Oth Publications","Books, periodicals & newspapers"
Buckinghamshire Council ,29.02.2024,26.02.2024,Communities,Culture & Leisure - Communities Dir,EBAY O*08-11235-80686,14.83,0,14.83,"Books, Records, Films & Oth Publications",Department stores
Buckinghamshire Council ,29.02.2024,26.02.2024,Resources,AH&R - Res Dir,CASTLE WATER,730,0,730,Awaiting Coding,Utilities
Buckinghamshire Council ,29.02.2024,26.02.2024,Resources,AH&R - Res Dir,CASTLE WATER,730.31,0,730.31,Awaiting Coding,Utilities
Buckinghamshire Council ,29.02.2024,26.02.2024,Children's Services,Education & Childrens Services - CS Dir,LONDON BOR'OF HILL,13,0,13,Sec 20/31: Financial Assistance One Off,Government services
Buckinghamshire Council ,29.02.2024,26.02.2024,"Planning, Growth & Sustainability",AH&R - PGS Dir,DB MASTER LOCKSMITH LT,337.2,0,337.2,General Repairs & Maintenance,Computer software stores
Buckinghamshire Council ,29.02.2024,26.02.2024,Children's Services,Education & Childrens Services - CS Dir,MAPLE ORTHODONTICS,124,0,124,Sec 20/31: Financial Assistance,Dentists & orthodontists
Buckinghamshire Council ,29.02.2024,26.02.2024,Deputy Chief Executive,AH&R- DCE Dir,SRA,272,0,272,Professional Subscriptions re Employees,Membership organisations
Buckinghamshire Council ,29.02.2024,26.02.2024,Children's Services,Education & Childrens Services - CS Dir,LEBARA MOBILE LIMITED,25,0,25,Computer Support Services,Computer network information services
Buckinghamshire Council ,29.02.2024,26.02.2024,"Planning, Growth & Sustainability",Planning & Regeneration - PGS,HSE - BSR,336,0,336,Reg & Exam Fees for External Courses,Government services
Buckinghamshire Council ,29.02.2024,26.02.2024,Communities,Transport - Communities Dir,AMAZON* 204-6868130-08,99.99,0,99.99,Protective Clothing & Uniforms,Misc. general merchandise
Buckinghamshire Council ,29.02.2024,26.02.2024,Communities,Transport - Communities Dir,AMZNMKTPLACE,-85.98,0,-85.98,Protective Clothing & Uniforms,Miscellaneous retail
Buckinghamshire Council ,29.02.2024,26.02.2024,Communities,Climate Change & Environment - Community,GREAT GREEN SYSTEMS,131.92,0,131.92,Awaiting Coding,Furniture & home furnishing
Buckinghamshire Council ,29.02.2024,26.02.2024,Communities,Culture & Leisure - Communities Dir,POST OFFICE COUNTER,48.75,0,48.75,General Postage,Postal services
Buckinghamshire Council ,29.02.2024,26.02.2024,Children's Services,Education & Childrens Services - CS Dir,WWW.BUCKINGHAMSHIRE.GOV,57.23,0,57.23,Leaving Care  - Financial Assistance,Government services
Buckinghamshire Council ,29.02.2024,26.02.2024,Children's Services,Education & Childrens Services - CS Dir,EBAY O*19-11228-13047,34.98,0,34.98,Leaving Care - Grants for Care Leavers,Department stores
Buckinghamshire Council ,29.02.2024,26.02.2024,Children's Services,Education & Childrens Services - CS Dir,AMAZON.CO.UK,11.98,0,11.98,Leaving Care - Grants for Care Leavers,Direct sales companies
Buckinghamshire Council ,29.02.2024,26.02.2024,Adults and Health,Health & Wellbeing - Adults & Health Dir,TESCO STORES 5135,201.05,0,201.05,General Provisions (Food),Grocery stores
Buckinghamshire Council ,29.02.2024,26.02.2024,"Planning, Growth & Sustainability",Housing & Homelessness & Regulatory PGS,AO RETAIL LIMITED,434,0,434,Furniture,Household appliance stores
Buckinghamshire Council ,29.02.2024,26.02.2024,"Planning, Growth & Sustainability",Planning & Regeneration - PGS,UBR* PENDING.UBER.COM,8.92,0,8.92,Staff Travelling Expenses,Taxicabs & limousines
Buckinghamshire Council ,29.02.2024,26.02.2024,Children's Services,Education & Childrens Services - CS Dir,AMZNMKTPLACE,212.88,0,212.88,Furniture,Miscellaneous retail
Buckinghamshire Council ,29.02.2024,26.02.2024,"Planning, Growth & Sustainability",Housing & Homelessness & Regulatory PGS,OCTOPUS ENERGY LTD,297.49,0,297.49,Gas,Utilities
Buckinghamshire Council ,29.02.2024,26.02.2024,Adults and Health,Health & Wellbeing - Adults & Health Dir,ASDA GROCERIES ONLINE,103.2,0,103.2,General Provisions (Food),Grocery stores
Buckinghamshire Council ,29.02.2024,26.02.2024,Adults and Health,Health & Wellbeing - Adults & Health Dir,ASDA GROCERIES ONLINE,-1.85,0,-1.85,General Provisions (Food),Grocery stores
Buckinghamshire Council ,29.02.2024,26.02.2024,Adults and Health,Health & Wellbeing - Adults & Health Dir,PREMIER INN,84,0,84,Other Short Term Support,Premier Inn
Buckinghamshire Council ,29.02.2024,26.02.2024,Adults and Health,Health & Wellbeing - Adults & Health Dir,PREMIER INN,390,0,390,Other Short Term Support,Premier Inn
Buckinghamshire Council ,29.02.2024,26.02.2024,Children's Services,Education & Childrens Services - CS Dir,AMAZON* 204-7962777-64,184.87,0,184.87,Consumable Supplies,Misc. general merchandise
Buckinghamshire Council ,29.02.2024,26.02.2024,Children's Services,Education & Childrens Services - CS Dir,AMAZON* 204-6416713-75,44,0,44,Activities & General Recreation,Misc. general merchandise
Buckinghamshire Council ,29.02.2024,26.02.2024,Children's Services,Education & Childrens Services - CS Dir,AMAZON* 204-0217550-87,41.65,0,41.65,Awaiting Coding,Misc. general merchandise
Buckinghamshire Council ,29.02.2024,25.02.2024,"Planning, Growth & Sustainability",Partnership Climate Change & Envir - PGS,LTT ANNUAL SUB,75,0,75,Communications,"Programming, data processing & system design"
Buckinghamshire Council ,29.02.2024,25.02.2024,"Planning, Growth & Sustainability",AH&R - PGS Dir,Prime Video Channels,3.99,0,3.99,Stationery & Office Supplies,Continuous subscriptions
Buckinghamshire Council ,29.02.2024,25.02.2024,Communities,Culture & Leisure - Communities Dir,AMZNMKTPLACE,39.54,7.91,47.45,"Workshop - Materials,Tools & Equipment",Miscellaneous retail
Buckinghamshire Council ,29.02.2024,25.02.2024,Children's Services,Education & Childrens Services - CS Dir,UBER   *TRIP,36.97,0,36.97,Leaving Care - Transport,Taxicabs & limousines
Buckinghamshire Council ,29.02.2024,25.02.2024,Children's Services,Education & Childrens Services - CS Dir,WM MORRISONS STORE,19.51,0,19.51,General Provisions (Food),Grocery stores
Buckinghamshire Council ,29.02.2024,25.02.2024,Children's Services,Education & Childrens Services - CS Dir,WM MORRISONS STORE,1.65,0,1.65,General Provisions (Food),Grocery stores
Buckinghamshire Council ,29.02.2024,25.02.2024,Children's Services,Education & Childrens Services - CS Dir,AMAZON PRIME,8.99,0,8.99,Sec 20/31: Financial Assistance,Continuous subscriptions
Buckinghamshire Council ,29.02.2024,25.02.2024,"Planning, Growth & Sustainability",Planning & Regeneration - PGS,TRAINLINE,19.74,0,19.74,Staff Travelling Expenses,Passenger railways
Buckinghamshire Council ,29.02.2024,23.02.2024,Resources,AH&R - Res Dir,PADDLE.NET* TEAMGANTT,57.81,0,57.81,Awaiting Coding,
Buckinghamshire Council ,29.02.2024,23.02.2024,Communities,Housing & Homelessness & Regulatory Comm,AMZNMKTPLACE,17.98,0,17.98,Printing & Stationery,Miscellaneous retail
Buckinghamshire Council ,29.02.2024,23.02.2024,Deputy Chief Executive,AH&R- DCE Dir,TESCO STORES 2041,51.77,0,51.77,Awaiting Coding,Grocery stores
Buckinghamshire Council ,29.02.2024,23.02.2024,Deputy Chief Executive,AH&R- DCE Dir,PAYPAL,60.95,0,60.95,Awaiting Coding,Variety stores
Buckinghamshire Council ,29.02.2024,23.02.2024,Children's Services,Education & Childrens Services - CS Dir,A1 TAXI SERVICE,420,0,420,Sec 20/31: Transport,Taxicabs & limousines
Buckinghamshire Council ,29.02.2024,23.02.2024,Deputy Chief Executive,Communities - DCE,WWW.ARGOS.CO.UK,222.45,44.49,266.94,Other Personal Needs,Department stores
Buckinghamshire Council ,29.02.2024,23.02.2024,Deputy Chief Executive,Communities - DCE,WWW.ARGOS.CO.UK,0.01,0,0.01,Other Personal Needs,Department stores
Buckinghamshire Council ,29.02.2024,23.02.2024,Deputy Chief Executive,Communities - DCE,WWW.ARGOS.CO.UK,49.12,9.83,58.95,Other Personal Needs,Department stores
Buckinghamshire Council ,29.02.2024,23.02.2024,Deputy Chief Executive,Communities - DCE,AO RETAIL LIMITED,236.66,47.34,284,Other Personal Needs,Household appliance stores
Buckinghamshire Council ,29.02.2024,23.02.2024,Deputy Chief Executive,Communities - DCE,AO RETAIL LIMITED,718.33,143.67,862,Other Personal Needs,Household appliance stores
Buckinghamshire Council ,29.02.2024,23.02.2024,Deputy Chief Executive,Communities - DCE,AO RETAIL LIMITED,381.66,76.34,458,Other Personal Needs,Household appliance stores
Buckinghamshire Council ,29.02.2024,23.02.2024,Deputy Chief Executive,Communities - DCE,AO RETAIL LIMITED,199.16,39.84,239,Other Personal Needs,Household appliance stores
Buckinghamshire Council ,29.02.2024,23.02.2024,Deputy Chief Executive,Communities - DCE,AO RETAIL LIMITED,730.83,146.17,877,Other Personal Needs,Household appliance stores
Buckinghamshire Council ,29.02.2024,23.02.2024,Resources,AH&R - Res Dir,IRRV,297,0,297,Subscriptions to National Bodies,Publishing & printing services
Buckinghamshire Council ,29.02.2024,23.02.2024,Resources,AH&R - Res Dir,AMZNMKTPLACE,84.99,0,84.99,Equipment,Miscellaneous retail
Buckinghamshire Council ,29.02.2024,23.02.2024,Children's Services,Education & Childrens Services - CS Dir,AMAZON* 204-6398914-92,24.98,0,24.98,IT Equipment Purchase,Misc. general merchandise
Buckinghamshire Council ,29.02.2024,23.02.2024,Children's Services,Education & Childrens Services - CS Dir,BUCKINGHAMSHIRE COUN MOT,11,0,11,Sec 20/31: Financial Assistance,Government services
Buckinghamshire Council ,29.02.2024,23.02.2024,Resources,AH&R - Res Dir,AMAZON* 204-2071563-35,17.2,0,17.2,Printing & Stationery,Misc. general merchandise
Buckinghamshire Council ,29.02.2024,23.02.2024,Adults and Health,Communities - Adults & Health,AMAZON* 204-0921124-88,15.99,0,15.99,Printing & Stationery,Misc. general merchandise
Buckinghamshire Council ,29.02.2024,23.02.2024,Children's Services,Education & Childrens Services - CS Dir,NEALES TAXIS LTD,60,0,60,Sec 20/31: Transport,Taxicabs & limousines
Buckinghamshire Council ,29.02.2024,23.02.2024,Children's Services,Education & Childrens Services - CS Dir,NEALES TAXIS LTD,-60,0,-60,Sec 20/31: Transport,Taxicabs & limousines
Buckinghamshire Council ,29.02.2024,23.02.2024,Children's Services,Education & Childrens Services - CS Dir,TRAVELODGE GB0000,241.24,0,241.24,Sec 17: Financial Assistance,Travelodge
Buckinghamshire Council ,29.02.2024,23.02.2024,Deputy Chief Executive,Leader - DCE,TELEGRAPH SUBSCRIPTION,14.99,0,14.99,Stationery & Office Supplies,Continuous subscriptions
Buckinghamshire Council ,29.02.2024,23.02.2024,Deputy Chief Executive,Leader - DCE,TIMES NEWSPAPERS LTD,26,0,26,"Books, Records, Films & Oth Publications","Books, periodicals & newspapers"
Buckinghamshire Council ,29.02.2024,23.02.2024,Children's Services,Education & Childrens Services - CS Dir,TAPI CARPETS,988.25,0,988.25,Leaving Care - Grants for Care Leavers,Floor covering stores
Buckinghamshire Council ,29.02.2024,23.02.2024,"Planning, Growth & Sustainability",Planning & Regeneration - PGS,TRAINLINE,16.5,0,16.5,Staff Travelling Expenses,Passenger railways
Buckinghamshire Council ,29.02.2024,23.02.2024,Children's Services,Education & Childrens Services - CS Dir,TRAINLINE,18.49,0,18.49,Sec 20/31: Supp for Contact,Passenger railways
Buckinghamshire Council ,29.02.2024,23.02.2024,Communities,Housing & Homelessness & Regulatory PGS,AMAZON* 204-3214885-69,13.38,0,13.38,Administrative Equipment & Tools,Misc. general merchandise
Buckinghamshire Council ,29.02.2024,23.02.2024,Children's Services,Education & Childrens Services - CS Dir,REDBRIDGE RADIO CARS,10,0,10,Sec 17: Transport,Taxicabs & limousines
Buckinghamshire Council ,29.02.2024,23.02.2024,Communities,Housing & Homelessness & Regulatory Comm,BT PLC BUSINESS MOTO BPAY,138.77,0,138.77,Telephones,Phone services
Buckinghamshire Council ,29.02.2024,22.02.2024,"Planning, Growth & Sustainability",Partnership Climate Change & Envir - PGS,CLAYTON HOTEL CAMBRIDGE E,224.95,0,224.95,"Courses, Conference and Seminar Fees","Hotels, motels & resorts"
Buckinghamshire Council ,29.02.2024,22.02.2024,"Planning, Growth & Sustainability",Partnership Climate Change & Envir - PGS,TRAINLINE,100.69,0,100.69,Staff Travelling Expenses,Passenger railways
Buckinghamshire Council ,29.02.2024,22.02.2024,Communities,Housing & Homelessness & Regulatory PGS,SAFETY GLOVES,21.95,4.39,26.34,Medical Supplies & Services inc Vet'nary,"Laboratory, medical & hospital equipment"
Buckinghamshire Council ,29.02.2024,22.02.2024,Communities,Housing & Homelessness & Regulatory PGS,SAFETY GLOVES,0.04,0,0.04,Medical Supplies & Services inc Vet'nary,"Laboratory, medical & hospital equipment"
Buckinghamshire Council ,29.02.2024,22.02.2024,"Planning, Growth & Sustainability",Housing & Homelessness & Regulatory PGS,THE BELL AYLESBURY,441,0,441,Homelessness,"Hotels, motels & resorts"
Buckinghamshire Council ,29.02.2024,22.02.2024,"Planning, Growth & Sustainability",Housing & Homelessness & Regulatory PGS,PREMIER INN,619,0,619,Homelessness,Premier Inn
Buckinghamshire Council ,29.02.2024,22.02.2024,CC Obsolete Cost Centres,Obsolete Cost Centres,DOXZOO,7.23,0,7.23,Printing & Stationery,Publishing & printing services
Buckinghamshire Council ,29.02.2024,22.02.2024,Children's Services,Education & Childrens Services - CS Dir,AO RETAIL LIMITED,489,0,489,Leaving Care - Grants for Care Leavers,Household appliance stores
Buckinghamshire Council ,29.02.2024,22.02.2024,Children's Services,Education & Childrens Services - CS Dir,AMAZON* 204-2124927-10,20.5,0,20.5,General Provisions (Food),Misc. general merchandise
Buckinghamshire Council ,29.02.2024,22.02.2024,Deputy Chief Executive,Communities - DCE,AO RETAIL LIMITED,747.49,149.51,897,Other Personal Needs,Household appliance stores
Buckinghamshire Council ,29.02.2024,22.02.2024,Deputy Chief Executive,Communities - DCE,AO RETAIL LIMITED,726.66,145.34,872,Other Personal Needs,Household appliance stores
Buckinghamshire Council ,29.02.2024,22.02.2024,Deputy Chief Executive,Communities - DCE,WWW.ARGOS.CO.UK,219.95,43.99,263.94,Other Personal Needs,Department stores
Buckinghamshire Council ,29.02.2024,22.02.2024,Deputy Chief Executive,Communities - DCE,WWW.ARGOS.CO.UK,0.01,0,0.01,Other Personal Needs,Department stores
Buckinghamshire Council ,29.02.2024,22.02.2024,Resources,AH&R - Res Dir,"GITHUB, INC.",3.27,0,3.27,Computer Support Services,"Programming, data processing & system design"
Buckinghamshire Council ,29.02.2024,22.02.2024,Children's Services,Education & Childrens Services - CS Dir,ALLIED VEHICLES LTD,"1,155.00",0,"1,155.00",Sec 20/31: Transport,Car rental
Buckinghamshire Council ,29.02.2024,22.02.2024,Children's Services,Education & Childrens Services - CS Dir,A1 TAXI SERVICE,"1,540.00",308,"1,848.00",Sec 20/31: Transport,Taxicabs & limousines
Buckinghamshire Council ,29.02.2024,22.02.2024,"Planning, Growth & Sustainability",AH&R - PGS Dir,SCREWFIX DIR LTD,22.96,0,22.96,General Repairs & Maintenance,Timber & building supplies
Buckinghamshire Council ,29.02.2024,22.02.2024,Adults and Health,Health & Wellbeing - Adults & Health Dir,AMAZON* 204-1862681-61,16.97,0,16.97,Health & Safety Supplies & Services,Misc. general merchandise
Buckinghamshire Council ,29.02.2024,22.02.2024,Adults and Health,Health & Wellbeing - Adults & Health Dir,AMZNMKTPLACE,11.89,0,11.89,Health & Safety Supplies & Services,Miscellaneous retail
Buckinghamshire Council ,29.02.2024,22.02.2024,Children's Services,Education & Childrens Services - CS Dir,AIRPAY 10456925-BOUNDS TA,160.45,0,160.45,Sec 20/31: Transport,Taxicabs & limousines
Buckinghamshire Council ,29.02.2024,22.02.2024,Children's Services,Education & Childrens Services - CS Dir,UTILITA ENERGY LIMITED,300,0,300,General Repairs & Maintenance,Utilities
Buckinghamshire Council ,29.02.2024,22.02.2024,"Planning, Growth & Sustainability",AH&R - PGS Dir,ASDA SUPERSTORE,14.5,0,14.5,Awaiting Coding,Grocery stores
Buckinghamshire Council ,29.02.2024,22.02.2024,Children's Services,Education & Childrens Services - CS Dir,TRAVELODGE GB0000,121.01,0,121.01,"Courses, Conference and Seminar Fees",Travelodge
Buckinghamshire Council ,29.02.2024,22.02.2024,Children's Services,Education & Childrens Services - CS Dir,AMZNMKTPLACE,19.99,0,19.99,Equipment (including storage),Miscellaneous retail
Buckinghamshire Council ,29.02.2024,22.02.2024,Communities,Culture & Leisure - Communities Dir,SAFETY FIRST,91.9,18.38,110.28,Health & Safety Supplies & Services,Men & womens clothing shops
Buckinghamshire Council ,29.02.2024,22.02.2024,Children's Services,Education & Childrens Services - CS Dir,TESCO STORES 2041,33.34,0,33.34,General Provisions (Food),Grocery stores
Buckinghamshire Council ,29.02.2024,22.02.2024,Resources,AH&R - Res Dir,AMAZON.CO.UK,0.99,0,0.99,Miscellaneous (Other)  Expenses,Miscellaneous retail
Buckinghamshire Council ,29.02.2024,22.02.2024,Resources,AH&R - Res Dir,AMAZON.CO.UK,0.99,0,0.99,Miscellaneous (Other)  Expenses,Miscellaneous retail
Buckinghamshire Council ,29.02.2024,22.02.2024,Resources,AH&R - Res Dir,AMAZON.CO.UK,-0.99,0,-0.99,Miscellaneous (Other)  Expenses,Miscellaneous retail
Buckinghamshire Council ,29.02.2024,22.02.2024,Resources,AH&R - Res Dir,AMAZON.CO.UK,-0.99,0,-0.99,Miscellaneous (Other)  Expenses,Miscellaneous retail
Buckinghamshire Council ,29.02.2024,22.02.2024,Children's Services,Education & Childrens Services - CS Dir,O2 UK,10,0,10,Telephones,Phone equipment & sales
Buckinghamshire Council ,29.02.2024,22.02.2024,Children's Services,Education & Childrens Services - CS Dir,AO RETAIL LIMITED,"1,181.00",0,"1,181.00",Leaving Care - Grants for Care Leavers,Household appliance stores
Buckinghamshire Council ,29.02.2024,22.02.2024,Children's Services,Education & Childrens Services - CS Dir,AMZNBUSINESS,25.6,5.12,30.72,Educational Equipment,Miscellaneous retail
Buckinghamshire Council ,29.02.2024,22.02.2024,Communities,Climate Change & Environment - Community,EURO CAR PARTS P,-169.98,0,-169.98,Repair & Maint of Vehicles & Plant,Automotive parts & accessories
Buckinghamshire Council ,29.02.2024,22.02.2024,Adults and Health,Health & Wellbeing - Adults & Health Dir,PREMIER INN,175,0,175,Other Short Term Support,Premier Inn
Buckinghamshire Council ,29.02.2024,22.02.2024,Communities,Housing & Homelessness & Regulatory Comm,BOOKER LTD - 38534944,222.47,0,222.47,Vending Machines Supplies,Grocery stores
Buckinghamshire Council ,29.02.2024,22.02.2024,Children's Services,Education & Childrens Services - CS Dir,AMAZON* 204-2399917-28,26.97,0,26.97,General Provisions (Food),Misc. general merchandise
Buckinghamshire Council ,29.02.2024,22.02.2024,Children's Services,Education & Childrens Services - CS Dir,AMAZON* 204-2398582-87,67.71,0,67.71,Miscellaneous (Other)  Expenses,Misc. general merchandise
Buckinghamshire Council ,29.02.2024,22.02.2024,Children's Services,Education & Childrens Services - CS Dir,AMAZON* 204-7762174-24,249,0,249,Leaving Care - Grants for Care Leavers,Misc. general merchandise
Buckinghamshire Council ,29.02.2024,21.02.2024,Children's Services,Education & Childrens Services - CS Dir,BRITISH A,147.29,0,147.29,Staff Travelling Expenses,British Airways
Buckinghamshire Council ,29.02.2024,21.02.2024,Children's Services,Education & Childrens Services - CS Dir,FENCABS,180,0,180,Sec 20/31: Transport,Taxicabs & limousines
Buckinghamshire Council ,29.02.2024,21.02.2024,"Planning, Growth & Sustainability",Housing & Homelessness & Regulatory PGS,PREMIER INN,565,0,565,Homelessness,Premier Inn
Buckinghamshire Council ,29.02.2024,21.02.2024,Children's Services,Education & Childrens Services - CS Dir,BUCKS NEW ONLINE,631,0,631,Leaving Care - Higher Education Supp,Colleges & universities
Buckinghamshire Council ,29.02.2024,21.02.2024,Children's Services,Education & Childrens Services - CS Dir,REES FOUNDATION,60,0,60,Leaving Care  - Financial Assistance,Charitable organisations
Buckinghamshire Council ,29.02.2024,21.02.2024,Deputy Chief Executive,Communities - DCE,AO RETAIL LIMITED,220,44,264,Other Personal Needs,Household appliance stores
Buckinghamshire Council ,29.02.2024,21.02.2024,Deputy Chief Executive,Communities - DCE,AO RETAIL LIMITED,307.5,61.5,369,Other Personal Needs,Household appliance stores
Buckinghamshire Council ,29.02.2024,21.02.2024,Communities,Housing & Homelessness & Regulatory PGS,BUCKINGHAMSHIRE COUNCIL,11,0,11,Burial Costs,Government services
Buckinghamshire Council ,29.02.2024,21.02.2024,Children's Services,Education & Childrens Services - CS Dir,RBK REGISTER OFFICE,11,0,11,Sec 20/31: Financial Assistance One Off,Government services
Buckinghamshire Council ,29.02.2024,21.02.2024,Children's Services,Education & Childrens Services - CS Dir,HM PASSPORT OFFICE,58.5,0,58.5,Sec 20/31: Financial Assistance One Off,Government services
Buckinghamshire Council ,29.02.2024,21.02.2024,Resources,AH&R - Res Dir,ROYAL MAIL GROUP LTD,12.65,0,12.65,General Postage,Postal services
Buckinghamshire Council ,29.02.2024,21.02.2024,Communities,Partnerships - Communities,AMZNMKTPLACE,3.98,0,3.98,Equipment,Miscellaneous retail
Buckinghamshire Council ,29.02.2024,21.02.2024,"Planning, Growth & Sustainability",AH&R - PGS Dir,SCREWFIX DIR LTD,12.99,0,12.99,General Repairs & Maintenance,Timber & building supplies
Buckinghamshire Council ,29.02.2024,21.02.2024,"Planning, Growth & Sustainability",AH&R - PGS Dir,TESCO STORES 2640,2.9,0,2.9,Awaiting Coding,Grocery stores
Buckinghamshire Council ,29.02.2024,21.02.2024,Children's Services,Education & Childrens Services - CS Dir,AMAZON* 204-9694412-96,20.97,0,20.97,Activities & General Recreation,Misc. general merchandise
Buckinghamshire Council ,29.02.2024,21.02.2024,Children's Services,Education & Childrens Services - CS Dir,AMAZON* 204-6223055-26,15.59,0,15.59,"Books, Records, Films & Oth Publications",Misc. general merchandise
Buckinghamshire Council ,29.02.2024,21.02.2024,Children's Services,Education & Childrens Services - CS Dir,AMZNMKTPLACE,51.38,0,51.38,"Books, Records, Films & Oth Publications",Miscellaneous retail
Buckinghamshire Council ,29.02.2024,21.02.2024,Children's Services,Education & Childrens Services - CS Dir,AMAZON.CO.UK,8.99,0,8.99,"Books, Records, Films & Oth Publications",Direct sales companies
Buckinghamshire Council ,29.02.2024,21.02.2024,Deputy Chief Executive,AH&R- DCE Dir,WWW.ACCOUNTS@IIA.ORG.U,234,0,234,Professional Services (non curriculum) - External,Accountants & auditors
Buckinghamshire Council ,29.02.2024,21.02.2024,Children's Services,Education & Childrens Services - CS Dir,WM MORRISONS STORE,12.34,0,12.34,General Provisions (Food),Grocery stores
Buckinghamshire Council ,29.02.2024,21.02.2024,Children's Services,Education & Childrens Services - CS Dir,AMAZON* 204-8353271-30,12.99,0,12.99,Leaving Care - Grants for Care Leavers,Misc. general merchandise
Buckinghamshire Council ,29.02.2024,21.02.2024,Children's Services,Education & Childrens Services - CS Dir,AMAZON* 204-4428693-52,296.65,0,296.65,Leaving Care - Grants for Care Leavers,Misc. general merchandise
Buckinghamshire Council ,29.02.2024,21.02.2024,Children's Services,Education & Childrens Services - CS Dir,AMAZON* 204-7458338-54,44.54,0,44.54,Leaving Care - Grants for Care Leavers,Misc. general merchandise
Buckinghamshire Council ,29.02.2024,21.02.2024,Children's Services,Education & Childrens Services - CS Dir,AMAZON* 204-4428693-52,52.55,0,52.55,Leaving Care - Grants for Care Leavers,Misc. general merchandise
Buckinghamshire Council ,29.02.2024,21.02.2024,Children's Services,Education & Childrens Services - CS Dir,AMAZON* 204-4428693-52,61.65,0,61.65,Leaving Care - Grants for Care Leavers,Misc. general merchandise
Buckinghamshire Council ,29.02.2024,21.02.2024,Children's Services,Education & Childrens Services - CS Dir,BKG*HOTEL AT BOOKING.C,70.2,0,70.2,Staff Travelling Expenses,Travel agencies
Buckinghamshire Council ,29.02.2024,21.02.2024,Communities,Climate Change & Environment - Community,AMAZON* 204-8689155-06,92.44,0,92.44,Fly Tipping Costs,Misc. general merchandise
Buckinghamshire Council ,29.02.2024,21.02.2024,Children's Services,Education & Childrens Services - CS Dir,ABSOLUTELY TEN PIN,23,0,23,YOS - Direct Work,Misc. recreational services
Buckinghamshire Council ,29.02.2024,21.02.2024,Communities,Transport - Communities Dir,B&Q LTD,31.88,0,31.88,Miscellaneous (Other)  Expenses,Timber & building supplies
Buckinghamshire Council ,29.02.2024,21.02.2024,Communities,Climate Change & Environment - Community,EURO CAR PARTS P,169.98,0,169.98,Repair & Maint of Vehicles & Plant,Automotive parts & accessories
Buckinghamshire Council ,29.02.2024,21.02.2024,Communities,Climate Change & Environment - Community,AMZNMKTPLACE,21.49,0,21.49,Equipment,Miscellaneous retail
Buckinghamshire Council ,29.02.2024,21.02.2024,Children's Services,Education & Childrens Services - CS Dir,TRAVELODGE GB0000,125.51,0,125.51,Sec 17: Accommodation,Travelodge
Buckinghamshire Council ,29.02.2024,21.02.2024,Adults and Health,Health & Wellbeing - Adults & Health Dir,AMAZON* 204-6132935-46,50.99,0,50.99,Activities & General Recreation,Misc. general merchandise
Buckinghamshire Council ,29.02.2024,21.02.2024,Adults and Health,Health & Wellbeing - Adults & Health Dir,AMAZON* 204-6579230-62,237.88,0,237.88,Activities & General Recreation,Misc. general merchandise
Buckinghamshire Council ,29.02.2024,21.02.2024,Communities,Climate Change & Environment - Community,TFL ROAD CHG-PENALTY WEB,90,0,90,Car Allowances Mileage & Lump Sum,Toll and bridge fees
Buckinghamshire Council ,29.02.2024,21.02.2024,Children's Services,Education & Childrens Services - CS Dir,PARADIGM HOUSING GROUP,127.35,0,127.35,Leaving Care - Rent,Government services
Buckinghamshire Council ,29.02.2024,21.02.2024,Children's Services,Education & Childrens Services - CS Dir,PAYPAL,786.95,0,786.95,Leaving Care - Grants for Care Leavers,Variety stores
Buckinghamshire Council ,29.02.2024,21.02.2024,Children's Services,Education & Childrens Services - CS Dir,PAYPAL,364.99,0,364.99,Leaving Care - Grants for Care Leavers,Variety stores
Buckinghamshire Council ,29.02.2024,21.02.2024,Children's Services,Education & Childrens Services - CS Dir,PAYPAL,64,0,64,Leaving Care - Grants for Care Leavers,Variety stores
Buckinghamshire Council ,29.02.2024,21.02.2024,Children's Services,Education & Childrens Services - CS Dir,PAYPAL,204.95,0,204.95,Leaving Care - Grants for Care Leavers,Variety stores
Buckinghamshire Council ,29.02.2024,20.02.2024,Children's Services,Education & Childrens Services - CS Dir,AMZNMKTPLACE,13.78,0,13.78,Equipment (including storage),Miscellaneous retail
Buckinghamshire Council ,29.02.2024,20.02.2024,Children's Services,Education & Childrens Services - CS Dir,PREMIER INN,42.5,0,42.5,"Courses, Conference and Seminar Fees",Premier Inn
Buckinghamshire Council ,29.02.2024,20.02.2024,Communities,Housing & Homelessness & Regulatory PGS,R H ENVIRONMENTAL LTD,186,37.2,223.2,"Courses, Conference and Seminar Fees",Computer software stores
Buckinghamshire Council ,29.02.2024,20.02.2024,Children's Services,Education & Childrens Services - CS Dir,MOL*HERBIES PIZZA UK LTD,16.99,0,16.99,General Provisions (Food),Fast food restaurants
Buckinghamshire Council ,29.02.2024,20.02.2024,Children's Services,Education & Childrens Services - CS Dir,POST OFFICE COUNTER,32.99,0,32.99,General Postage,Postal services
Buckinghamshire Council ,29.02.2024,20.02.2024,Deputy Chief Executive,Communities - DCE,AO RETAIL LIMITED,74,0,74,Other Personal Needs,Household appliance stores
Buckinghamshire Council ,29.02.2024,20.02.2024,Deputy Chief Executive,Communities - DCE,AO RETAIL LIMITED,743.33,148.67,892,Other Personal Needs,Household appliance stores
Buckinghamshire Council ,29.02.2024,20.02.2024,Deputy Chief Executive,Communities - DCE,AO RETAIL LIMITED,157.5,31.5,189,Other Personal Needs,Household appliance stores
Buckinghamshire Council ,29.02.2024,20.02.2024,Communities,Culture & Leisure - Communities Dir,THE READING AGENCY,174,0,174,"Books, Records, Films & Oth Publications",Typesetting & plate making
Buckinghamshire Council ,29.02.2024,20.02.2024,Communities,Culture & Leisure - Communities Dir,STARTSAFETY.UK,165.9,33.18,199.08,"Workshop - Materials,Tools & Equipment",Misc. general merchandise
Buckinghamshire Council ,29.02.2024,20.02.2024,Communities,Culture & Leisure - Communities Dir,AMAZON* 204-8147253-63,28.33,5.67,34,"Workshop - Materials,Tools & Equipment",Misc. general merchandise
Buckinghamshire Council ,29.02.2024,20.02.2024,Children's Services,Education & Childrens Services - CS Dir,A1 TAXI SERVICE,700,140,840,Sec 20/31: Transport,Taxicabs & limousines
Buckinghamshire Council ,29.02.2024,20.02.2024,Children's Services,Education & Childrens Services - CS Dir,BUCKINGHAM HOTELS,"1,890.00",0,"1,890.00",Sec 17: Accommodation,"Hotels, motels & resorts"
Buckinghamshire Council ,29.02.2024,20.02.2024,Children's Services,Education & Childrens Services - CS Dir,BUCKINGHAM HOTELS,"1,890.00",0,"1,890.00",Sec 17: Accommodation,"Hotels, motels & resorts"
Buckinghamshire Council ,29.02.2024,20.02.2024,Children's Services,Education & Childrens Services - CS Dir,TRAVELODGE GB0000,223.99,0,223.99,Sec 17: Accommodation,Travelodge
Buckinghamshire Council ,29.02.2024,20.02.2024,Resources,AH&R - Res Dir,IRRV,282,0,282,Subscriptions to National Bodies,Publishing & printing services
Buckinghamshire Council ,29.02.2024,20.02.2024,Children's Services,Education & Childrens Services - CS Dir,TRAINLINE,97.39,0,97.39,Staff Travelling Expenses,Passenger railways
Buckinghamshire Council ,29.02.2024,20.02.2024,Communities,Partnerships - Communities,MARKS&SPENCER PLC,45,0,45,Equipment,Grocery stores
Buckinghamshire Council ,29.02.2024,20.02.2024,Children's Services,Education & Childrens Services - CS Dir,COSTA COFFEE CHESHAM,5.9,0,5.9,Miscellaneous (Other)  Expenses,Fast food restaurants
Buckinghamshire Council ,29.02.2024,20.02.2024,"Planning, Growth & Sustainability",AH&R - PGS Dir,TOOLSTATION LTD,14.46,0,14.46,General Repairs & Maintenance,Timber & building supplies
Buckinghamshire Council ,29.02.2024,20.02.2024,Communities,Climate Change & Environment - Community,RATCHET STRAPS UK,55.08,0,55.08,Awaiting Coding,Hardware stores
Buckinghamshire Council ,29.02.2024,20.02.2024,Communities,Climate Change & Environment - Community,WWW.SCREWFIX.COM,24.99,0,24.99,General Repairs & Maintenance,Timber & building supplies
Buckinghamshire Council ,29.02.2024,20.02.2024,Communities,Climate Change & Environment - Community,WWW.LANDMARKTRADING.CO.U,929.14,0,929.14,Awaiting Coding,Misc commercial machines equipment
Buckinghamshire Council ,29.02.2024,20.02.2024,Communities,Climate Change & Environment - Community,WWW.GUSTHARTS.COM,209.02,0,209.02,LKD Garden Contracts,Landscape & horticultural services
Buckinghamshire Council ,29.02.2024,20.02.2024,Communities,Climate Change & Environment - Community,HATT ADVENTURES,108.96,0,108.96,Awaiting Coding,Misc. general merchandise
Buckinghamshire Council ,29.02.2024,20.02.2024,Communities,Climate Change & Environment - Community,SP SAM TURNER & SONS,420.17,0,420.17,Awaiting Coding,Misc. general merchandise
Buckinghamshire Council ,29.02.2024,20.02.2024,Communities,Climate Change & Environment - Community,SP BATTERSBY SGS,708.24,0,708.24,Seeds & Plants,Lawn & garden supply/nursery
Buckinghamshire Council ,29.02.2024,20.02.2024,Communities,Climate Change & Environment - Community,HONEY BROTHERS LTD,612.52,0,612.52,Awaiting Coding,Hardware Equipment & Suppliers
Buckinghamshire Council ,29.02.2024,20.02.2024,Communities,Climate Change & Environment - Community,WWW.GUSTHARTS.COM,422.68,0,422.68,LKD Garden Contracts,Landscape & horticultural services
Buckinghamshire Council ,29.02.2024,20.02.2024,Communities,Climate Change & Environment - Community,WWW.AGRI-GEM.CO.UK,-784.1,0,-784.1,Awaiting Coding,Misc Industrial supplies
Buckinghamshire Council ,29.02.2024,20.02.2024,Communities,Culture & Leisure - Communities Dir,LORDS OF GERARDS C,15.96,0,15.96,Stationery & Office Supplies,Hardware stores
Buckinghamshire Council ,29.02.2024,20.02.2024,Communities,Culture & Leisure - Communities Dir,WH SMITH GERRARDS CROSS,12.99,0,12.99,"Books, Records, Films & Oth Publications",Newspapers / newsagents
Buckinghamshire Council ,29.02.2024,20.02.2024,Children's Services,Education & Childrens Services - CS Dir,WICKES AYLESBURY,31,0,31,General Repairs & Maintenance,Timber & building supplies
Buckinghamshire Council ,29.02.2024,20.02.2024,Children's Services,Education & Childrens Services - CS Dir,AMAZON* 204-3345656-13,4.79,0,4.79,General Repairs & Maintenance,Misc. general merchandise
Buckinghamshire Council ,29.02.2024,20.02.2024,Adults and Health,Health & Wellbeing - Adults & Health Dir,BKG*HOTEL AT BOOKING.C,569.5,0,569.5,Other Short Term Support,Travel agencies
Buckinghamshire Council ,29.02.2024,20.02.2024,Communities,Climate Change & Environment - Community,HELLOPRINT UNITED KINGDOM,370.07,0,370.07,Photocopiers,Photocopy & reproduction services
Buckinghamshire Council ,29.02.2024,20.02.2024,Communities,Climate Change & Environment - Community,CANVA* I04067-29872552,99.99,0,99.99,Waste Prevention costs,Photographic studios
Buckinghamshire Council ,29.02.2024,20.02.2024,Children's Services,Education & Childrens Services - CS Dir,AMZNMKTPLACE,24.57,0,24.57,Equipment (including storage),Miscellaneous retail
Buckinghamshire Council ,29.02.2024,20.02.2024,Children's Services,Education & Childrens Services - CS Dir,BUCKS NEW ONLINE,"4,625.00",0,"4,625.00",Leaving Care - Higher Education Supp,Colleges & universities
Buckinghamshire Council ,29.02.2024,20.02.2024,Children's Services,Education & Childrens Services - CS Dir,AMZNMKTPLACE,53.97,0,53.97,Leaving Care - Grants for Care Leavers,Miscellaneous retail
Buckinghamshire Council ,29.02.2024,20.02.2024,"Planning, Growth & Sustainability",Housing & Homelessness & Regulatory PGS,TRAVELODGE GB0000,394.95,0,394.95,Bed & Breakfast,Travelodge
Buckinghamshire Council ,29.02.2024,20.02.2024,Children's Services,Education & Childrens Services - CS Dir,DEBENHAMS.COM,183.99,0,183.99,Furniture,Department stores
Buckinghamshire Council ,29.02.2024,20.02.2024,Children's Services,Education & Childrens Services - CS Dir,TRAINLINE,45.59,0,45.59,Staff Travelling Expenses,Passenger railways
Buckinghamshire Council ,29.02.2024,20.02.2024,Children's Services,Education & Childrens Services - CS Dir,TRAVELODGE GB0000,114.51,0,114.51,Sec 17: Accommodation,Travelodge
Buckinghamshire Council ,29.02.2024,20.02.2024,Communities,Housing & Homelessness & Regulatory Comm,BRITISH GAS,45.58,0,45.58,Gas,Utilities
Buckinghamshire Council ,29.02.2024,20.02.2024,Children's Services,Education & Childrens Services - CS Dir,TRAINLINE,-20.7,0,-20.7,Sec 20/31: Financial Assistance,Passenger railways
Buckinghamshire Council ,29.02.2024,20.02.2024,Children's Services,Education & Childrens Services - CS Dir,TRAINLINE,-66.8,0,-66.8,Sec 20/31: Supp for Contact,Passenger railways
Buckinghamshire Council ,29.02.2024,19.02.2024,"Planning, Growth & Sustainability",Planning & Regeneration - PGS,TEXTANYWHERE,75.6,0,75.6,Computer Consumables,Computer software stores
Buckinghamshire Council ,29.02.2024,19.02.2024,Children's Services,Education & Childrens Services - CS Dir,TESCO STORES 2038,153.79,0,153.79,General Provisions (Food),Grocery stores
Buckinghamshire Council ,29.02.2024,19.02.2024,Deputy Chief Executive,Communities - DCE,AO RETAIL LIMITED,726.66,145.34,872,Other Personal Needs,Household appliance stores
Buckinghamshire Council ,29.02.2024,19.02.2024,Deputy Chief Executive,Communities - DCE,AO RETAIL LIMITED,726.66,145.34,872,Other Personal Needs,Household appliance stores
Buckinghamshire Council ,29.02.2024,19.02.2024,Children's Services,Education & Childrens Services - CS Dir,PARKDEAN RESORTS H,"1,725.00",0,"1,725.00",Activities & General Recreation,Trailer parks & camp sites
Buckinghamshire Council ,29.02.2024,19.02.2024,Deputy Chief Executive,AH&R- DCE Dir,AMAZON* 204-8873681-23,29.64,0,29.64,General Allowances,Misc. general merchandise
Buckinghamshire Council ,29.02.2024,19.02.2024,Children's Services,Education & Childrens Services - CS Dir,DOMINOS PIZZA 28096,43.96,0,43.96,Activities & General Recreation,Fast food restaurants
Buckinghamshire Council ,29.02.2024,19.02.2024,Children's Services,Education & Childrens Services - CS Dir,TESCO STORES 3045,9.35,0,9.35,Activities & General Recreation,Grocery stores
Buckinghamshire Council ,29.02.2024,19.02.2024,Resources,Communities - Resources,MARKS&SPENCER PLC SACA,3.45,0,3.45,Internal Training,Grocery stores
Buckinghamshire Council ,29.02.2024,19.02.2024,Resources,Communities - Resources,NEW YORK DELI (AYLESBURY),36,0,36,Subsistence,Restaurants
Buckinghamshire Council ,29.02.2024,19.02.2024,Children's Services,Education & Childrens Services - CS Dir,OCADO,135.33,0,135.33,Awaiting Coding,Grocery stores
Buckinghamshire Council ,29.02.2024,19.02.2024,Children's Services,Education & Childrens Services - CS Dir,MIDLANDS PRINTING COMPANY,59.99,0,59.99,Printing & Stationery,Publishing & printing services
Buckinghamshire Council ,29.02.2024,19.02.2024,Children's Services,Education & Childrens Services - CS Dir,ALDI STORES,30.74,0,30.74,Educational Equipment,Grocery stores
Buckinghamshire Council ,29.02.2024,19.02.2024,Communities,Culture & Leisure - Communities Dir,TESCO STORES 2564,27.2,0,27.2,Events Expenditure,Grocery stores
Buckinghamshire Council ,29.02.2024,19.02.2024,Children's Services,Education & Childrens Services - CS Dir,AMAZON* 204-7004552-08,13.78,0,13.78,Equipment (including storage),Misc. general merchandise
Buckinghamshire Council ,29.02.2024,19.02.2024,Children's Services,Education & Childrens Services - CS Dir,AMZNMKTPLACE,13.78,0,13.78,Equipment (including storage),Miscellaneous retail
Buckinghamshire Council ,29.02.2024,19.02.2024,Children's Services,Education & Childrens Services - CS Dir,ASDA  STORES 4396,4.5,0,4.5,Equipment for Training and Mats for Ins.,Grocery stores
Buckinghamshire Council ,29.02.2024,19.02.2024,Children's Services,Education & Childrens Services - CS Dir,POSTURITE LTD,70.38,0,70.38,Consumable Supplies,Misc. home furnishing
Buckinghamshire Council ,29.02.2024,19.02.2024,Children's Services,Education & Childrens Services - CS Dir,BUCKS NEW ONLINE,"4,625.00",0,"4,625.00",Leaving Care - Higher Education Supp,Colleges & universities
Buckinghamshire Council ,29.02.2024,19.02.2024,Adults and Health,Health & Wellbeing - Adults & Health Dir,TESCO STORES 5135,243.68,0,243.68,General Provisions (Food),Grocery stores
Buckinghamshire Council ,29.02.2024,19.02.2024,Adults and Health,Health & Wellbeing - Adults & Health Dir,TESCO STORES 5135,-2.9,0,-2.9,General Provisions (Food),Grocery stores
Buckinghamshire Council ,29.02.2024,19.02.2024,Children's Services,Education & Childrens Services - CS Dir,SCOTTISH POWER,284.13,0,284.13,Sec 17: Financial Assistance,Utilities
Buckinghamshire Council ,29.02.2024,19.02.2024,Children's Services,Education & Childrens Services - CS Dir,PARKHOLIDAYS.COM,354.45,0,354.45,Activities & General Recreation,Trailer parks & camp sites
Buckinghamshire Council ,29.02.2024,19.02.2024,Communities,Climate Change & Environment - Community,B & Q 1305,8.9,0,8.9,Equipment,Home supply warehouse stores
Buckinghamshire Council ,29.02.2024,19.02.2024,Communities,Climate Change & Environment - Community,SCREWFIX DIR LTD,6.29,0,6.29,General Repairs & Maintenance,Timber & building supplies
Buckinghamshire Council ,29.02.2024,19.02.2024,Communities,Climate Change & Environment - Community,LOCK & KEY CENTRE,42,0,42,Equipment,Misc business services
Buckinghamshire Council ,29.02.2024,19.02.2024,Adults and Health,Health & Wellbeing - Adults & Health Dir,ASDA GROCERIES ONLINE,103.92,0,103.92,General Provisions (Food),Grocery stores
Buckinghamshire Council ,29.02.2024,19.02.2024,Adults and Health,Health & Wellbeing - Adults & Health Dir,ASDA GROCERIES ONLINE,-2.47,0,-2.47,General Provisions (Food),Grocery stores
Buckinghamshire Council ,29.02.2024,19.02.2024,Children's Services,Education & Childrens Services - CS Dir,TRAINLINE,23.59,0,23.59,Staff Travelling Expenses,Passenger railways
Buckinghamshire Council ,29.02.2024,19.02.2024,Children's Services,Education & Childrens Services - CS Dir,TRAVELODGE GB0000,97.51,0,97.51,Sec 17: Accommodation,Travelodge
Buckinghamshire Council ,29.02.2024,19.02.2024,Children's Services,Education & Childrens Services - CS Dir,TRAINLINE,-66.8,0,-66.8,Staff Travelling Expenses,Passenger railways
Buckinghamshire Council ,29.02.2024,19.02.2024,Children's Services,Education & Childrens Services - CS Dir,AMAZON* 204-0096811-43,288.42,0,288.42,Awaiting Coding,Misc. general merchandise
Buckinghamshire Council ,29.02.2024,18.02.2024,"Planning, Growth & Sustainability",Climate Change & Environment - PGS,TWITTER ONLINE ADS,89.85,17.97,107.82,Advertising,Advertising services
Buckinghamshire Council ,29.02.2024,18.02.2024,Communities,Culture & Leisure - Communities Dir,FACEBK WNCDXWB2A2,12.73,0,12.73,Events Expenditure,Advertising services
Buckinghamshire Council ,29.02.2024,18.02.2024,Children's Services,Education & Childrens Services - CS Dir,ORCAM UK LTD,"-1,000.00",0,"-1,000.00",Specialist Equipment,Miscellaneous retail
Buckinghamshire Council ,29.02.2024,18.02.2024,Children's Services,Education & Childrens Services - CS Dir,ORCAM UK LTD,"-1,000.00",0,"-1,000.00",Specialist Equipment,Miscellaneous retail
Buckinghamshire Council ,29.02.2024,18.02.2024,Children's Services,Education & Childrens Services - CS Dir,ORCAM UK LTD,"-1,491.60",0,"-1,491.60",Specialist Equipment,Miscellaneous retail
Buckinghamshire Council ,29.02.2024,17.02.2024,Communities,Culture & Leisure - Communities Dir,WWW.SCREWFIX.COM,27.48,5.5,32.98,"Workshop - Materials,Tools & Equipment",Timber & building supplies
Buckinghamshire Council ,29.02.2024,17.02.2024,Communities,Culture & Leisure - Communities Dir,AMAZON* 204-6353409-67,14.15,2.83,16.98,"Workshop - Materials,Tools & Equipment",Misc. general merchandise
Buckinghamshire Council ,29.02.2024,17.02.2024,Children's Services,Education & Childrens Services - CS Dir,CANVA* 04064-25156272,34.99,0,34.99,Marketing,"Commercial photo, art & graphic"
Buckinghamshire Council ,29.02.2024,17.02.2024,Deputy Chief Executive,AH&R- DCE Dir,WWW.ELECTIONSHOP.CO.UK,79.95,15.99,95.94,Stationery & Office Supplies,Publishing & printing services
Buckinghamshire Council ,29.02.2024,17.02.2024,Deputy Chief Executive,AH&R- DCE Dir,WWW.ELECTIONSHOP.CO.UK,0.01,0,0.01,Stationery & Office Supplies,Publishing & printing services
Buckinghamshire Council ,29.02.2024,17.02.2024,Resources,AH&R - Res Dir,FACEBK *JYVL3ZK4X2,101,0,101,Permanent Recruitment Costs,Advertising services
Buckinghamshire Council ,29.02.2024,16.02.2024,Communities,Housing & Homelessness & Regulatory PGS,ARCO LIMITED,135.4,27.08,162.48,Equipment,Misc Industrial supplies
Buckinghamshire Council ,29.02.2024,16.02.2024,Children's Services,Education & Childrens Services - CS Dir,THE OXFORDSHIRE TAXI COMP,432.5,0,432.5,Sec 20/31: Transport,Taxicabs & limousines
Buckinghamshire Council ,29.02.2024,16.02.2024,"Planning, Growth & Sustainability",Climate Change & Environment - PGS,TRAVELODGE GB0000,38.3,7.66,45.96,"Courses, Conference and Seminar Fees",Travelodge
Buckinghamshire Council ,29.02.2024,16.02.2024,"Planning, Growth & Sustainability",Climate Change & Environment - PGS,TRAVELODGE GB0000,0.05,0,0.05,"Courses, Conference and Seminar Fees",Travelodge
Buckinghamshire Council ,29.02.2024,16.02.2024,Deputy Chief Executive,Communities - DCE,AO RETAIL LIMITED,282.5,56.5,339,Other Personal Needs,Household appliance stores
Buckinghamshire Council ,29.02.2024,16.02.2024,Children's Services,Education & Childrens Services - CS Dir,BARLEY MOW HOTEL,45,0,45,Sec 20/31: Financial Assistance One Off,"Bars, taverns, pubs & nightclubs"
Buckinghamshire Council ,29.02.2024,16.02.2024,Communities,Climate Change & Environment - Community,ROADWARRIOR,12.31,0,12.31,Computer Support Services,"Programming, data processing & system design"
Buckinghamshire Council ,29.02.2024,16.02.2024,Adults and Health,Health & Wellbeing - Adults & Health Dir,AMZNMKTPLACE,141.69,0,141.69,Health & Safety Supplies & Services,Miscellaneous retail
Buckinghamshire Council ,29.02.2024,16.02.2024,Children's Services,Education & Childrens Services - CS Dir,TRAINLINE,36.99,0,36.99,Sec 20/31: Financial Assistance,Passenger railways
Buckinghamshire Council ,29.02.2024,16.02.2024,Resources,Communities - Resources,AMAZON* 204-9028081-06,273.69,0,273.69,Emergency Expenses,Misc. general merchandise
Buckinghamshire Council ,29.02.2024,16.02.2024,Resources,Communities - Resources,WINGRAVE CA,206.7,0,206.7,Internal Training,Membership organisations
Buckinghamshire Council ,29.02.2024,16.02.2024,Children's Services,Education & Childrens Services - CS Dir,WHSMITH.CO.UK,13.43,0,13.43,Stationery & Office Supplies,Stationery & office supplies stores
Buckinghamshire Council ,29.02.2024,16.02.2024,Children's Services,Education & Childrens Services - CS Dir,AMAZON* 204-9752650-81,319.29,0,319.29,Furniture,Misc. general merchandise
Buckinghamshire Council ,29.02.2024,16.02.2024,Resources,AH&R - Res Dir,C2E881300896D UKVI,"3,239.00",0,"3,239.00",Professional Services (non curriculum) - External,Government services
Buckinghamshire Council ,29.02.2024,16.02.2024,Communities,Transport - Communities Dir,WWW.SCREWFIX.COM,19.15,3.83,22.98,Security & Safety Supplies & Equipment,Timber & building supplies
Buckinghamshire Council ,29.02.2024,16.02.2024,Communities,Transport - Communities Dir,WWW.SCREWFIX.COM,0.01,0,0.01,Security & Safety Supplies & Equipment,Timber & building supplies
Buckinghamshire Council ,29.02.2024,16.02.2024,Communities,Culture & Leisure - Communities Dir,WWW.BUCKINGHAMSHIRE.GOV,26.55,0,26.55,Administrative Equipment & Tools,Government services
Buckinghamshire Council ,29.02.2024,16.02.2024,Children's Services,Education & Childrens Services - CS Dir,OSPREY CHARGING NETWOR,26.56,0,26.56,Car Allowances Mileage & Lump Sum,
Buckinghamshire Council ,29.02.2024,16.02.2024,"Planning, Growth & Sustainability",Housing & Homelessness & Regulatory PGS,AMAZON* 204-2252782-23,8.09,0,8.09,Stationery & Office Supplies,Misc. general merchandise
Buckinghamshire Council ,29.02.2024,16.02.2024,Resources,AH&R - Res Dir,LINKEDIN ADS 9911646714,77.57,0,77.57,Permanent Recruitment Costs,Advertising services
Buckinghamshire Council ,29.02.2024,16.02.2024,Communities,Climate Change & Environment - Community,POST OFFICE COUNTER,8.15,0,8.15,General Postage,Postal services
Buckinghamshire Council ,29.02.2024,16.02.2024,Children's Services,Education & Childrens Services - CS Dir,FIRST BUS - WEB,23.4,0,23.4,Sec 20/31: Supp for Contact,"Buses, charter & tour"
Buckinghamshire Council ,29.02.2024,16.02.2024,Children's Services,Education & Childrens Services - CS Dir,TRAINLINE,97.99,0,97.99,Staff Travelling Expenses,Passenger railways
Buckinghamshire Council ,29.02.2024,16.02.2024,Children's Services,Education & Childrens Services - CS Dir,MYTRIPBUS* REDLINE BUS,8,0,8,Sec 20/31: Supp for Contact,
Buckinghamshire Council ,29.02.2024,16.02.2024,Children's Services,Education & Childrens Services - CS Dir,MYTRIPBUS* REDLINE BUS,8,0,8,Sec 20/31: Supp for Contact,
Buckinghamshire Council ,29.02.2024,16.02.2024,Children's Services,Education & Childrens Services - CS Dir,MYTRIPBUS* REDLINE BUS,8,0,8,Sec 20/31: Supp for Contact,
Buckinghamshire Council ,29.02.2024,16.02.2024,Children's Services,Education & Childrens Services - CS Dir,TRAINLINE,-66.8,0,-66.8,Staff Travelling Expenses,Passenger railways
Buckinghamshire Council ,29.02.2024,16.02.2024,Communities,Transport - Communities Dir,POST OFFICE COUNTER,2.75,0,2.75,General Postage,Postal services
Buckinghamshire Council ,29.02.2024,16.02.2024,Communities,Housing & Homelessness & Regulatory Comm,E.ON NEXT,21.11,0,21.11,Electricity,Utilities
Buckinghamshire Council ,29.02.2024,15.02.2024,"Planning, Growth & Sustainability",Housing & Homelessness & Regulatory PGS,PREMIER INN,607,0,607,"Courses, Conference and Seminar Fees",Premier Inn
Buckinghamshire Council ,29.02.2024,15.02.2024,Children's Services,Education & Childrens Services - CS Dir,DOMINO S PIZZA,19.27,0,19.27,"Exp of School, Club & College Activities",Restaurants
Buckinghamshire Council ,29.02.2024,15.02.2024,Deputy Chief Executive,Communities - DCE,AO RETAIL LIMITED,743.33,148.67,892,Other Personal Needs,Household appliance stores
Buckinghamshire Council ,29.02.2024,15.02.2024,Communities,Housing & Homelessness & Regulatory PGS,DB MASTER LOCKSMITH LT,75,15,90,Burial Costs,Computer software stores
Buckinghamshire Council ,29.02.2024,15.02.2024,Resources,AH&R - Res Dir,RED OAK DIRECT LTD,132.21,0,132.21,Purchase of Other Items,Uniforms & commercial clothing
Buckinghamshire Council ,29.02.2024,15.02.2024,Children's Services,Education & Childrens Services - CS Dir,CURRYS BUSINESS,"1,038.95",207.79,"1,246.74",Computer Consumables,Computer software stores
Buckinghamshire Council ,29.02.2024,15.02.2024,Children's Services,Education & Childrens Services - CS Dir,CURRYS BUSINESS,0.04,0,0.04,Computer Consumables,Computer software stores
Buckinghamshire Council ,29.02.2024,15.02.2024,Children's Services,Education & Childrens Services - CS Dir,CURRYS BUSINESS,438.8,87.76,526.56,Computer Consumables,Computer software stores
Buckinghamshire Council ,29.02.2024,15.02.2024,Children's Services,Education & Childrens Services - CS Dir,CURRYS BUSINESS,0.02,0,0.02,Computer Consumables,Computer software stores
Buckinghamshire Council ,29.02.2024,15.02.2024,Children's Services,Education & Childrens Services - CS Dir,CURRYS BUSINESS,743.6,148.72,892.32,Computer Consumables,Computer software stores
Buckinghamshire Council ,29.02.2024,15.02.2024,Children's Services,Education & Childrens Services - CS Dir,CURRYS BUSINESS,0.04,0,0.04,Computer Consumables,Computer software stores
Buckinghamshire Council ,29.02.2024,15.02.2024,"Planning, Growth & Sustainability",AH&R - PGS Dir,AMAZON* 204-4026486-13,12.95,0,12.95,Awaiting Coding,Misc. general merchandise
Buckinghamshire Council ,29.02.2024,15.02.2024,"Planning, Growth & Sustainability",AH&R - PGS Dir,ASDA SUPERSTORE,14.5,0,14.5,General Provisions (Food),Grocery stores
Buckinghamshire Council ,29.02.2024,15.02.2024,Communities,Housing & Homelessness & Regulatory PGS,CLR*WWW.CIEH.ORG,55,0,55,"Courses, Conference and Seminar Fees",Membership organisations
Buckinghamshire Council ,29.02.2024,15.02.2024,Communities,Housing & Homelessness & Regulatory PGS,CLR*WWW.CIEH.ORG,55,0,55,"Courses, Conference and Seminar Fees",Membership organisations
Buckinghamshire Council ,29.02.2024,15.02.2024,Communities,Housing & Homelessness & Regulatory PGS,CLR*WWW.CIEH.ORG,55,0,55,"Courses, Conference and Seminar Fees",Membership organisations
Buckinghamshire Council ,29.02.2024,15.02.2024,Children's Services,Education & Childrens Services - CS Dir,TRAVELODGE GB0000,163.9,0,163.9,Sec 20/31: Financial Assistance,Travelodge
Buckinghamshire Council ,29.02.2024,15.02.2024,Children's Services,Education & Childrens Services - CS Dir,TRAINLINE,64.09,0,64.09,Sec 20/31: Financial Assistance,Passenger railways
Buckinghamshire Council ,29.02.2024,15.02.2024,Children's Services,Education & Childrens Services - CS Dir,AMZNMKTPLACE,176.68,0,176.68,Consumable Supplies,Miscellaneous retail
Buckinghamshire Council ,29.02.2024,15.02.2024,"Planning, Growth & Sustainability",Planning & Regeneration - PGS,VSAFETY,17.65,0,17.65,Medical Supplies & Services inc Vet'nary,"Laboratory, medical & hospital equipment"
Buckinghamshire Council ,29.02.2024,15.02.2024,Communities,Climate Change & Environment - Community,WWW.AGRI-GEM.CO.UK,784.1,0,784.1,Equipment,Misc Industrial supplies
Buckinghamshire Council ,29.02.2024,15.02.2024,Communities,Culture & Leisure - Communities Dir,AMAZON* 205-7712346-63,15.82,3.17,18.99,Events Expenditure,Misc. general merchandise
Buckinghamshire Council ,29.02.2024,15.02.2024,Children's Services,Education & Childrens Services - CS Dir,AMAZON.CO.UK,13.04,0,13.04,"Books, Records, Films & Oth Publications",Direct sales companies
Buckinghamshire Council ,29.02.2024,15.02.2024,Children's Services,Partnerships - Children's Services,WAITROSE,1.25,0,1.25,"Courses, Conference and Seminar Fees",Grocery stores
Buckinghamshire Council ,29.02.2024,15.02.2024,Communities,Climate Change & Environment - Community,SOUTH BUCKS HOSPICE,5,0,5,Waste Prevention costs,Charitable organisations
Buckinghamshire Council ,29.02.2024,15.02.2024,Children's Services,Education & Childrens Services - CS Dir,TESCO STORES 2041,40.54,0,40.54,"Exp of School, Club & College Activities",Grocery stores
Buckinghamshire Council ,29.02.2024,15.02.2024,Children's Services,Education & Childrens Services - CS Dir,LOCK & KEY CENTRE,40,0,40,Miscellaneous (Other)  Expenses,Misc business services
Buckinghamshire Council ,29.02.2024,15.02.2024,Children's Services,Education & Childrens Services - CS Dir,COSTA COFFEE 43011096,2.15,0,2.15,Subsistence,Fast food restaurants
Buckinghamshire Council ,29.02.2024,15.02.2024,Children's Services,Education & Childrens Services - CS Dir,BRACKNELL SF CONNECT,17.78,0,17.78,Car Allowances Mileage & Lump Sum,
Buckinghamshire Council ,29.02.2024,15.02.2024,Children's Services,Education & Childrens Services - CS Dir,IKEA LTD SHOP ONLINE,39,0,39,Leaving Care - Grants for Care Leavers,Furniture & home furnishing
Buckinghamshire Council ,29.02.2024,15.02.2024,Children's Services,Education & Childrens Services - CS Dir,SAFETY SIGNS 4 LESS,31.99,6.4,38.39,Health & Safety Supplies & Services,Misc commercial machines equipment
Buckinghamshire Council ,29.02.2024,15.02.2024,Children's Services,Education & Childrens Services - CS Dir,PASS  PORTABLE APPLIAN,365,73,438,Administrative Equipment & Tools,Testing labs (non-medical)
Buckinghamshire Council ,29.02.2024,15.02.2024,Children's Services,Education & Childrens Services - CS Dir,AMZNBUSINESS,105.88,21.18,127.06,Administrative Equipment & Tools,Miscellaneous retail
Buckinghamshire Council ,29.02.2024,15.02.2024,Children's Services,Education & Childrens Services - CS Dir,AMAZON* 203-7745626-71,15.25,3.05,18.3,Administrative Equipment & Tools,Misc. general merchandise
Buckinghamshire Council ,29.02.2024,15.02.2024,Children's Services,Education & Childrens Services - CS Dir,AMAZON* 203-7745626-71,1.78,0,1.78,Administrative Equipment & Tools,Misc. general merchandise
Buckinghamshire Council ,29.02.2024,15.02.2024,Children's Services,Education & Childrens Services - CS Dir,CAMPAIGN FOR LEARNING,54,10.8,64.8,Training (Inc. Health & Safety Courses),Professional services
Buckinghamshire Council ,29.02.2024,15.02.2024,Children's Services,Education & Childrens Services - CS Dir,TRAVELODGE GB0000,378.98,0,378.98,Sec 17: Accommodation,Travelodge
Buckinghamshire Council ,29.02.2024,15.02.2024,Adults and Health,Health & Wellbeing - Adults & Health Dir,TRAVELODGE GB0000,"1,270.75",0,"1,270.75",Other Short Term Support,Travelodge
Buckinghamshire Council ,29.02.2024,15.02.2024,Deputy Chief Executive,AH&R- DCE Dir,PAYPAL,49.12,9.83,58.95,Other Personal Needs,Variety stores
Buckinghamshire Council ,29.02.2024,15.02.2024,Resources,AH&R - Res Dir,FASTHOSTS,42,0,42,IT - Computer Network Charges,Computer network information services
Buckinghamshire Council ,29.02.2024,15.02.2024,Communities,Culture & Leisure - Communities Dir,AMAZON* 205-0888443-89,17.44,3.49,20.93,Events Expenditure,Misc. general merchandise
Buckinghamshire Council ,29.02.2024,15.02.2024,Children's Services,Education & Childrens Services - CS Dir,AMAZON* 204-9185087-74,337.98,0,337.98,Furniture,Misc. general merchandise
Buckinghamshire Council ,29.02.2024,14.02.2024,Children's Services,Education & Childrens Services - CS Dir,AMZNMKTPLACE,12.99,0,12.99,Other Personal Needs,Miscellaneous retail
Buckinghamshire Council ,29.02.2024,14.02.2024,"Planning, Growth & Sustainability",Housing & Homelessness & Regulatory PGS,PREMIER INN,559,0,559,Homelessness,Premier Inn
Buckinghamshire Council ,29.02.2024,14.02.2024,Communities,Culture & Leisure - Communities Dir,RINGGO PARKING,6.45,0,6.45,Staff Travelling Expenses,Car parking & garages
Buckinghamshire Council ,29.02.2024,14.02.2024,Deputy Chief Executive,AH&R- DCE Dir,DOXZOO,12.58,0,12.58,Members' Allowances - Travel & Subsist,Publishing & printing services
Buckinghamshire Council ,29.02.2024,14.02.2024,Children's Services,Education & Childrens Services - CS Dir,PETS AT HOME LTD,36.86,0,36.86,General Provisions (Food),"Pet shops, food & supply"
Buckinghamshire Council ,29.02.2024,14.02.2024,Children's Services,Education & Childrens Services - CS Dir,AMAZON PRIME,8.99,0,8.99,Stationery & Office Supplies,Continuous subscriptions
Buckinghamshire Council ,29.02.2024,14.02.2024,Deputy Chief Executive,Communities - DCE,AO RETAIL LIMITED,515,103,618,Other Personal Needs,Household appliance stores
Buckinghamshire Council ,29.02.2024,14.02.2024,Deputy Chief Executive,Communities - DCE,AO RETAIL LIMITED,839.16,167.84,"1,007.00",Other Personal Needs,Household appliance stores
Buckinghamshire Council ,29.02.2024,14.02.2024,Children's Services,Education & Childrens Services - CS Dir,TRAVELODGE GB0000,111.8,22.36,134.16,Sec 20/31: Financial Assistance One Off,Travelodge
Buckinghamshire Council ,29.02.2024,14.02.2024,Children's Services,Education & Childrens Services - CS Dir,TRAVELODGE GB0000,0.05,0,0.05,Sec 20/31: Financial Assistance One Off,Travelodge
Buckinghamshire Council ,29.02.2024,14.02.2024,Children's Services,Education & Childrens Services - CS Dir,DYSLEXIA SHOW,72,14.4,86.4,"Courses, Conference and Seminar Fees",Computer software stores
Buckinghamshire Council ,29.02.2024,14.02.2024,Children's Services,Education & Childrens Services - CS Dir,DYSLEXIA SHOW,72,14.4,86.4,"Courses, Conference and Seminar Fees",Computer software stores
Buckinghamshire Council ,29.02.2024,14.02.2024,Children's Services,Education & Childrens Services - CS Dir,POST OFFICE COUNTER,8.15,0,8.15,General Postage,Postal services
Buckinghamshire Council ,29.02.2024,14.02.2024,Communities,Climate Change & Environment - Community,DVLA DRIVERS TACHOGRAPH W,32,0,32,Awaiting Coding,Government services
Buckinghamshire Council ,29.02.2024,14.02.2024,Communities,Climate Change & Environment - Community,EURO CAR PARTS,177.6,0,177.6,Repair & Maint of Vehicles & Plant,Automotive parts & accessories
Buckinghamshire Council ,29.02.2024,14.02.2024,"Planning, Growth & Sustainability",AH&R - PGS Dir,TOOLSTATION LTD,34.88,0,34.88,General Repairs & Maintenance,Timber & building supplies
Buckinghamshire Council ,29.02.2024,14.02.2024,Communities,Housing & Homelessness & Regulatory PGS,R H ENVIRONMENTAL LTD,242,48.4,290.4,"Courses, Conference and Seminar Fees",Computer software stores
Buckinghamshire Council ,29.02.2024,14.02.2024,"Planning, Growth & Sustainability",Housing & Homelessness & Regulatory PGS,COUNTY COURT,53,0,53,Court Fees,Fines
Buckinghamshire Council ,29.02.2024,14.02.2024,"Planning, Growth & Sustainability",AH&R - PGS Dir,LAMPS - THE ELECTRICAL W,37.21,0,37.21,General Repairs & Maintenance,Electrical parts & equipment
Buckinghamshire Council ,29.02.2024,14.02.2024,Communities,Culture & Leisure - Communities Dir,ORG SUB FEE,99,0,99,Events Expenditure,Computer software stores
Buckinghamshire Council ,29.02.2024,14.02.2024,Children's Services,Education & Childrens Services - CS Dir,AMAZON.CO.UK,21.99,0,21.99,"Books, Records, Films & Oth Publications",Direct sales companies
Buckinghamshire Council ,29.02.2024,14.02.2024,Communities,Transport - Communities Dir,AMZNMKTPLACE,85.98,0,85.98,Protective Clothing & Uniforms,Miscellaneous retail
Buckinghamshire Council ,29.02.2024,14.02.2024,Children's Services,Education & Childrens Services - CS Dir,WWW.ARGOS.CO.UK,149.99,0,149.99,Other Equipment and Materials,Department stores
Buckinghamshire Council ,29.02.2024,14.02.2024,Children's Services,Education & Childrens Services - CS Dir,WWW.ARGOS.CO.UK,149.99,0,149.99,Other Equipment and Materials,Department stores
Buckinghamshire Council ,29.02.2024,14.02.2024,Children's Services,Education & Childrens Services - CS Dir,WWW.ARGOS.CO.UK,-149.99,0,-149.99,Other Equipment and Materials,Department stores
Buckinghamshire Council ,29.02.2024,14.02.2024,Adults and Health,Health & Wellbeing - Adults & Health Dir,BKG*HOTEL AT BOOKING.C,599.25,0,599.25,Other Short Term Support,Travel agencies
Buckinghamshire Council ,29.02.2024,14.02.2024,Children's Services,Education & Childrens Services - CS Dir,ODEON AYLESBURY,5.3,0,5.3,Awaiting Coding,Cinemas
Buckinghamshire Council ,29.02.2024,14.02.2024,Children's Services,Education & Childrens Services - CS Dir,MARKS&SPENCER PLC SACA,29.54,0,29.54,Awaiting Coding,Grocery stores
Buckinghamshire Council ,29.02.2024,14.02.2024,Children's Services,Education & Childrens Services - CS Dir,Flip Out,3.5,0,3.5,Awaiting Coding,Misc. recreational services
Buckinghamshire Council ,29.02.2024,14.02.2024,Children's Services,Education & Childrens Services - CS Dir,AMAZON* 204-0908898-94,43.99,0,43.99,Leaving Care - Higher Education Supp,Misc. general merchandise
Buckinghamshire Council ,29.02.2024,14.02.2024,Children's Services,Education & Childrens Services - CS Dir,WWW.SMARTR* SMARTRASPB,70,0,70,Sec 17: Childcare Assistance,Schools
Buckinghamshire Council ,29.02.2024,14.02.2024,Communities,Leader - PGS,MAILCHIMP,55.26,0,55.26,Software Support,
Buckinghamshire Council ,29.02.2024,14.02.2024,"Planning, Growth & Sustainability",Housing & Homelessness & Regulatory PGS,TRAVELODGE GB0000,352.95,0,352.95,Bed & Breakfast,Travelodge
Buckinghamshire Council ,29.02.2024,14.02.2024,Adults and Health,Health & Wellbeing - Adults & Health Dir,FAIRPRICE STORE & SLOUGH,3.29,0,3.29,General Provisions (Food),Grocery stores
Buckinghamshire Council ,29.02.2024,14.02.2024,Adults and Health,Health & Wellbeing - Adults & Health Dir,ASDA GROCERIES ONLINE,145.55,0,145.55,General Provisions (Food),Grocery stores
Buckinghamshire Council ,29.02.2024,14.02.2024,Adults and Health,Health & Wellbeing - Adults & Health Dir,ASDA GROCERIES ONLINE,-9.6,0,-9.6,General Provisions (Food),Grocery stores
Buckinghamshire Council ,29.02.2024,14.02.2024,Adults and Health,Health & Wellbeing - Adults & Health Dir,ASDA GROCERIES ONLINE,-6.6,0,-6.6,General Provisions (Food),Grocery stores
Buckinghamshire Council ,29.02.2024,14.02.2024,Children's Services,Education & Childrens Services - CS Dir,TRAINLINE,18.09,0,18.09,Sec 20/31: Supp for Contact,Passenger railways
Buckinghamshire Council ,29.02.2024,14.02.2024,Adults and Health,Health & Wellbeing - Adults & Health Dir,PREMIER INN,604,0,604,Other Short Term Support,Premier Inn
Buckinghamshire Council ,29.02.2024,14.02.2024,Communities,Housing & Homelessness & Regulatory Comm,SP UNIVOXAUDIO,154.76,0,154.76,Furniture Fittings & IT,Electronics shops
Buckinghamshire Council ,29.02.2024,14.02.2024,Communities,Partnerships - Communities,BT BUSINESS BILL,64,12.8,76.8,Telephones,Phone services
Buckinghamshire Council ,29.02.2024,14.02.2024,Communities,Partnerships - Communities,BT BUSINESS BILL,0.01,0,0.01,Telephones,Phone services
Buckinghamshire Council ,29.02.2024,14.02.2024,"Planning, Growth & Sustainability",Housing & Homelessness & Regulatory PGS,AMAZON* 204-4907453-95,79.8,0,79.8,Other General Office Expenses,Misc. general merchandise
Buckinghamshire Council ,29.02.2024,14.02.2024,Deputy Chief Executive,Communities - DCE,PAYPAL,222.45,44.49,266.94,Other Personal Needs,Variety stores
Buckinghamshire Council ,29.02.2024,14.02.2024,Deputy Chief Executive,Communities - DCE,PAYPAL,0.01,0,0.01,Other Personal Needs,Variety stores
Buckinghamshire Council ,29.02.2024,14.02.2024,Deputy Chief Executive,Communities - DCE,PAYPAL,40,8,48,Other Personal Needs,Variety stores
Buckinghamshire Council ,29.02.2024,14.02.2024,Communities,Housing & Homelessness & Regulatory Comm,RUMWOODS LTD,885.4,0,885.4,Seeds & Plants,Lawn & garden supply/nursery
Buckinghamshire Council ,29.02.2024,14.02.2024,Children's Services,Education & Childrens Services - CS Dir,MAMAS & PAPAS (DIGITAL,524,0,524,Leaving Care - Grants for Care Leavers,Children/infants shops
Buckinghamshire Council ,29.02.2024,13.02.2024,Resources,AH&R - Res Dir,OPTIMAL WORKSHOP,203.4,0,203.4,Computer Consumables,Computer software stores
Buckinghamshire Council ,29.02.2024,13.02.2024,Children's Services,Education & Childrens Services - CS Dir,WWW.PLANNING.CO,210.5,0,210.5,General Repairs & Maintenance,Misc business services
Buckinghamshire Council ,29.02.2024,13.02.2024,"Planning, Growth & Sustainability",Planning & Regeneration - PGS,HSE - BSR,336,0,336,Reg & Exam Fees for External Courses,Government services
Buckinghamshire Council ,29.02.2024,13.02.2024,Children's Services,Education & Childrens Services - CS Dir,DIRECT CARS,70,0,70,Sec 20/31: Transport,Taxicabs & limousines
Buckinghamshire Council ,29.02.2024,13.02.2024,Children's Services,Education & Childrens Services - CS Dir,CURRYS ONLINE,188.99,0,188.99,Leaving Care - Grants for Care Leavers,Electronics shops
Buckinghamshire Council ,29.02.2024,13.02.2024,Deputy Chief Executive,Communities - DCE,WWW.ARGOS.CO.UK,266.95,0,266.95,Other Personal Needs,Department stores
Buckinghamshire Council ,29.02.2024,13.02.2024,Deputy Chief Executive,Communities - DCE,WWW.ARGOS.CO.UK,214.12,42.83,256.95,Other Personal Needs,Department stores
Buckinghamshire Council ,29.02.2024,13.02.2024,Deputy Chief Executive,Communities - DCE,AO RETAIL LIMITED,574.99,115.01,690,Other Personal Needs,Household appliance stores
Buckinghamshire Council ,29.02.2024,13.02.2024,Deputy Chief Executive,Communities - DCE,AO RETAIL LIMITED,626.66,125.34,752,Other Personal Needs,Household appliance stores
Buckinghamshire Council ,29.02.2024,13.02.2024,Children's Services,Education & Childrens Services - CS Dir,SUMUP  *CABS4U,10,0,10,Sec 20/31: Financial Assistance,Taxicabs & limousines
Buckinghamshire Council ,29.02.2024,13.02.2024,Children's Services,Education & Childrens Services - CS Dir,TRAINLINE,33.29,0,33.29,Sec 20/31: Financial Assistance,Passenger railways
Buckinghamshire Council ,29.02.2024,13.02.2024,Resources,Communities - Resources,AMAZON* 204-5461615-91,265.2,0,265.2,Emergency Expenses,Misc. general merchandise
Buckinghamshire Council ,29.02.2024,13.02.2024,Communities,Housing & Homelessness & Regulatory Comm,SHELL HAZLEMERE,43.51,0,43.51,Maintenance of Grounds,Service stations
Buckinghamshire Council ,29.02.2024,13.02.2024,Children's Services,Education & Childrens Services - CS Dir,WELCOME BREAK-WARWICK SOU,19.1,0,19.1,Activities & General Recreation,Misc Food stores
Buckinghamshire Council ,29.02.2024,13.02.2024,"Planning, Growth & Sustainability",AH&R - PGS Dir,SCREWFIX DIR LTD,19.92,0,19.92,General Repairs & Maintenance,Timber & building supplies
Buckinghamshire Council ,29.02.2024,13.02.2024,Resources,Communities - Resources,WINGRAVE CA,100,0,100,Internal Training,Membership organisations
Buckinghamshire Council ,29.02.2024,13.02.2024,Communities,Transport - Communities Dir,JAYAR CAR PARTS,42.64,0,42.64,Vehicle Hire,Automotive parts & accessories
Buckinghamshire Council ,29.02.2024,13.02.2024,Communities,Transport - Communities Dir,EURO CAR PARTS P,-29.99,0,-29.99,Vehicle Hire,Automotive parts & accessories
Buckinghamshire Council ,29.02.2024,13.02.2024,Children's Services,Education & Childrens Services - CS Dir,AMAZON.CO.UK,23.9,0,23.9,Stationery & Office Supplies,Direct sales companies
Buckinghamshire Council ,29.02.2024,13.02.2024,Children's Services,Education & Childrens Services - CS Dir,AMZNMKTPLACE,-347.98,0,-347.98,Furniture,Miscellaneous retail
Buckinghamshire Council ,29.02.2024,13.02.2024,Children's Services,Education & Childrens Services - CS Dir,AFFINITY WATER CCP WEB,114.01,0,114.01,Sec 17: Financial Assistance,Utilities
Buckinghamshire Council ,29.02.2024,13.02.2024,Children's Services,Education & Childrens Services - CS Dir,AIRPAY 49659783-CABS4U,170.25,0,170.25,Staff Travelling Expenses,Taxicabs & limousines
Buckinghamshire Council ,29.02.2024,13.02.2024,Children's Services,Education & Childrens Services - CS Dir,AIRPAY 49931296-CABS4U,170.25,0,170.25,Staff Travelling Expenses,Taxicabs & limousines
Buckinghamshire Council ,29.02.2024,13.02.2024,"Planning, Growth & Sustainability",AH&R - PGS Dir,ICELAND,7.35,0,7.35,General Provisions (Food),Grocery stores
Buckinghamshire Council ,29.02.2024,13.02.2024,Children's Services,Education & Childrens Services - CS Dir,HM PASSPORT OFFICE,82.5,0,82.5,Sec 20/31: Financial Assistance,Government services
Buckinghamshire Council ,29.02.2024,13.02.2024,Children's Services,Education & Childrens Services - CS Dir,BUCKINGHAMSHIRE CNCL,11,0,11,Sec 20/31: Financial Assistance,Government services
Buckinghamshire Council ,29.02.2024,13.02.2024,Children's Services,Education & Childrens Services - CS Dir,AMZNMKTPLACE,23.99,0,23.99,Sec 20/31: Financial Assistance,Miscellaneous retail
Buckinghamshire Council ,29.02.2024,13.02.2024,Children's Services,Education & Childrens Services - CS Dir,ASDA  STORES 4396,7.72,0,7.72,General Provisions (Food),Grocery stores
Buckinghamshire Council ,29.02.2024,13.02.2024,"Planning, Growth & Sustainability",AH&R - PGS Dir,FAST KEY SERVICES LIMITED,12.4,2.48,14.88,General Repairs & Maintenance,Misc business services
Buckinghamshire Council ,29.02.2024,13.02.2024,"Planning, Growth & Sustainability",AH&R - PGS Dir,FAST KEY SERVICES LIMITED,0.01,0,0.01,General Repairs & Maintenance,Misc business services
Buckinghamshire Council ,29.02.2024,13.02.2024,Children's Services,Education & Childrens Services - CS Dir,TESCO STORES 5927,7,0,7,General Provisions (Food),Grocery stores
Buckinghamshire Council ,29.02.2024,13.02.2024,Resources,AH&R - Res Dir,COURT ENFORCEMENT SERV,238.8,0,238.8,Court Fees,Fines
Buckinghamshire Council ,29.02.2024,13.02.2024,Resources,AH&R - Res Dir,LINKEDIN ADS 9898352564,44.64,0,44.64,Permanent Recruitment Costs,Advertising services
Buckinghamshire Council ,29.02.2024,13.02.2024,Children's Services,Education & Childrens Services - CS Dir,WWW.ARGOS.CO.UK,81.95,0,81.95,Equipment (including storage),Department stores
Buckinghamshire Council ,29.02.2024,13.02.2024,Resources,AH&R - Res Dir,CLOUDFLARE,208.3,0,208.3,Computer Consumables,Computer software stores
Buckinghamshire Council ,29.02.2024,13.02.2024,Communities,Transport - Communities Dir,D J WARNER,10,0,10,Vehicle Hire,Jewellers
Buckinghamshire Council ,29.02.2024,13.02.2024,Children's Services,Education & Childrens Services - CS Dir,TRAVELODGE GB0000,122.51,0,122.51,Sec 17: Accommodation,Travelodge
Buckinghamshire Council ,29.02.2024,13.02.2024,Children's Services,Education & Childrens Services - CS Dir,AMAZON* 205-1295944-64,159.99,0,159.99,Leaving Care - Grants for Care Leavers,Misc. general merchandise
Buckinghamshire Council ,29.02.2024,13.02.2024,"Planning, Growth & Sustainability",Planning & Regeneration - PGS,AMAZON* 204-1675870-98,26.89,0,26.89,Stationery & Office Supplies,Misc. general merchandise
Buckinghamshire Council ,29.02.2024,12.02.2024,Children's Services,Education & Childrens Services - CS Dir,AMZNMKTPLACE,34.96,7,41.96,Training Materials,Miscellaneous retail
Buckinghamshire Council ,29.02.2024,12.02.2024,"Planning, Growth & Sustainability",Partnership Climate Change & Envir - PGS,TRAINLINE,60.79,0,60.79,Staff Travelling Expenses,Passenger railways
Buckinghamshire Council ,29.02.2024,12.02.2024,"Planning, Growth & Sustainability",Partnership Climate Change & Envir - PGS,TRAINLINE,122.49,0,122.49,Staff Travelling Expenses,Passenger railways
Buckinghamshire Council ,29.02.2024,12.02.2024,Children's Services,Education & Childrens Services - CS Dir,THE OXFORDSHIRE TAXI COMP,645,0,645,Sec 20/31: Transport,Taxicabs & limousines
Buckinghamshire Council ,29.02.2024,12.02.2024,"Planning, Growth & Sustainability",Housing & Homelessness & Regulatory PGS,LAND REGISTRY ECOM CCC,3,0,3,Homelessness,Government services
Buckinghamshire Council ,29.02.2024,12.02.2024,"Planning, Growth & Sustainability",Housing & Homelessness & Regulatory PGS,LAND REGISTRY ECOM CCC,3,0,3,Homelessness,Government services
Buckinghamshire Council ,29.02.2024,12.02.2024,Children's Services,Education & Childrens Services - CS Dir,STARBUCKS AYLESBURY,8.05,0,8.05,"Exp of School, Club & College Activities",
Buckinghamshire Council ,29.02.2024,12.02.2024,Children's Services,Education & Childrens Services - CS Dir,DOMINO S PIZZA,44.77,0,44.77,"Exp of School, Club & College Activities",Restaurants
Buckinghamshire Council ,29.02.2024,12.02.2024,Deputy Chief Executive,Communities - DCE,A W SMITH & PARTNER,115,0,115,Other Personal Needs,Hardware stores
Buckinghamshire Council ,29.02.2024,12.02.2024,Deputy Chief Executive,Communities - DCE,WWW.ARGOS.CO.UK,222.45,44.49,266.94,Other Personal Needs,Department stores
Buckinghamshire Council ,29.02.2024,12.02.2024,Deputy Chief Executive,Communities - DCE,WWW.ARGOS.CO.UK,0.01,0,0.01,Other Personal Needs,Department stores
Buckinghamshire Council ,29.02.2024,12.02.2024,Deputy Chief Executive,Communities - DCE,AO RETAIL LIMITED,611.66,122.34,734,Other Personal Needs,Household appliance stores
Buckinghamshire Council ,29.02.2024,12.02.2024,Deputy Chief Executive,Communities - DCE,AO RETAIL LIMITED,752.49,150.51,903,Other Personal Needs,Household appliance stores
Buckinghamshire Council ,29.02.2024,12.02.2024,Communities,Culture & Leisure - Communities Dir,AMAZON* 204-0221526-02,4.12,0.83,4.95,"Workshop - Materials,Tools & Equipment",Misc. general merchandise
Buckinghamshire Council ,29.02.2024,12.02.2024,Deputy Chief Executive,Communities - DCE,WWW.ARGOS.CO.UK,-140,0,-140,Other Personal Needs,Department stores
Buckinghamshire Council ,29.02.2024,12.02.2024,Resources,AH&R - Res Dir,SIEVEMK GATEWAY,150,0,150,Subscriptions to National Bodies,Schools
Buckinghamshire Council ,29.02.2024,12.02.2024,Children's Services,Education & Childrens Services - CS Dir,CO-OP GROUP FOOD,4.95,0,4.95,Miscellaneous (Other)  Expenses,Grocery stores
Buckinghamshire Council ,29.02.2024,12.02.2024,"Planning, Growth & Sustainability",AH&R - PGS Dir,AMAZON* 204-4324385-34,3.19,0,3.19,Other Equipment and Materials,Misc. general merchandise
Buckinghamshire Council ,29.02.2024,12.02.2024,Children's Services,Education & Childrens Services - CS Dir,MAILCHIMP,276.07,0,276.07,Service Development,
Buckinghamshire Council ,29.02.2024,12.02.2024,Communities,Culture & Leisure - Communities Dir,TIMPSON LTD,27,0,27,Administrative Equipment & Tools,Miscellaneous retail
Buckinghamshire Council ,29.02.2024,12.02.2024,Children's Services,Education & Childrens Services - CS Dir,OCADO,183.71,0,183.71,General Provisions (Food),Grocery stores
Buckinghamshire Council ,29.02.2024,12.02.2024,Children's Services,Partnerships - Children's Services,WAITROSE,2.75,0,2.75,"Courses, Conference and Seminar Fees",Grocery stores
Buckinghamshire Council ,29.02.2024,12.02.2024,Children's Services,Education & Childrens Services - CS Dir,WM MORRISONS STORE,27.41,0,27.41,General Provisions (Food),Grocery stores
Buckinghamshire Council ,29.02.2024,12.02.2024,Communities,Culture & Leisure - Communities Dir,ST JOHN AMBULANCE,576,115.2,691.2,"Courses, Conference and Seminar Fees",Charitable organisations
Buckinghamshire Council ,29.02.2024,12.02.2024,Children's Services,Education & Childrens Services - CS Dir,STARBUCKS,5.05,0,5.05,Subsistence,Fast food restaurants
Buckinghamshire Council ,29.02.2024,12.02.2024,Children's Services,Education & Childrens Services - CS Dir,TRAINLINE,69.94,0,69.94,Court Orders Sec 31: Supp. for Contact,Passenger railways
Buckinghamshire Council ,29.02.2024,12.02.2024,Children's Services,Education & Childrens Services - CS Dir,SHELL EV CHARGING SOLUTIO,27,0,27,Car Allowances Mileage & Lump Sum,
Buckinghamshire Council ,29.02.2024,12.02.2024,Adults and Health,Health & Wellbeing - Adults & Health Dir,TESCO STORES 5135,64.8,0,64.8,General Provisions (Food),Grocery stores
Buckinghamshire Council ,29.02.2024,12.02.2024,Children's Services,Education & Childrens Services - CS Dir,ODEON CINEMAS,28.98,0,28.98,Activities & General Recreation,Cinemas
Buckinghamshire Council ,29.02.2024,12.02.2024,Adults and Health,Health & Wellbeing - Adults & Health Dir,ASDA GROCERIES ONLINE,98.77,0,98.77,General Provisions (Food),Grocery stores
Buckinghamshire Council ,29.02.2024,12.02.2024,Adults and Health,Health & Wellbeing - Adults & Health Dir,ASDA GROCERIES ONLINE,-1,0,-1,General Provisions (Food),Grocery stores
Buckinghamshire Council ,29.02.2024,12.02.2024,Children's Services,Education & Childrens Services - CS Dir,ARRIVA UK BUS,4,0,4,Sec 20/31: Supp for Contact,"Buses, charter & tour"
Buckinghamshire Council ,29.02.2024,12.02.2024,Children's Services,Education & Childrens Services - CS Dir,FIRST BUS - WEB,7.8,0,7.8,Sec 20/31: Supp for Contact,"Buses, charter & tour"
Buckinghamshire Council ,29.02.2024,12.02.2024,Children's Services,Education & Childrens Services - CS Dir,TRAINLINE,23.59,0,23.59,Sec 20/31: Supp for Contact,Passenger railways
Buckinghamshire Council ,29.02.2024,12.02.2024,Communities,Transport - Communities Dir,THE RANGE,4.98,0,4.98,Materials,Department stores
Buckinghamshire Council ,29.02.2024,12.02.2024,Adults and Health,Health & Wellbeing - Adults & Health Dir,TRAVELODGE GB0000,522.98,0,522.98,Other Short Term Support,Travelodge
Buckinghamshire Council ,29.02.2024,12.02.2024,Deputy Chief Executive,Communities - DCE,PAYPAL,222.45,44.49,266.94,Other Personal Needs,Variety stores
Buckinghamshire Council ,29.02.2024,12.02.2024,Deputy Chief Executive,Communities - DCE,PAYPAL,0.01,0,0.01,Other Personal Needs,Variety stores
Buckinghamshire Council ,29.02.2024,12.02.2024,Deputy Chief Executive,Communities - DCE,PAYPAL,40,8,48,Other Personal Needs,Variety stores
Buckinghamshire Council ,29.02.2024,11.02.2024,Deputy Chief Executive,AH&R- DCE Dir,PAYPAL,-9,0,-9,Miscellaneous (Other)  Expenses,Variety stores
Buckinghamshire Council ,29.02.2024,11.02.2024,Resources,AH&R - Res Dir,FASTHOSTS,7.2,0,7.2,IT - Computer Network Charges,Computer network information services
Buckinghamshire Council ,29.02.2024,10.02.2024,Communities,Culture & Leisure - Communities Dir,SP PRO-COUSTIX SHOP,70.8,14.16,84.96,"Workshop - Materials,Tools & Equipment","Hobby, toy & game shops"
Buckinghamshire Council ,29.02.2024,10.02.2024,Communities,Culture & Leisure - Communities Dir,SP PRO-COUSTIX SHOP,0.02,0,0.02,"Workshop - Materials,Tools & Equipment","Hobby, toy & game shops"
Buckinghamshire Council ,29.02.2024,10.02.2024,Children's Services,Education & Childrens Services - CS Dir,BUCKINGHAMSHIRE CNCL,-11,0,-11,Sec 20/31: Financial Assistance,Government services
Buckinghamshire Council ,29.02.2024,10.02.2024,Communities,Culture & Leisure - Communities Dir,FACEBK CD5AAWTJB2,4.39,0,4.39,Advertising,Advertising services
Buckinghamshire Council ,29.02.2024,10.02.2024,Children's Services,Education & Childrens Services - CS Dir,AMAZON PRIME,8.99,0,8.99,Miscellaneous (Other)  Expenses,Continuous subscriptions
Buckinghamshire Council ,29.02.2024,10.02.2024,Children's Services,Education & Childrens Services - CS Dir,WM MORRISONS STORE,12.93,0,12.93,General Provisions (Food),Grocery stores
Buckinghamshire Council ,29.02.2024,10.02.2024,Children's Services,Education & Childrens Services - CS Dir,TESCO STORES 2041,64.5,0,64.5,Awaiting Coding,Grocery stores
Buckinghamshire Council ,29.02.2024,10.02.2024,Deputy Chief Executive,AH&R- DCE Dir,NEALE'S TAXIS LIMI,9,0,9,Staff Travelling Expenses,Taxicabs & limousines
Buckinghamshire Council ,29.02.2024,10.02.2024,Deputy Chief Executive,AH&R- DCE Dir,NEALES TAXIS LTD,9,0,9,Staff Travelling Expenses,Taxicabs & limousines
Buckinghamshire Council ,29.02.2024,10.02.2024,Resources,AH&R - Res Dir,LINKEDIN ADS 9887737304,92.82,0,92.82,Permanent Recruitment Costs,Advertising services
Buckinghamshire Council ,29.02.2024,10.02.2024,"Planning, Growth & Sustainability",Housing & Homelessness & Regulatory PGS,HPI INSTANT INK UK,4.49,0,4.49,Furniture,Electronics shops
Buckinghamshire Council ,29.02.2024,09.02.2024,Children's Services,Education & Childrens Services - CS Dir,GROUND SKIP,328.2,0,328.2,Sec 20/31: Transport,Utilities
Buckinghamshire Council ,29.02.2024,09.02.2024,Communities,Housing & Homelessness & Regulatory PGS,KENT SCIENTIFIC SERVIC,38.35,7.67,46.02,Sampling Costs,Government services
Buckinghamshire Council ,29.02.2024,09.02.2024,Communities,Housing & Homelessness & Regulatory PGS,KENT SCIENTIFIC SERVIC,0.02,0,0.02,Sampling Costs,Government services
Buckinghamshire Council ,29.02.2024,09.02.2024,Deputy Chief Executive,Leader - DCE,AMAZON* 204-9248491-31,37.67,0,37.67,Purchase.of Refreshments and Food,Misc. general merchandise
Buckinghamshire Council ,29.02.2024,09.02.2024,"Planning, Growth & Sustainability",Housing & Homelessness & Regulatory PGS,LAND REGISTRY ECOM CCC,3,0,3,Homelessness,Government services
Buckinghamshire Council ,29.02.2024,09.02.2024,"Planning, Growth & Sustainability",Housing & Homelessness & Regulatory PGS,LAND REGISTRY ECOM CCC,3,0,3,Homelessness,Government services
Buckinghamshire Council ,29.02.2024,09.02.2024,Children's Services,Education & Childrens Services - CS Dir,SLOUGH B/C ATP,44,0,44,Sec 17: Specialist Services,Government services
Buckinghamshire Council ,29.02.2024,09.02.2024,"Planning, Growth & Sustainability",Climate Change & Environment - PGS,FACEBK FHJK9WTGB2,18.59,0,18.59,Advertising,Advertising services
Buckinghamshire Council ,29.02.2024,09.02.2024,Children's Services,Education & Childrens Services - CS Dir,WWW.BUCKINGHAMSHIRE.GOV,"1,668.05",0,"1,668.05",Sec 17: Financial Assistance,Government services
Buckinghamshire Council ,29.02.2024,09.02.2024,Children's Services,Education & Childrens Services - CS Dir,DVLA DRIVER ONLINE,34,0,34,Leaving Care  - Financial Assistance,Government services
Buckinghamshire Council ,29.02.2024,09.02.2024,Deputy Chief Executive,Communities - DCE,WWW.ARGOS.CO.UK,139.95,27.99,167.94,Other Personal Needs,Department stores
Buckinghamshire Council ,29.02.2024,09.02.2024,Deputy Chief Executive,Communities - DCE,WWW.ARGOS.CO.UK,0.01,0,0.01,Other Personal Needs,Department stores
Buckinghamshire Council ,29.02.2024,09.02.2024,Deputy Chief Executive,Communities - DCE,AO RETAIL LIMITED,510.83,102.17,613,Other Personal Needs,Household appliance stores
Buckinghamshire Council ,29.02.2024,09.02.2024,Deputy Chief Executive,Communities - DCE,AO RETAIL LIMITED,734.99,147.01,882,Other Personal Needs,Household appliance stores
Buckinghamshire Council ,29.02.2024,09.02.2024,Resources,AH&R - Res Dir,FASTHOSTS,8.99,0,8.99,IT - Computer Network Charges,Computer network information services
Buckinghamshire Council ,29.02.2024,09.02.2024,Resources,AH&R - Res Dir,FASTHOSTS,17.98,0,17.98,IT - Computer Network Charges,Computer network information services
Buckinghamshire Council ,29.02.2024,09.02.2024,Resources,AH&R - Res Dir,FASTHOSTS,44.94,0,44.94,IT - Computer Network Charges,Computer network information services
Buckinghamshire Council ,29.02.2024,09.02.2024,Children's Services,Education & Childrens Services - CS Dir,CURRYS BUSINESS,308.8,61.76,370.56,Computer Consumables,Computer software stores
Buckinghamshire Council ,29.02.2024,09.02.2024,Children's Services,Education & Childrens Services - CS Dir,CURRYS BUSINESS,0.02,0,0.02,Computer Consumables,Computer software stores
Buckinghamshire Council ,29.02.2024,09.02.2024,Children's Services,Education & Childrens Services - CS Dir,CURRYS BUSINESS,682.95,136.59,819.54,Computer Consumables,Computer software stores
Buckinghamshire Council ,29.02.2024,09.02.2024,Children's Services,Education & Childrens Services - CS Dir,CURRYS BUSINESS,0.02,0,0.02,Computer Consumables,Computer software stores
Buckinghamshire Council ,29.02.2024,09.02.2024,Children's Services,Education & Childrens Services - CS Dir,CURRYS BUSINESS,36.95,7.39,44.34,Computer Consumables,Computer software stores
Buckinghamshire Council ,29.02.2024,09.02.2024,Children's Services,Education & Childrens Services - CS Dir,CURRYS BUSINESS,0.03,0,0.03,Computer Consumables,Computer software stores
Buckinghamshire Council ,29.02.2024,09.02.2024,Children's Services,Education & Childrens Services - CS Dir,WWW.REALGROUP.CO.UK,117.35,23.47,140.82,Training Materials,Vocational & trade schools
Buckinghamshire Council ,29.02.2024,09.02.2024,Children's Services,Education & Childrens Services - CS Dir,WWW.REALGROUP.CO.UK,0.02,0,0.02,Training Materials,Vocational & trade schools
Buckinghamshire Council ,29.02.2024,09.02.2024,Children's Services,Education & Childrens Services - CS Dir,BUCKINGHAM HOTELS,"1,890.00",0,"1,890.00",Sec 17: Accommodation,"Hotels, motels & resorts"
Buckinghamshire Council ,29.02.2024,09.02.2024,Children's Services,Education & Childrens Services - CS Dir,BUCKINGHAM HOTELS,"1,890.00",0,"1,890.00",Sec 17: Accommodation,"Hotels, motels & resorts"
Buckinghamshire Council ,29.02.2024,09.02.2024,Resources,AH&R - Res Dir,ROYAL MAIL GROUP LTD,12.65,0,12.65,General Postage,Postal services
Buckinghamshire Council ,29.02.2024,09.02.2024,Children's Services,Education & Childrens Services - CS Dir,TRAINLINE,130.19,0,130.19,Sec 20/31: Financial Assistance,Passenger railways
Buckinghamshire Council ,29.02.2024,09.02.2024,Children's Services,Education & Childrens Services - CS Dir,BT BUSINESS BILL,99.42,0,99.42,Telephones,Phone services
Buckinghamshire Council ,29.02.2024,09.02.2024,Children's Services,Education & Childrens Services - CS Dir,PREMIER INN,55,0,55,Sec 17: Accommodation,Premier Inn
Buckinghamshire Council ,29.02.2024,09.02.2024,"Planning, Growth & Sustainability",AH&R - PGS Dir,WICKES AYLESBURY,3.5,0,3.5,General Repairs & Maintenance,Timber & building supplies
Buckinghamshire Council ,29.02.2024,09.02.2024,Communities,Culture & Leisure - Communities Dir,TESCO STORES 2564,4.2,0,4.2,Administrative Equipment & Tools,Grocery stores
Buckinghamshire Council ,29.02.2024,09.02.2024,Communities,Culture & Leisure - Communities Dir,LORDS OF GERARDS C,8.99,0,8.99,Administrative Equipment & Tools,Hardware stores
Buckinghamshire Council ,29.02.2024,09.02.2024,Communities,Culture & Leisure - Communities Dir,TIMPSON LTD,13.5,0,13.5,Administrative Equipment & Tools,Miscellaneous retail
Buckinghamshire Council ,29.02.2024,09.02.2024,"Planning, Growth & Sustainability",AH&R - PGS Dir,EDMUNDSON ELECTRICAL,18.38,0,18.38,Other Equipment and Materials,Electrical parts & equipment
Buckinghamshire Council ,29.02.2024,09.02.2024,Children's Services,Education & Childrens Services - CS Dir,TENDER SLEE,219,0,219,Equipment (including storage),Furniture & home furnishing
Buckinghamshire Council ,29.02.2024,09.02.2024,Children's Services,Education & Childrens Services - CS Dir,MAILCHIMP,47.91,0,47.91,Computer Consumables,
Buckinghamshire Council ,29.02.2024,09.02.2024,Communities,Transport - Communities Dir,AMAZON* 204-1356456-42,333.31,0,333.31,Miscellaneous (Other)  Expenses,Misc. general merchandise
Buckinghamshire Council ,29.02.2024,09.02.2024,Communities,Transport - Communities Dir,WWW.ASTRINGO.CO.UK,358.8,0,358.8,Miscellaneous (Other)  Expenses,Electronics shops
Buckinghamshire Council ,29.02.2024,09.02.2024,Children's Services,Education & Childrens Services - CS Dir,EB *ATTACHMENT AWARE S,170,0,170,"Courses, Conference and Seminar Fees",Misc business services
Buckinghamshire Council ,29.02.2024,09.02.2024,Children's Services,Education & Childrens Services - CS Dir,ASDA GROCERIES ONLINE,79.7,0,79.7,General Provisions (Food),Grocery stores
Buckinghamshire Council ,29.02.2024,09.02.2024,Children's Services,Education & Childrens Services - CS Dir,ASDA GROCERIES ONLINE,-0.75,0,-0.75,General Provisions (Food),Grocery stores
Buckinghamshire Council ,29.02.2024,09.02.2024,Children's Services,Education & Childrens Services - CS Dir,ASDA GROCERIES ONLINE,-3,0,-3,General Provisions (Food),Grocery stores
Buckinghamshire Council ,29.02.2024,09.02.2024,Adults and Health,Health & Wellbeing - Adults & Health Dir,TRAVELODGE GB0000,"1,536.72",0,"1,536.72",Other Short Term Support,Travelodge
Buckinghamshire Council ,29.02.2024,09.02.2024,Communities,Climate Change & Environment - Community,HELLOPRINT UNITED KINGDOM,32.24,0,32.24,Photocopiers,Photocopy & reproduction services
Buckinghamshire Council ,29.02.2024,09.02.2024,"Planning, Growth & Sustainability",AH&R - PGS Dir,LYRECO UK LTD,60.9,12.18,73.08,Stationery & Office Supplies,Stationery & office supplies
Buckinghamshire Council ,29.02.2024,09.02.2024,Communities,Partnerships - Communities,Mailchimp,25.25,0,25.25,Awaiting Coding,
Buckinghamshire Council ,29.02.2024,09.02.2024,Children's Services,Education & Childrens Services - CS Dir,AMZNMKTPLACE,33.36,0,33.36,Equipment (including storage),Miscellaneous retail
Buckinghamshire Council ,29.02.2024,09.02.2024,Children's Services,Education & Childrens Services - CS Dir,WARNER BROS. STUDIOS LEAV,53.5,0,53.5,Activities & General Recreation,Tourist attractions and exhibitions
Buckinghamshire Council ,29.02.2024,09.02.2024,Children's Services,Education & Childrens Services - CS Dir,TRAINLINE,232.89,0,232.89,Sec 20/31: Supp for Contact,Passenger railways
Buckinghamshire Council ,29.02.2024,09.02.2024,Children's Services,Education & Childrens Services - CS Dir,FIRST BUS - WEB,15.6,0,15.6,Sec 20/31: Supp for Contact,"Buses, charter & tour"
Buckinghamshire Council ,29.02.2024,09.02.2024,Children's Services,Education & Childrens Services - CS Dir,MYTRIPBUS* REDLINE BUS,8,0,8,Sec 20/31: Supp for Contact,
Buckinghamshire Council ,29.02.2024,09.02.2024,Children's Services,Education & Childrens Services - CS Dir,MYTRIPBUS* REDLINE BUS,8,0,8,Sec 20/31: Supp for Contact,
Buckinghamshire Council ,29.02.2024,09.02.2024,Communities,Communities - Trading Accounts,DVLA VEHICLE TAX,320,0,320,Vehicle Taxation Costs,Tax payments
Buckinghamshire Council ,29.02.2024,09.02.2024,Communities,Communities - Trading Accounts,DVLA VEHICLE TAX,180,0,180,Vehicle Taxation Costs,Tax payments
Buckinghamshire Council ,29.02.2024,09.02.2024,Communities,Communities - Trading Accounts,DVLA VEHICLE TAX,180,0,180,Vehicle Taxation Costs,Tax payments
Buckinghamshire Council ,29.02.2024,09.02.2024,Communities,Communities - Trading Accounts,DVLA VEHICLE TAX,180,0,180,Vehicle Taxation Costs,Tax payments
Buckinghamshire Council ,29.02.2024,09.02.2024,Communities,Communities - Trading Accounts,DVLA VEHICLE TAX,165,0,165,Vehicle Taxation Costs,Tax payments
Buckinghamshire Council ,29.02.2024,09.02.2024,Communities,Communities - Trading Accounts,DVLA VEHICLE TAX,165,0,165,Vehicle Taxation Costs,Tax payments
Buckinghamshire Council ,29.02.2024,09.02.2024,Communities,Communities - Trading Accounts,DVLA VEHICLE TAX,320,0,320,Vehicle Taxation Costs,Tax payments
Buckinghamshire Council ,29.02.2024,09.02.2024,Communities,Communities - Trading Accounts,DVLA VEHICLE TAX,320,0,320,Vehicle Taxation Costs,Tax payments
Buckinghamshire Council ,29.02.2024,09.02.2024,Communities,Communities - Trading Accounts,DVLA VEHICLE TAX,320,0,320,Vehicle Taxation Costs,Tax payments
Buckinghamshire Council ,29.02.2024,09.02.2024,Communities,Communities - Trading Accounts,DVLA VEHICLE TAX,165,0,165,Vehicle Taxation Costs,Tax payments
Buckinghamshire Council ,29.02.2024,09.02.2024,Communities,Communities - Trading Accounts,DVLA VEHICLE TAX,320,0,320,Vehicle Taxation Costs,Tax payments
Buckinghamshire Council ,29.02.2024,09.02.2024,Children's Services,Education & Childrens Services - CS Dir,TRAVELODGE GB0000,560.47,0,560.47,Sec 17: Accommodation,Travelodge
Buckinghamshire Council ,29.02.2024,09.02.2024,Children's Services,Education & Childrens Services - CS Dir,PARADIGM HOUSING GROUP,692.27,0,692.27,Leaving Care - Rent,Government services
Buckinghamshire Council ,29.02.2024,08.02.2024,Children's Services,Education & Childrens Services - CS Dir,TRIP.COM,101,0,101,Staff Travelling Expenses,Travel agencies
Buckinghamshire Council ,29.02.2024,08.02.2024,Children's Services,Education & Childrens Services - CS Dir,PREMIER INN,68.99,0,68.99,"Courses, Conference and Seminar Fees",Premier Inn
Buckinghamshire Council ,29.02.2024,08.02.2024,Children's Services,Education & Childrens Services - CS Dir,BUCKINGHAMSHIRE CNCL,11,0,11,Sec 20/31: Transport,Government services
Buckinghamshire Council ,29.02.2024,08.02.2024,"Planning, Growth & Sustainability",Housing & Homelessness & Regulatory PGS,PREMIER INN,510,0,510,Homelessness,Premier Inn
Buckinghamshire Council ,29.02.2024,08.02.2024,"Planning, Growth & Sustainability",Housing & Homelessness & Regulatory PGS,THE BELL AYLESBURY,646,0,646,Homelessness,"Hotels, motels & resorts"
Buckinghamshire Council ,29.02.2024,08.02.2024,"Planning, Growth & Sustainability",Climate Change & Environment - PGS,CANVA* I04055-34367316,129.9,0,129.9,Advertising,Photographic studios
Buckinghamshire Council ,29.02.2024,08.02.2024,Children's Services,Education & Childrens Services - CS Dir,NEALES TAXIS LTD,22,0,22,Sec 20/31: Transport,Taxicabs & limousines
Buckinghamshire Council ,29.02.2024,08.02.2024,Children's Services,Education & Childrens Services - CS Dir,LIDL GB  HIGH WYCOMBE,6.48,0,6.48,General Provisions (Food),Grocery stores
Buckinghamshire Council ,29.02.2024,08.02.2024,Children's Services,Education & Childrens Services - CS Dir,BUCKINGHAMSHIRE CNCL,11,0,11,Sec 20/31: Financial Assistance,Government services
Buckinghamshire Council ,29.02.2024,08.02.2024,Communities,Housing & Homelessness & Regulatory Comm,BOOKER LTD - 38534944,31.1,0,31.1,Purchase.of Refreshments and Food,Grocery stores
Buckinghamshire Council ,29.02.2024,08.02.2024,"Planning, Growth & Sustainability",AH&R - PGS Dir,CURRYS HIGH WYCOMBE,24.15,4.83,28.98,Printing & Stationery,Electronics shops
Buckinghamshire Council ,29.02.2024,08.02.2024,"Planning, Growth & Sustainability",AH&R - PGS Dir,CURRYS HIGH WYCOMBE,0.01,0,0.01,Printing & Stationery,Electronics shops
Buckinghamshire Council ,29.02.2024,08.02.2024,"Planning, Growth & Sustainability",AH&R - PGS Dir,WOLSELEY UK,36.98,7.4,44.38,General Repairs & Maintenance,"Heating, plumbing & air conditioning"
Buckinghamshire Council ,29.02.2024,08.02.2024,Children's Services,Education & Childrens Services - CS Dir,FEVER UK* BUBBLE PLANE,77.6,0,77.6,Activities & General Recreation,"Bands, orchestras & misc entertainment"
Buckinghamshire Council ,29.02.2024,08.02.2024,Children's Services,Education & Childrens Services - CS Dir,TICKETCO,58,0,58,Activities & General Recreation,Theatres and ticket agencies
Buckinghamshire Council ,29.02.2024,08.02.2024,Children's Services,Education & Childrens Services - CS Dir,LONDON EYE,125,0,125,Activities & General Recreation,Theatres and ticket agencies
Buckinghamshire Council ,29.02.2024,08.02.2024,Children's Services,Education & Childrens Services - CS Dir,DREAMS LTD,837.2,0,837.2,Equipment (including storage),Furniture & home furnishing
Buckinghamshire Council ,29.02.2024,08.02.2024,Children's Services,Education & Childrens Services - CS Dir,WWW.ARGOS.CO.UK,386.95,0,386.95,Equipment (including storage),Department stores
Buckinghamshire Council ,29.02.2024,08.02.2024,Children's Services,Education & Childrens Services - CS Dir,WWW.ARGOS.CO.UK,240,0,240,Equipment (including storage),Department stores
Buckinghamshire Council ,29.02.2024,08.02.2024,Children's Services,Education & Childrens Services - CS Dir,AMAZON.CO.UK,36.2,0,36.2,"Books, Records, Films & Oth Publications",Direct sales companies
Buckinghamshire Council ,29.02.2024,08.02.2024,Children's Services,Education & Childrens Services - CS Dir,AMAZON.CO.UK,30.76,0,30.76,"Books, Records, Films & Oth Publications",Direct sales companies
Buckinghamshire Council ,29.02.2024,08.02.2024,Resources,AH&R - Res Dir,TFL TRAVEL CH,2.8,0,2.8,Staff Travelling Expenses,Local commuter transport
Buckinghamshire Council ,29.02.2024,08.02.2024,Resources,AH&R - Res Dir,TRING STN SST,14.6,0,14.6,Staff Travelling Expenses,Passenger railways
Buckinghamshire Council ,29.02.2024,08.02.2024,Adults and Health,Health & Wellbeing - Adults & Health Dir,HOTEL AT BOOKING.COM,497.25,0,497.25,Other Short Term Support,"Hotels, motels & resorts"
Buckinghamshire Council ,29.02.2024,08.02.2024,Communities,Climate Change & Environment - Community,FACEBK LT4FRYFCM2,208.6,0,208.6,Advertising,Advertising services
Buckinghamshire Council ,29.02.2024,08.02.2024,Children's Services,Education & Childrens Services - CS Dir,AMZNMKTPLACE,12.99,0,12.99,Equipment for Training and Mats for Ins.,Miscellaneous retail
Buckinghamshire Council ,29.02.2024,08.02.2024,Children's Services,Education & Childrens Services - CS Dir,CO-OPERATIVE FOOD,1.6,0.32,1.92,IT Equipment Purchase,Grocery stores
Buckinghamshire Council ,29.02.2024,08.02.2024,Children's Services,Education & Childrens Services - CS Dir,CO-OPERATIVE FOOD,2.04,0,2.04,IT Equipment Purchase,Grocery stores
Buckinghamshire Council ,29.02.2024,08.02.2024,Children's Services,Education & Childrens Services - CS Dir,MAISIES,41.96,0,41.96,Protective Clothing & Uniforms,Uniforms & commercial clothing
Buckinghamshire Council ,29.02.2024,08.02.2024,Communities,Climate Change & Environment - Community,AMZNMKTPLACE,994.39,0,994.39,Fly Tipping Costs,Miscellaneous retail
Buckinghamshire Council ,29.02.2024,08.02.2024,Adults and Health,Health & Wellbeing - Adults & Health Dir,NEALES TAXIS LTD,30,0,30,Other Short Term Support,Taxicabs & limousines
Buckinghamshire Council ,29.02.2024,08.02.2024,Communities,Climate Change & Environment - Community,DVSA,205,0,205,DVLA Enquiries,Government services
Buckinghamshire Council ,29.02.2024,07.02.2024,Deputy Chief Executive,AH&R- DCE Dir,PAYPAL,-9,0,-9,Miscellaneous (Other)  Expenses,Variety stores
Buckinghamshire Council ,29.02.2024,07.02.2024,"Planning, Growth & Sustainability",Partnership Climate Change & Envir - PGS,MOTEL ONE MANCHESTER ST P,75,0,75,"Courses, Conference and Seminar Fees","Hotels, motels & resorts"
Buckinghamshire Council ,29.02.2024,07.02.2024,"Planning, Growth & Sustainability",Partnership Climate Change & Envir - PGS,TRAINLINE,207.99,0,207.99,Staff Travelling Expenses,Passenger railways
Buckinghamshire Council ,29.02.2024,07.02.2024,"Planning, Growth & Sustainability",Partnership Climate Change & Envir - PGS,TRAINLINE,52.19,0,52.19,Staff Travelling Expenses,Passenger railways
Buckinghamshire Council ,29.02.2024,07.02.2024,Children's Services,Education & Childrens Services - CS Dir,TRAINLINE,18.09,0,18.09,Sec 20/31: Supp for Contact,Passenger railways
Buckinghamshire Council ,29.02.2024,07.02.2024,Communities,Housing & Homelessness & Regulatory PGS,CLR*WWW.CIEH.ORG,198,0,198,"Courses, Conference and Seminar Fees",Membership organisations
Buckinghamshire Council ,29.02.2024,07.02.2024,"Planning, Growth & Sustainability",Housing & Homelessness & Regulatory PGS,BICESTER VIL SSTP,9,0,9,Staff Travelling Expenses,Passenger railways
Buckinghamshire Council ,29.02.2024,07.02.2024,"Planning, Growth & Sustainability",AH&R - PGS Dir,AMZNMktplace,5.76,0,5.76,Awaiting Coding,Miscellaneous retail
Buckinghamshire Council ,29.02.2024,07.02.2024,Deputy Chief Executive,Communities - DCE,HARRINGTONS OF READING,73,0,73,Other Personal Needs,Fuel dealers
Buckinghamshire Council ,29.02.2024,07.02.2024,Deputy Chief Executive,Communities - DCE,A W SMITH & PARTNER,115,0,115,Other Personal Needs,Hardware stores
Buckinghamshire Council ,29.02.2024,07.02.2024,Deputy Chief Executive,Communities - DCE,WWW.ARGOS.CO.UK,222.45,44.49,266.94,Other Personal Needs,Department stores
Buckinghamshire Council ,29.02.2024,07.02.2024,Deputy Chief Executive,Communities - DCE,WWW.ARGOS.CO.UK,0.01,0,0.01,Other Personal Needs,Department stores
Buckinghamshire Council ,29.02.2024,07.02.2024,Deputy Chief Executive,Communities - DCE,WWW.ARGOS.CO.UK,115.79,23.16,138.95,Other Personal Needs,Department stores
Buckinghamshire Council ,29.02.2024,07.02.2024,Deputy Chief Executive,Communities - DCE,WWW.ARGOS.CO.UK,222.45,44.49,266.94,Other Personal Needs,Department stores
Buckinghamshire Council ,29.02.2024,07.02.2024,Deputy Chief Executive,Communities - DCE,WWW.ARGOS.CO.UK,0.01,0,0.01,Other Personal Needs,Department stores
Buckinghamshire Council ,29.02.2024,07.02.2024,Deputy Chief Executive,Communities - DCE,AO RETAIL LIMITED,797.49,159.51,957,Other Personal Needs,Household appliance stores
Buckinghamshire Council ,29.02.2024,07.02.2024,Deputy Chief Executive,Communities - DCE,AO RETAIL LIMITED,872.49,174.51,"1,047.00",Other Personal Needs,Household appliance stores
Buckinghamshire Council ,29.02.2024,07.02.2024,Deputy Chief Executive,Communities - DCE,AO RETAIL LIMITED,458.33,91.67,550,Other Personal Needs,Household appliance stores
Buckinghamshire Council ,29.02.2024,07.02.2024,Deputy Chief Executive,Communities - DCE,AO RETAIL LIMITED,257.5,51.5,309,Other Personal Needs,Household appliance stores
Buckinghamshire Council ,29.02.2024,07.02.2024,Deputy Chief Executive,Communities - DCE,AO RETAIL LIMITED,531.65,106.33,637.98,Other Personal Needs,Household appliance stores
Buckinghamshire Council ,29.02.2024,07.02.2024,Deputy Chief Executive,Communities - DCE,AO RETAIL LIMITED,0.02,0,0.02,Other Personal Needs,Household appliance stores
Buckinghamshire Council ,29.02.2024,07.02.2024,Deputy Chief Executive,Communities - DCE,AO RETAIL LIMITED,510.83,102.17,613,Other Personal Needs,Household appliance stores
Buckinghamshire Council ,29.02.2024,07.02.2024,Deputy Chief Executive,Communities - DCE,AO RETAIL LIMITED,257.5,51.5,309,Other Personal Needs,Household appliance stores
Buckinghamshire Council ,29.02.2024,07.02.2024,Deputy Chief Executive,Communities - DCE,AO RETAIL LIMITED,307.5,61.5,369,Other Personal Needs,Household appliance stores
Buckinghamshire Council ,29.02.2024,07.02.2024,Deputy Chief Executive,Communities - DCE,WWW.ARGOS.CO.UK,154.95,30.99,185.94,Other Personal Needs,Department stores
Buckinghamshire Council ,29.02.2024,07.02.2024,Deputy Chief Executive,Communities - DCE,WWW.ARGOS.CO.UK,0.01,0,0.01,Other Personal Needs,Department stores
Buckinghamshire Council ,29.02.2024,07.02.2024,Children's Services,Education & Childrens Services - CS Dir,AMAZON.CO.UK,26.08,0,26.08,Stationery & Office Supplies,Direct sales companies
Buckinghamshire Council ,29.02.2024,07.02.2024,Communities,Culture & Leisure - Communities Dir,EBAY O*21-11146-52525,30.99,0,30.99,"Workshop - Materials,Tools & Equipment",Department stores
Buckinghamshire Council ,29.02.2024,07.02.2024,Resources,Communities - Resources,POUNDLAND LTD - 1301,8.25,0,8.25,Emergency Expenses,Discount stores
Buckinghamshire Council ,29.02.2024,07.02.2024,Adults and Health,Health & Wellbeing - Adults & Health Dir,PREMIER INN,411,0,411,Other Short Term Support,Premier Inn
Buckinghamshire Council ,29.02.2024,07.02.2024,"Planning, Growth & Sustainability",AH&R - PGS Dir,ASDA SUPERSTORE,14.5,0,14.5,General Provisions (Food),Grocery stores
Buckinghamshire Council ,29.02.2024,07.02.2024,Children's Services,Education & Childrens Services - CS Dir,SP BERGONI,51.97,0,51.97,Equipment (including storage),Computer software stores
Buckinghamshire Council ,29.02.2024,07.02.2024,Children's Services,Education & Childrens Services - CS Dir,WWW.ONLINE4BABY.COM,59.95,0,59.95,Equipment (including storage),Furniture & home furnishing
Buckinghamshire Council ,29.02.2024,07.02.2024,Children's Services,Education & Childrens Services - CS Dir,ODEON AYLESBURY,4.3,0,4.3,Awaiting Coding,Cinemas
Buckinghamshire Council ,29.02.2024,07.02.2024,Communities,Communities - Trust Accounts,WICKES SLOUGH,40.05,0,40.05,General Repairs & Maintenance,Timber & building supplies
Buckinghamshire Council ,29.02.2024,07.02.2024,Resources,AH&R - Res Dir,LINKEDIN ADS 9876461384,93.17,0,93.17,Permanent Recruitment Costs,Advertising services
Buckinghamshire Council ,29.02.2024,07.02.2024,Communities,Climate Change & Environment - Community,SP ZEROWASTEBAG UK,210.5,0,210.5,Waste Prevention costs,Misc business services
Buckinghamshire Council ,29.02.2024,07.02.2024,Communities,Climate Change & Environment - Community,HIGH SPEED TRAINING,74.4,0,74.4,Waste Prevention costs,Schools
Buckinghamshire Council ,29.02.2024,07.02.2024,Communities,Climate Change & Environment - Community,HIGH SPEED TRAINING,37.2,0,37.2,Waste Prevention costs,Schools
Buckinghamshire Council ,29.02.2024,07.02.2024,Communities,Climate Change & Environment - Community,HIGH SPEED TRAINING,37.2,0,37.2,Waste Prevention costs,Schools
Buckinghamshire Council ,29.02.2024,07.02.2024,Communities,Climate Change & Environment - Community,HIGH SPEED TRAINING,74.4,0,74.4,Waste Prevention costs,Schools
Buckinghamshire Council ,29.02.2024,07.02.2024,Communities,Climate Change & Environment - Community,SP ZEROWASTEBAG UK,210.5,0,210.5,Waste Prevention costs,Misc business services
Buckinghamshire Council ,29.02.2024,07.02.2024,Children's Services,Education & Childrens Services - CS Dir,SAINSBURYS S/MKTS,1.2,0,1.2,Support for Foster Carers,Grocery stores
Buckinghamshire Council ,29.02.2024,07.02.2024,"Planning, Growth & Sustainability",Special Expenses,WWW.ARGOS.CO.UK,12,0,12,General Repairs & Maintenance,Department stores
Buckinghamshire Council ,29.02.2024,07.02.2024,Adults and Health,Health & Wellbeing - Adults & Health Dir,WM MORRISONS STORE,27.02,0,27.02,Activities & General Recreation,Grocery stores
Buckinghamshire Council ,29.02.2024,07.02.2024,"Planning, Growth & Sustainability",Housing & Homelessness & Regulatory PGS,AMAZON* 204-7029397-21,71.91,0,71.91,Miscellaneous (Other)  Expenses,Misc. general merchandise
Buckinghamshire Council ,29.02.2024,07.02.2024,"Planning, Growth & Sustainability",Housing & Homelessness & Regulatory PGS,AMAZON* 204-3788771-63,119.37,0,119.37,Miscellaneous (Other)  Expenses,Misc. general merchandise
Buckinghamshire Council ,29.02.2024,07.02.2024,Children's Services,Education & Childrens Services - CS Dir,AMAZON* 204-6995360-56,183.2,0,183.2,"Books, Records, Films & Oth Publications",Misc. general merchandise
Buckinghamshire Council ,29.02.2024,07.02.2024,Children's Services,Education & Childrens Services - CS Dir,AMAZON* 204-7812600-68,122.72,0,122.72,"Books, Records, Films & Oth Publications",Misc. general merchandise
Buckinghamshire Council ,29.02.2024,06.02.2024,Children's Services,Education & Childrens Services - CS Dir,BUCKINGHAMSHIRE CNCL,-11,0,-11,Sec 17: Financial Assistance,Government services
Buckinghamshire Council ,29.02.2024,06.02.2024,Children's Services,Education & Childrens Services - CS Dir,BUCKINGHAMSHIRE CNCL,-11,0,-11,Sec 20/31: Financial Assistance,Government services
Buckinghamshire Council ,29.02.2024,06.02.2024,Children's Services,Education & Childrens Services - CS Dir,GEN REGISTER OFFICE,11,0,11,Sec 20/31: Transport,Government services
Buckinghamshire Council ,29.02.2024,06.02.2024,Adults and Health,Health & Wellbeing - Adults & Health Dir,ASDA SUPERSTORE,8.8,0,8.8,General Provisions (Food),Grocery stores
Buckinghamshire Council ,29.02.2024,06.02.2024,Children's Services,Education & Childrens Services - CS Dir,LOGANAIR,6.11,0,6.11,Staff Travelling Expenses,"Airlines, air carriers"
Buckinghamshire Council ,29.02.2024,06.02.2024,Children's Services,Education & Childrens Services - CS Dir,LOGANAIR,442.41,0,442.41,Staff Travelling Expenses,"Airlines, air carriers"
Buckinghamshire Council ,29.02.2024,06.02.2024,Children's Services,Education & Childrens Services - CS Dir,HEATHROW AIRPORT,83.3,0,83.3,Staff Travelling Expenses,Car parking & garages
Buckinghamshire Council ,29.02.2024,06.02.2024,Children's Services,Education & Childrens Services - CS Dir,WWW.ARGOS.CO.UK,36,0,36,Staff Travelling Expenses,Department stores
Buckinghamshire Council ,29.02.2024,06.02.2024,Communities,Housing & Homelessness & Regulatory PGS,POST OFFICE COUNTER,3.45,0,3.45,General Postage,Postal services
Buckinghamshire Council ,29.02.2024,06.02.2024,Adults and Health,Health & Wellbeing - Adults & Health Dir,AMAZON* 204-6637565-25,119.98,0,119.98,"Courses, Conference and Seminar Fees",Misc. general merchandise
Buckinghamshire Council ,29.02.2024,06.02.2024,Children's Services,Education & Childrens Services - CS Dir,WM MORRISONS STORE,8.09,0,8.09,"Exp of School, Club & College Activities",Grocery stores
Buckinghamshire Council ,29.02.2024,06.02.2024,Children's Services,Education & Childrens Services - CS Dir,AMZNMKTPLACE,85.99,0,85.99,Leaving Care - Grants for Care Leavers,Miscellaneous retail
Buckinghamshire Council ,29.02.2024,06.02.2024,Deputy Chief Executive,Communities - DCE,WWW.ARGOS.CO.UK,229.1,45.82,274.92,Other Personal Needs,Department stores
Buckinghamshire Council ,29.02.2024,06.02.2024,Deputy Chief Executive,Communities - DCE,WWW.ARGOS.CO.UK,0.03,0,0.03,Other Personal Needs,Department stores
Buckinghamshire Council ,29.02.2024,06.02.2024,Deputy Chief Executive,Communities - DCE,AO RETAIL LIMITED,203.33,40.67,244,Other Personal Needs,Household appliance stores
Buckinghamshire Council ,29.02.2024,06.02.2024,Deputy Chief Executive,Communities - DCE,AO RETAIL LIMITED,290.83,58.17,349,Other Personal Needs,Household appliance stores
Buckinghamshire Council ,29.02.2024,06.02.2024,Children's Services,Education & Childrens Services - CS Dir,APPLE.COM/UK,450,0,450,Computer Consumables,Electronics shops
Buckinghamshire Council ,29.02.2024,06.02.2024,Communities,Transport - Communities Dir,AMERSHAM SYCAMORE ROAD,0.8,0,0.8,Repair and Maintenance of Equipment,Car parking & garages
Buckinghamshire Council ,29.02.2024,06.02.2024,Communities,Transport - Communities Dir,AMERSHAM SYCAMORE ROAD,0.8,0,0.8,Repair and Maintenance of Equipment,Car parking & garages
Buckinghamshire Council ,29.02.2024,06.02.2024,Children's Services,Education & Childrens Services - CS Dir,TRAINLINE,58.49,0,58.49,Sec 20/31: Financial Assistance,Passenger railways
Buckinghamshire Council ,29.02.2024,06.02.2024,Children's Services,Education & Childrens Services - CS Dir,UTILITA ENERGY LIMITED,600,0,600,General Repairs & Maintenance,Utilities
Buckinghamshire Council ,29.02.2024,06.02.2024,Children's Services,Education & Childrens Services - CS Dir,AMAZON.CO.UK,-46.55,0,-46.55,Stationery & Office Supplies,Direct sales companies
Buckinghamshire Council ,29.02.2024,06.02.2024,Communities,Transport - Communities Dir,CURRYS AYLESBURY,120.99,0,120.99,Materials,Electronics shops
Buckinghamshire Council ,29.02.2024,06.02.2024,Children's Services,Education & Childrens Services - CS Dir,T K MAXX,31.66,0,31.66,Furniture,Variety stores
Buckinghamshire Council ,29.02.2024,06.02.2024,Children's Services,Education & Childrens Services - CS Dir,CAROUSELBUSES.CO.UK,20,0,20,Sec 17: Transport,Local commuter transport
Buckinghamshire Council ,29.02.2024,06.02.2024,Children's Services,Education & Childrens Services - CS Dir,JOIEBABY.COM,130,0,130,Equipment (including storage),Men & womens clothing shops
Buckinghamshire Council ,29.02.2024,06.02.2024,Children's Services,Education & Childrens Services - CS Dir,WWW.ARGOS.CO.UK,250,0,250,Equipment (including storage),Department stores
Buckinghamshire Council ,29.02.2024,06.02.2024,Communities,Culture & Leisure - Communities Dir,HIGH SPEED TRAINING,37.2,0,37.2,Administrative Equipment & Tools,Schools
Buckinghamshire Council ,29.02.2024,06.02.2024,Communities,Partnerships - Communities,EUROFLORIST UK LTD,31.98,0,31.98,Seeds & Plants,Florists
Buckinghamshire Council ,29.02.2024,06.02.2024,Children's Services,Education & Childrens Services - CS Dir,BT BUSINESS BILL,52.46,0,52.46,Telephones,Phone services
Buckinghamshire Council ,29.02.2024,06.02.2024,Adults and Health,Health & Wellbeing - Adults & Health Dir,TESCO STORES 5135,242.88,0,242.88,General Provisions (Food),Grocery stores
Buckinghamshire Council ,29.02.2024,06.02.2024,"Planning, Growth & Sustainability",Planning & Regeneration - PGS,UBER   *TRIP,7.1,0,7.1,Staff Travelling Expenses,Taxicabs & limousines
Buckinghamshire Council ,29.02.2024,06.02.2024,Resources,AH&R - Res Dir,SIMPLER HACKING,82.26,0,82.26,"Courses, Conference and Seminar Fees",Schools
Buckinghamshire Council ,29.02.2024,06.02.2024,Deputy Chief Executive,AH&R- DCE Dir,AMAZON* 204-8585970-77,13.98,0,13.98,Stationery & Office Supplies,Misc. general merchandise
Buckinghamshire Council ,29.02.2024,06.02.2024,Communities,Climate Change & Environment - Community,EXPO* NATIONAL FOOD WA,240,0,240,Course Fees & Post Entry Training,Misc business services
Buckinghamshire Council ,29.02.2024,06.02.2024,Children's Services,Education & Childrens Services - CS Dir,TRAVELODGE GB0000,307.49,0,307.49,Sec 17: Accommodation,Travelodge
Buckinghamshire Council ,29.02.2024,06.02.2024,Adults and Health,Health & Wellbeing - Adults & Health Dir,WM MORRISONS STORE,14.97,0,14.97,Health & Safety Supplies & Services,Grocery stores
Buckinghamshire Council ,29.02.2024,06.02.2024,Children's Services,Education & Childrens Services - CS Dir,AMAZON* 204-0400524-76,11.98,0,11.98,Training Materials,Misc. general merchandise
Buckinghamshire Council ,29.02.2024,06.02.2024,Communities,Housing & Homelessness & Regulatory Comm,AMAZON* 204-2103667-79,66.76,0,66.76,Furniture Fittings & IT,Misc. general merchandise
Buckinghamshire Council ,29.02.2024,06.02.2024,Children's Services,Education & Childrens Services - CS Dir,GEN REGISTER OFFICE,-7.5,0,-7.5,Sec 20/31: Transport,Government services
Buckinghamshire Council ,29.02.2024,05.02.2024,Children's Services,Education & Childrens Services - CS Dir,WWW.MILTON-KEYNES.GOV.,11,0,11,Sec 17: Financial Assistance,"Civic, social & fraternal associations"
Buckinghamshire Council ,29.02.2024,05.02.2024,Adults and Health,Health & Wellbeing - Adults & Health Dir,TESCO STORES 2041,40.5,0,40.5,"Courses, Conference and Seminar Fees",Grocery stores
Buckinghamshire Council ,29.02.2024,05.02.2024,Adults and Health,Health & Wellbeing - Adults & Health Dir,ASDA GROCERIES ONLINE,80.2,0,80.2,"Courses, Conference and Seminar Fees",Grocery stores
Buckinghamshire Council ,29.02.2024,05.02.2024,Communities,Culture & Leisure - Communities Dir,FACEBK XV6GNWFZ92,17,0,17,Events Expenditure,Advertising services
Buckinghamshire Council ,29.02.2024,05.02.2024,"Planning, Growth & Sustainability",Housing & Homelessness & Regulatory PGS,TRAINLINE,29.89,0,29.89,Staff Travelling Expenses,Passenger railways
Buckinghamshire Council ,29.02.2024,05.02.2024,"Planning, Growth & Sustainability",AH&R - PGS Dir,SCREWFIX DIR LTD,32.99,0,32.99,General Repairs & Maintenance,Timber & building supplies
Buckinghamshire Council ,29.02.2024,05.02.2024,Resources,AH&R - Res Dir,AMAZON* 204-9345114-46,94.94,0,94.94,Equipment,Misc. general merchandise
Buckinghamshire Council ,29.02.2024,05.02.2024,Children's Services,Education & Childrens Services - CS Dir,WAITROSE,18.2,0,18.2,General Provisions (Food),Grocery stores
Buckinghamshire Council ,29.02.2024,05.02.2024,Children's Services,Education & Childrens Services - CS Dir,A1 TAXI SERVICE,98.4,0,98.4,Sec 20/31: Transport,Taxicabs & limousines
Buckinghamshire Council ,29.02.2024,05.02.2024,Resources,AH&R - Res Dir,GEN REGISTER OFFICE,14,0,14,Miscellaneous (Other)  Expenses,Government services
Buckinghamshire Council ,29.02.2024,05.02.2024,"Planning, Growth & Sustainability",AH&R - PGS Dir,BOOKER LTD - 38534944,11.18,2.24,13.42,Cleaning Materials,Grocery stores
Buckinghamshire Council ,29.02.2024,05.02.2024,Children's Services,Education & Childrens Services - CS Dir,AMAZON.CO.UK,44.98,0,44.98,Stationery & Office Supplies,Direct sales companies
Buckinghamshire Council ,29.02.2024,05.02.2024,Resources,AH&R - Res Dir,AMZNMKTPLACE,16.98,0,16.98,IT Equipment Purchase,Miscellaneous retail
Buckinghamshire Council ,29.02.2024,05.02.2024,Children's Services,Education & Childrens Services - CS Dir,TRAINLINE,58.44,0,58.44,Staff Travelling Expenses,Passenger railways
Buckinghamshire Council ,29.02.2024,05.02.2024,Adults and Health,Health & Wellbeing - Adults & Health Dir,PREMIER INN,208,0,208,Other Short Term Support,Premier Inn
Buckinghamshire Council ,29.02.2024,05.02.2024,Children's Services,Education & Childrens Services - CS Dir,NEW YORK DELI (AYLESBURY),45,0,45,Purchase.of Refreshments and Food,Restaurants
Buckinghamshire Council ,29.02.2024,05.02.2024,Children's Services,Education & Childrens Services - CS Dir,IKEA LTD SHOP ONLINE,317,0,317,Equipment (including storage),Furniture & home furnishing
Buckinghamshire Council ,29.02.2024,05.02.2024,Children's Services,Education & Childrens Services - CS Dir,COSTA COFFEE BEDGROVE,4.85,0,4.85,Subsistence,Fast food restaurants
Buckinghamshire Council ,29.02.2024,05.02.2024,Children's Services,Education & Childrens Services - CS Dir,AMAZON* 204-5309175-55,9.15,1.83,10.98,General Repairs & Maintenance,Misc. general merchandise
Buckinghamshire Council ,29.02.2024,05.02.2024,Children's Services,Education & Childrens Services - CS Dir,AMAZON* 204-5309175-55,0.01,0,0.01,General Repairs & Maintenance,Misc. general merchandise
Buckinghamshire Council ,29.02.2024,05.02.2024,"Planning, Growth & Sustainability",AH&R - PGS Dir,LAMPSHOPONLINE,54.7,10.94,65.64,General Repairs & Maintenance,Electronics shops
Buckinghamshire Council ,29.02.2024,05.02.2024,"Planning, Growth & Sustainability",AH&R - PGS Dir,LAMPSHOPONLINE,0.02,0,0.02,General Repairs & Maintenance,Electronics shops
Buckinghamshire Council ,29.02.2024,05.02.2024,"Planning, Growth & Sustainability",Planning & Regeneration - PGS,TFL TRAVEL CH,12.7,0,12.7,Staff Travelling Expenses,Local commuter transport
Buckinghamshire Council ,29.02.2024,05.02.2024,Resources,AH&R - Res Dir,LINKEDIN ADS 9868658654,95.48,0,95.48,Permanent Recruitment Costs,Advertising services
Buckinghamshire Council ,29.02.2024,05.02.2024,"Planning, Growth & Sustainability",AH&R - PGS Dir,RICS SUBS UK CYBS,539,0,539,Professional Subscriptions re Employees,Membership organisations
Buckinghamshire Council ,29.02.2024,05.02.2024,Adults and Health,Health & Wellbeing - Adults & Health Dir,ASDA GROCERIES ONLINE,102.74,0,102.74,General Provisions (Food),Grocery stores
Buckinghamshire Council ,29.02.2024,05.02.2024,Adults and Health,Health & Wellbeing - Adults & Health Dir,ASDA GROCERIES ONLINE,-0.3,0,-0.3,General Provisions (Food),Grocery stores
Buckinghamshire Council ,29.02.2024,05.02.2024,Children's Services,Education & Childrens Services - CS Dir,ARRIVA UK BUS,4,0,4,Sec 20/31: Supp for Contact,"Buses, charter & tour"
Buckinghamshire Council ,29.02.2024,05.02.2024,Children's Services,Education & Childrens Services - CS Dir,FIRST BUS - WEB,7.8,0,7.8,Sec 20/31: Supp for Contact,"Buses, charter & tour"
Buckinghamshire Council ,29.02.2024,05.02.2024,Children's Services,Education & Childrens Services - CS Dir,TRAINLINE,23.59,0,23.59,Sec 20/31: Supp for Contact,Passenger railways
Buckinghamshire Council ,29.02.2024,05.02.2024,Children's Services,Education & Childrens Services - CS Dir,TRAVELODGE GB0000,86.51,0,86.51,Sec 17: Accommodation,Travelodge
Buckinghamshire Council ,29.02.2024,05.02.2024,Children's Services,Education & Childrens Services - CS Dir,AMAZON* 204-9017612-54,40.35,0,40.35,Sec 20/31: Specialist Services,Misc. general merchandise
Buckinghamshire Council ,29.02.2024,05.02.2024,"Planning, Growth & Sustainability",AH&R - PGS Dir,AMAZON* 204-3796699-54,109.14,0,109.14,Health & Safety Supplies & Services,Misc. general merchandise
Buckinghamshire Council ,29.02.2024,05.02.2024,Communities,Transport - Communities Dir,HALFORDS 0529,12,0,12,Materials,"Bicycle shops, sales & service"
Buckinghamshire Council ,29.02.2024,05.02.2024,Adults and Health,Health & Wellbeing - Adults & Health Dir,AMAZON* 204-3462807-65,34.71,0,34.71,Health & Safety Supplies & Services,Misc. general merchandise
Buckinghamshire Council ,29.02.2024,04.02.2024,Children's Services,Education & Childrens Services - CS Dir,AMAZON* 205-6553914-98,27.99,0,27.99,Leaving Care - Grants for Care Leavers,Misc. general merchandise
Buckinghamshire Council ,29.02.2024,04.02.2024,Children's Services,Education & Childrens Services - CS Dir,AMAZON* 205-6553914-98,159.99,0,159.99,Leaving Care - Grants for Care Leavers,Misc. general merchandise
Buckinghamshire Council ,29.02.2024,04.02.2024,Adults and Health,Health & Wellbeing - Adults & Health Dir,PREMIER INN,51,0,51,Transport - Other Care - external,Premier Inn
Buckinghamshire Council ,29.02.2024,04.02.2024,Adults and Health,Health & Wellbeing - Adults & Health Dir,AMZNMKTPLACE,20.97,0,20.97,Health & Safety Supplies & Services,Miscellaneous retail
Buckinghamshire Council ,29.02.2024,04.02.2024,Children's Services,Education & Childrens Services - CS Dir,HOO*HOOTSUITE INC,123.84,0,123.84,Marketing,Misc business services
Buckinghamshire Council ,29.02.2024,04.02.2024,Children's Services,Education & Childrens Services - CS Dir,THE TAXI PEOPLE,30,0,30,Staff Travelling Expenses,Taxicabs & limousines
Buckinghamshire Council ,29.02.2024,04.02.2024,Children's Services,Education & Childrens Services - CS Dir,OCADO,125.26,0,125.26,General Provisions (Food),Grocery stores
Buckinghamshire Council ,29.02.2024,04.02.2024,Communities,Culture & Leisure - Communities Dir,IONOS CLOUD LTD,16.87,0,16.87,Computer Support Services,Computer network information services
Buckinghamshire Council ,29.02.2024,03.02.2024,Children's Services,Education & Childrens Services - CS Dir,AMAZON* 204-6114788-33,73.4,14.68,88.08,Educational Equipment,Misc. general merchandise
Buckinghamshire Council ,29.02.2024,03.02.2024,Children's Services,Education & Childrens Services - CS Dir,AMAZON* 204-6114788-33,4.94,0,4.94,Educational Equipment,Misc. general merchandise
Buckinghamshire Council ,29.02.2024,03.02.2024,Children's Services,Education & Childrens Services - CS Dir,WM MORRISONS STORE,31.53,0,31.53,Furniture,Grocery stores
Buckinghamshire Council ,29.02.2024,03.02.2024,Children's Services,Education & Childrens Services - CS Dir,SUMUP  *THE TAXI PEOPLE L,30,0,30,Staff Travelling Expenses,Taxicabs & limousines
Buckinghamshire Council ,29.02.2024,03.02.2024,Deputy Chief Executive,AH&R- DCE Dir,OXFORD BUS COMPANY,2,0,2,Staff Travelling Expenses,"Buses, charter & tour"
Buckinghamshire Council ,29.02.2024,03.02.2024,Children's Services,Education & Childrens Services - CS Dir,AMAZON* 204-6713396-56,23.86,0,23.86,"Books, Records, Films & Oth Publications",Misc. general merchandise
Buckinghamshire Council ,29.02.2024,02.02.2024,Children's Services,Education & Childrens Services - CS Dir,BUCKINGHAMSHIRE CNCL,-11,0,-11,Sec 20/31: Transport,Government services
Buckinghamshire Council ,29.02.2024,02.02.2024,Deputy Chief Executive,AH&R- DCE Dir,TESCO STORES 2041,52.26,0,52.26,Other Personal Needs,Grocery stores
Buckinghamshire Council ,29.02.2024,02.02.2024,"Planning, Growth & Sustainability",Partnership Climate Change & Envir - PGS,AWS EMEA,71.83,0,71.83,Computer Software Licences & Purchase,Misc business services
Buckinghamshire Council ,29.02.2024,02.02.2024,"Planning, Growth & Sustainability",AH&R - PGS Dir,INSTIT OF OCCPTNL SAFE,252,0,252,"Workshop - Materials,Tools & Equipment",Membership organisations
Buckinghamshire Council ,29.02.2024,02.02.2024,"Planning, Growth & Sustainability",Housing & Homelessness & Regulatory PGS,SUMUP  *CABS4U,35,0,35,Staff Travelling Expenses,Taxicabs & limousines
Buckinghamshire Council ,29.02.2024,02.02.2024,"Planning, Growth & Sustainability",Housing & Homelessness & Regulatory PGS,NEALES TAXIS LTD,28,0,28,Staff Travelling Expenses,Taxicabs & limousines
Buckinghamshire Council ,29.02.2024,02.02.2024,Children's Services,Education & Childrens Services - CS Dir,BUCKINGHAMSHIRE CNCL,11,0,11,Sec 17: Financial Assistance,Government services
Buckinghamshire Council ,29.02.2024,02.02.2024,Children's Services,Education & Childrens Services - CS Dir,BUCKINGHAMSHIRE CNCL,11,0,11,Sec 17: Financial Assistance,Government services
Buckinghamshire Council ,29.02.2024,02.02.2024,Children's Services,Education & Childrens Services - CS Dir,BUCKINGHAMSHIRE CNCL,11,0,11,Sec 17: Financial Assistance,Government services
Buckinghamshire Council ,29.02.2024,02.02.2024,"Planning, Growth & Sustainability",Climate Change & Environment - PGS,CROWNE PLAZA,162.09,0,162.09,"Courses, Conference and Seminar Fees","Hotels, motels & resorts"
Buckinghamshire Council ,29.02.2024,02.02.2024,"Planning, Growth & Sustainability",Climate Change & Environment - PGS,TRAINLINE,21.99,0,21.99,Staff Travelling Expenses,Passenger railways
Buckinghamshire Council ,29.02.2024,02.02.2024,"Planning, Growth & Sustainability",Climate Change & Environment - PGS,TRAINLINE,21.99,0,21.99,Staff Travelling Expenses,Passenger railways
Buckinghamshire Council ,29.02.2024,02.02.2024,"Planning, Growth & Sustainability",Climate Change & Environment - PGS,TRAINLINE,182.39,0,182.39,Staff Travelling Expenses,Passenger railways
Buckinghamshire Council ,29.02.2024,02.02.2024,Children's Services,Education & Childrens Services - CS Dir,AMAZON* 205-5541152-88,72.99,0,72.99,Leaving Care - Grants for Care Leavers,Misc. general merchandise
Buckinghamshire Council ,29.02.2024,02.02.2024,Children's Services,Education & Childrens Services - CS Dir,AMAZON* 205-9332300-76,174.99,0,174.99,Leaving Care - Grants for Care Leavers,Misc. general merchandise
Buckinghamshire Council ,29.02.2024,02.02.2024,Children's Services,Education & Childrens Services - CS Dir,AMAZON* 205-7315759-86,75.79,0,75.79,Leaving Care - Grants for Care Leavers,Misc. general merchandise
Buckinghamshire Council ,29.02.2024,02.02.2024,Children's Services,Education & Childrens Services - CS Dir,AO RETAIL LIMITED,719,0,719,Leaving Care - Grants for Care Leavers,Household appliance stores
Buckinghamshire Council ,29.02.2024,02.02.2024,Children's Services,Education & Childrens Services - CS Dir,PREMIER INN,215,0,215,Sec 20/31: Supp for Contact,Premier Inn
Buckinghamshire Council ,29.02.2024,02.02.2024,Deputy Chief Executive,Leader - DCE,CURRYS BUSINESS,49.98,0,49.98,Computer Consumables,Computer software stores
Buckinghamshire Council ,29.02.2024,02.02.2024,"Planning, Growth & Sustainability",AH&R - PGS Dir,ASDA SUPERSTORE,14.5,0,14.5,General Provisions (Food),Grocery stores
Buckinghamshire Council ,29.02.2024,02.02.2024,Deputy Chief Executive,Communities - DCE,PAYPAL,355.79,71.16,426.95,Other Personal Needs,Variety stores
Buckinghamshire Council ,29.02.2024,02.02.2024,Deputy Chief Executive,Communities - DCE,PAYPAL,158.33,31.67,190,Other Personal Needs,Variety stores
Buckinghamshire Council ,29.02.2024,02.02.2024,Deputy Chief Executive,Communities - DCE,CURRYS ONLINE,808,0,808,Other Personal Needs,Electronics shops
Buckinghamshire Council ,29.02.2024,02.02.2024,Deputy Chief Executive,Communities - DCE,CURRYS ONLINE,228.33,45.67,274,Other Personal Needs,Electronics shops
Buckinghamshire Council ,29.02.2024,02.02.2024,Deputy Chief Executive,Communities - DCE,AO RETAIL LIMITED,585.83,117.17,703,Other Personal Needs,Household appliance stores
Buckinghamshire Council ,29.02.2024,02.02.2024,Deputy Chief Executive,Communities - DCE,AO RETAIL LIMITED,531.66,106.34,638,Other Personal Needs,Household appliance stores
Buckinghamshire Council ,29.02.2024,02.02.2024,Deputy Chief Executive,Communities - DCE,AO RETAIL LIMITED,880.83,176.17,"1,057.00",Other Personal Needs,Household appliance stores
Buckinghamshire Council ,29.02.2024,02.02.2024,Deputy Chief Executive,Communities - DCE,AO RETAIL LIMITED,540,108,648,Other Personal Needs,Household appliance stores
Buckinghamshire Council ,29.02.2024,02.02.2024,Deputy Chief Executive,Communities - DCE,WWW.ARGOS.CO.UK,590.79,118.16,708.95,Other Personal Needs,Department stores
Buckinghamshire Council ,29.02.2024,02.02.2024,Deputy Chief Executive,Communities - DCE,WWW.ARGOS.CO.UK,38.29,7.66,45.95,Other Personal Needs,Department stores
Buckinghamshire Council ,29.02.2024,02.02.2024,Children's Services,Education & Childrens Services - CS Dir,NEALES TAXIS LTD,500,0,500,Sec 20/31: Transport,Taxicabs & limousines
Buckinghamshire Council ,29.02.2024,02.02.2024,"Planning, Growth & Sustainability",Housing & Homelessness & Regulatory PGS,LAND REGISTRY ECOM CCC,3,0,3,Homelessness,Government services
Buckinghamshire Council ,29.02.2024,02.02.2024,"Planning, Growth & Sustainability",Housing & Homelessness & Regulatory PGS,LAND REGISTRY ECOM CCC,3,0,3,Homelessness,Government services
Buckinghamshire Council ,29.02.2024,02.02.2024,"Planning, Growth & Sustainability",Housing & Homelessness & Regulatory PGS,LAND REGISTRY ECOM CCC,3,0,3,Homelessness,Government services
Buckinghamshire Council ,29.02.2024,02.02.2024,"Planning, Growth & Sustainability",Housing & Homelessness & Regulatory PGS,LAND REGISTRY ECOM CCC,3,0,3,Homelessness,Government services
Buckinghamshire Council ,29.02.2024,02.02.2024,Children's Services,Education & Childrens Services - CS Dir,AMAZON.CO.UK,22.1,0,22.1,"Books, Records, Films & Oth Publications",Direct sales companies
Buckinghamshire Council ,29.02.2024,02.02.2024,Children's Services,Education & Childrens Services - CS Dir,BUCKINGHAMSHIRE CNCL,33,0,33,Sec 20/31: Financial Assistance,Government services
Buckinghamshire Council ,29.02.2024,02.02.2024,Communities,Partnerships - Communities,AMZNMKTPLACE,141.98,0,141.98,Equipment,Miscellaneous retail
Buckinghamshire Council ,29.02.2024,02.02.2024,"Planning, Growth & Sustainability",AH&R - PGS Dir,CJ'S LOCKSMITHS,50,0,50,General Repairs & Maintenance,Misc. repair services
Buckinghamshire Council ,29.02.2024,02.02.2024,"Planning, Growth & Sustainability",AH&R - PGS Dir,SAINSBURYS - AYLESBURY,6,0,6,Cleaning Costs - Vehicles,Car washes
Buckinghamshire Council ,29.02.2024,02.02.2024,"Planning, Growth & Sustainability",AH&R - PGS Dir,B & Q 1305,20.5,0,20.5,General Repairs & Maintenance,Home supply warehouse stores
Buckinghamshire Council ,29.02.2024,02.02.2024,Adults and Health,Communities - Adults & Health,TACTREE,100,0,100,Protective Clothing & Uniforms,Sporting goods shops
Buckinghamshire Council ,29.02.2024,02.02.2024,Children's Services,Education & Childrens Services - CS Dir,AMAZON* 204-5864274-25,20.1,4.02,24.12,Educational Equipment,Misc. general merchandise
Buckinghamshire Council ,29.02.2024,02.02.2024,Children's Services,Education & Childrens Services - CS Dir,AMAZON* 204-5864274-25,38.45,0,38.45,Educational Equipment,Misc. general merchandise
Buckinghamshire Council ,29.02.2024,02.02.2024,Children's Services,Education & Childrens Services - CS Dir,AMAZON.CO.UK,46.55,0,46.55,Stationery & Office Supplies,Direct sales companies
Buckinghamshire Council ,29.02.2024,02.02.2024,Children's Services,Education & Childrens Services - CS Dir,AMAZON* 204-5864274-25,0.01,0,0.01,Educational Equipment,Misc. general merchandise
Buckinghamshire Council ,29.02.2024,02.02.2024,Communities,Climate Change & Environment - Community,POST OFFICE COUNTER,10.78,0,10.78,Stationery & Office Supplies,Postal services
Buckinghamshire Council ,29.02.2024,02.02.2024,Adults and Health,Health & Wellbeing - Adults & Health Dir,BKG*HOTEL AT BOOKING.C,167.2,0,167.2,Other Short Term Support,Travel agencies
Buckinghamshire Council ,29.02.2024,02.02.2024,Communities,Culture & Leisure - Communities Dir,BCW OFFICE PROD,135.79,27.16,162.95,"Workshop - Materials,Tools & Equipment","Commercial photo, art & graphic"
Buckinghamshire Council ,29.02.2024,02.02.2024,Children's Services,Education & Childrens Services - CS Dir,WWW.ARGOS.CO.UK,386.95,0,386.95,Equipment (including storage),Department stores
Buckinghamshire Council ,29.02.2024,02.02.2024,Children's Services,Education & Childrens Services - CS Dir,SOFA BARGAIN,"1,198.00",0,"1,198.00",Equipment (including storage),Furniture & home furnishing
Buckinghamshire Council ,29.02.2024,02.02.2024,Children's Services,Education & Childrens Services - CS Dir,ASDA  STORES 4396,7.1,0,7.1,General Provisions (Food),Grocery stores
Buckinghamshire Council ,29.02.2024,02.02.2024,Resources,AH&R - Res Dir,C2E879901622V UKVI,"2,239.00",0,"2,239.00",Professional Services (non curriculum) - External,Government services
Buckinghamshire Council ,29.02.2024,02.02.2024,Resources,AH&R - Res Dir,C2E879901081P UKVI,"1,239.00",0,"1,239.00",Professional Services (non curriculum) - External,Government services
Buckinghamshire Council ,29.02.2024,02.02.2024,Children's Services,Education & Childrens Services - CS Dir,DUNELM SOFTFURNISHINGS,114,0,114,Leaving Care - Grants for Care Leavers,Furniture & home furnishing
Buckinghamshire Council ,29.02.2024,02.02.2024,Children's Services,Education & Childrens Services - CS Dir,AMAZON* 204-1057388-79,13.13,0,13.13,Leaving Care - Grants for Care Leavers,Misc. general merchandise
Buckinghamshire Council ,29.02.2024,02.02.2024,Communities,Communities - Trust Accounts,THE CHALFONTS MOTOR CO,394.44,0,394.44,Purchase of Vehicles,Automobile dealers - new & used
Buckinghamshire Council ,29.02.2024,02.02.2024,Resources,AH&R - Res Dir,PAYPAL,15.99,0,15.99,Computer Software Licences & Purchase,
Buckinghamshire Council ,29.02.2024,02.02.2024,Resources,AH&R - Res Dir,AWS EMEA,7.17,0,7.17,Software Support,Misc business services
Buckinghamshire Council ,29.02.2024,02.02.2024,Children's Services,Education & Childrens Services - CS Dir,SP ERACCO,16.38,0,16.38,Cleaning Materials,Miscellaneous retail
Buckinghamshire Council ,29.02.2024,02.02.2024,Children's Services,Education & Childrens Services - CS Dir,WWW.CLEANSTORE.CO.UK,21.98,0,21.98,Cleaning Materials,"Cleaning, maintenance & janitorial services"
Buckinghamshire Council ,29.02.2024,02.02.2024,"Planning, Growth & Sustainability",Housing & Homelessness & Regulatory PGS,FEE2PAYONLINE,2.5,0,2.5,General Postage,Postal services
Buckinghamshire Council ,29.02.2024,02.02.2024,Children's Services,Education & Childrens Services - CS Dir,NEALES TAXIS LTD,360,0,360,Sec 17: Transport,Taxicabs & limousines
Buckinghamshire Council ,29.02.2024,02.02.2024,Children's Services,Education & Childrens Services - CS Dir,MYTRIPBUS* REDLINE BUS,8,0,8,Sec 20/31: Supp for Contact,
Buckinghamshire Council ,29.02.2024,02.02.2024,Children's Services,Education & Childrens Services - CS Dir,MYTRIPBUS* REDLINE BUS,8,0,8,Sec 20/31: Supp for Contact,
Buckinghamshire Council ,29.02.2024,02.02.2024,Children's Services,Education & Childrens Services - CS Dir,MYTRIPBUS* REDLINE BUS,8,0,8,Sec 20/31: Supp for Contact,
Buckinghamshire Council ,29.02.2024,02.02.2024,Children's Services,Education & Childrens Services - CS Dir,FIRST BUS - WEB,23.4,0,23.4,Sec 20/31: Supp for Contact,"Buses, charter & tour"
Buckinghamshire Council ,29.02.2024,02.02.2024,Children's Services,Education & Childrens Services - CS Dir,TRAVELODGE GB0000,122.5,0,122.5,Sec 20/31: Supp for Contact,Travelodge
Buckinghamshire Council ,29.02.2024,02.02.2024,Children's Services,Education & Childrens Services - CS Dir,TRAVELODGE GB0000,99.76,0,99.76,Sec 20/31: Supp for Contact,Travelodge
Buckinghamshire Council ,29.02.2024,02.02.2024,Children's Services,Education & Childrens Services - CS Dir,TRAINLINE,156.09,0,156.09,Sec 20/31: Supp for Contact,Passenger railways
Buckinghamshire Council ,29.02.2024,02.02.2024,Communities,Culture & Leisure - Communities Dir,TVLICENSING.CO.UK,159,0,159,Professional Services (non curriculum) - External,Consultants & public relation services
Buckinghamshire Council ,29.02.2024,02.02.2024,Deputy Chief Executive,Communities - DCE,CURRYS ONLINE,-808,0,-808,Other Personal Needs,Electronics shops
Buckinghamshire Council ,29.02.2024,02.02.2024,Resources,Communities - Resources,ARCO LIMITED,113.94,22.79,136.73,Emergency Expenses,Misc Industrial supplies
Buckinghamshire Council ,29.02.2024,02.02.2024,Children's Services,Education & Childrens Services - CS Dir,TRAINLINE,-66.8,0,-66.8,Sec 20/31: Supp for Contact,Passenger railways
Buckinghamshire Council ,29.02.2024,01.02.2024,Deputy Chief Executive,Leader - DCE,SUMUP  *CABS4U,8,0,8,Miscellaneous (Other)  Expenses,Taxicabs & limousines
Buckinghamshire Council ,29.02.2024,01.02.2024,"Planning, Growth & Sustainability",AH&R - PGS Dir,IOSH SERVICES LTD,176.4,0,176.4,"Workshop - Materials,Tools & Equipment",Schools
Buckinghamshire Council ,29.02.2024,01.02.2024,"Planning, Growth & Sustainability",Planning & Regeneration - PGS,CHARTERED ASSOCIATION,255,0,255,Professional Subscriptions re Employees,Colleges & universities
Buckinghamshire Council ,29.02.2024,01.02.2024,"Planning, Growth & Sustainability",Planning & Regeneration - PGS,SAINSBURY S S/MKTS,7,0,7,Miscellaneous (Other)  Expenses,Grocery stores
Buckinghamshire Council ,29.02.2024,01.02.2024,"Planning, Growth & Sustainability",Housing & Homelessness & Regulatory PGS,THE BELL AYLESBURY,683,0,683,Homelessness,"Hotels, motels & resorts"
Buckinghamshire Council ,29.02.2024,01.02.2024,Deputy Chief Executive,Communities - DCE,WWW.ARGOS.CO.UK,196.95,0,196.95,Other Personal Needs,Department stores
Buckinghamshire Council ,29.02.2024,01.02.2024,Deputy Chief Executive,Communities - DCE,AO RETAIL LIMITED,614.99,123.01,738,Other Personal Needs,Household appliance stores
Buckinghamshire Council ,29.02.2024,01.02.2024,Deputy Chief Executive,Communities - DCE,WWW.ARGOS.CO.UK,46.62,9.33,55.95,Other Personal Needs,Department stores
Buckinghamshire Council ,29.02.2024,01.02.2024,Children's Services,Education & Childrens Services - CS Dir,NEALES TAXIS LTD,100,0,100,Sec 20/31: Transport,Taxicabs & limousines
Buckinghamshire Council ,29.02.2024,01.02.2024,Children's Services,Education & Childrens Services - CS Dir,TRAINLINE,31.45,0,31.45,Sec 20/31: Financial Assistance,Passenger railways
Buckinghamshire Council ,29.02.2024,01.02.2024,Children's Services,Education & Childrens Services - CS Dir,TRAVELODGE GB0000,61.52,0,61.52,Sec 17: Accommodation,Travelodge
Buckinghamshire Council ,29.02.2024,01.02.2024,Children's Services,Education & Childrens Services - CS Dir,B&Q LTD,184.08,0,184.08,General Repairs & Maintenance,Timber & building supplies
Buckinghamshire Council ,29.02.2024,01.02.2024,Children's Services,Education & Childrens Services - CS Dir,AMAZON* 204-8301294-64,8.51,0,8.51,Other Equipment and Materials,Misc. general merchandise
Buckinghamshire Council ,29.02.2024,01.02.2024,Resources,AH&R - Res Dir,WWW.CIPFA.ORG.UK/PFMCO,354,0,354,Awaiting Coding,Membership organisations
Buckinghamshire Council ,29.02.2024,01.02.2024,Communities,Culture & Leisure - Communities Dir,SCREWFIX DIR LTD,71.45,14.29,85.74,General Repairs & Maintenance,Timber & building supplies
Buckinghamshire Council ,29.02.2024,01.02.2024,Communities,Culture & Leisure - Communities Dir,SCREWFIX DIR LTD,0.02,0,0.02,General Repairs & Maintenance,Timber & building supplies
Buckinghamshire Council ,29.02.2024,01.02.2024,"Planning, Growth & Sustainability",Climate Change & Environment - PGS,WWW.SCREWFIX.COM,62.46,12.5,74.96,Equipment,Timber & building supplies
Buckinghamshire Council ,29.02.2024,01.02.2024,Communities,Culture & Leisure - Communities Dir,SARNAU ARMY SURPLUS LTD,239.8,0,239.8,Protective Clothing & Uniforms,Family clothing shops
Buckinghamshire Council ,29.02.2024,01.02.2024,Communities,Culture & Leisure - Communities Dir,WORKWEAR EXPRESS,736.39,147.29,943.84,Protective Clothing & Uniforms,Uniforms & commercial clothing
Buckinghamshire Council ,29.02.2024,01.02.2024,Communities,Culture & Leisure - Communities Dir,SARNAU ARMY SURPLUS LTD,9.1,1.82,10.92,Protective Clothing & Uniforms,Family clothing shops
Buckinghamshire Council ,29.02.2024,01.02.2024,Communities,Culture & Leisure - Communities Dir,SARNAU ARMY SURPLUS LTD,0.03,0,0.03,Protective Clothing & Uniforms,Family clothing shops
Buckinghamshire Council ,29.02.2024,01.02.2024,Communities,Culture & Leisure - Communities Dir,SARNAU ARMY SURPLUS LTD,50.13,10.03,250.75,Protective Clothing & Uniforms,Family clothing shops
Buckinghamshire Council ,29.02.2024,01.02.2024,Children's Services,Education & Childrens Services - CS Dir,DOMINO S PIZZA,20,0,20,Subsistence,Restaurants
Buckinghamshire Council ,29.02.2024,01.02.2024,Resources,AH&R - Res Dir,C2E879800056D UKVI,"3,239.00",0,"3,239.00",Professional Services (non curriculum) - External,Government services
Buckinghamshire Council ,29.02.2024,01.02.2024,Adults and Health,Health & Wellbeing - Adults & Health Dir,SPOTIFY,234.06,0,234.06,Advertising,
Buckinghamshire Council ,29.02.2024,01.02.2024,Deputy Chief Executive,AH&R- DCE Dir,LINKEDIN ADS 9176516676,72.41,0,72.41,Interpreters Fees,Advertising services
Buckinghamshire Council ,29.02.2024,01.02.2024,Deputy Chief Executive,Leader - DCE,FACEBK RYZG6Y3YS2,512.29,0,512.29,Advertising,Advertising services
Buckinghamshire Council ,29.02.2024,01.02.2024,Children's Services,Education & Childrens Services - CS Dir,TESCO STORES LTD,3.5,0,3.5,General Provisions (Food),Grocery stores
Buckinghamshire Council ,29.02.2024,01.02.2024,Children's Services,Education & Childrens Services - CS Dir,VAHT.CO.UK,92.76,0,92.76,Leaving Care - Rent,Estate Agents & Property Management
Buckinghamshire Council ,29.02.2024,01.02.2024,Children's Services,Education & Childrens Services - CS Dir,WWW.ARGOS.CO.UK,396.95,0,396.95,Leaving Care - Grants for Care Leavers,Department stores
Buckinghamshire Council ,29.02.2024,01.02.2024,Resources,AH&R - Res Dir,LINKEDIN ADS 9855889074,86.4,0,86.4,Permanent Recruitment Costs,Advertising services
Buckinghamshire Council ,29.02.2024,01.02.2024,Resources,AH&R - Res Dir,LINKEDIN ADS 9323245433,110.29,0,110.29,Permanent Recruitment Costs,Advertising services
Buckinghamshire Council ,29.02.2024,01.02.2024,Children's Services,Education & Childrens Services - CS Dir,AMZNMKTPLACE,99.98,20,119.98,IT Equipment Purchase,Miscellaneous retail
Buckinghamshire Council ,29.02.2024,01.02.2024,Children's Services,Education & Childrens Services - CS Dir,CURRYS ONLINE,149,0,149,YOS - Direct Work,Electronics shops
Buckinghamshire Council ,29.02.2024,01.02.2024,Children's Services,Education & Childrens Services - CS Dir,GF* WWW.SNAPFITNESS.CO,30.99,0,30.99,YOS - Direct Work,Misc. personal services
Buckinghamshire Council ,29.02.2024,01.02.2024,Resources,AH&R - Res Dir,GOOGLE*CLOUD WPVCWG,182.41,0,182.41,Software Rental (Annual),
Buckinghamshire Council ,29.02.2024,01.02.2024,Communities,Culture & Leisure - Communities Dir,PAYPAL,32.2,0,32.2,Computer Support Services,Computer network information services
Buckinghamshire Council ,29.02.2024,01.02.2024,Children's Services,Education & Childrens Services - CS Dir,AMAZON* 205-0597515-70,429.98,0,429.98,Leaving Care - Grants for Care Leavers,Misc. general merchandise
Buckinghamshire Council ,29.02.2024,01.02.2024,Children's Services,Education & Childrens Services - CS Dir,AURAONLINEL,26.9,0,26.9,Activities & General Recreation,Miscellaneous retail
Buckinghamshire Council ,29.02.2024,01.02.2024,Children's Services,Education & Childrens Services - CS Dir,AMAZON* 205-1530942-81,539,0,539,Leaving Care - Grants for Care Leavers,Misc. general merchandise
